Workbook

Sheet Lotto2_T640_1
E1: Convenzione | F1: =SUM(I8:I100)*F5 -> 0
E2: 0.2 | F2: =SUM(J8:J100)*F5 -> 0
E3: Totale | F3: =SUM(F1:F2) -> 0
C5: POWEREDGE T640 Consulta la Guida alla Convenzione ---> | D5: =HYPERLINK("https://convenzioni.converge.it/docs/L2GuidaAllaConvenzioneTecnologieServer3.pdf","&") -> & | E5: Quantità Server | H5: =Riepilogo!G8 -> Version 3.3
C7: Base | D7: =HYPERLINK("https://convenzioni.converge.it/docs/ts3_datasheet/dell-emc-poweredge-t640-spec-sheet.pdf","i") -> i
C8: PowerEdge T640 Server | E8: =IF($F$5>0,"TS3L2-SRV","") ->  | F8: =IF($F$5>0,1,"") ->  | I8: =VLOOKUP($C8,TS3L2_ALL,10,FALSE) -> 2088 | K8: =VLOOKUP($C8,TS3L2_ALL,12,FALSE) -> L2N01
C10: Chassis Configuration | D10: =HYPERLINK("https://dellservervr.dell.com/poweredge-t640/","i") -> i
C11: Chassis with up to 16 x 2.5" SAS/ SATA Hard Drives, Tower Configuration | E11: =VLOOKUP($C$11,TS3L2_Chassis,13,FALSE) ->  | F11: =VLOOKUP($C$11,TS3L2_Chassis,7,FALSE) ->  | I11: =VLOOKUP($C$11,TS3L2_Chassis,10,FALSE) -> 0 | J11: =VLOOKUP($C11,TS3L2_Chassis,11,FALSE) -> 0 | K11: =VLOOKUP($C11,TS3L2_Chassis,12,FALSE) -> 
C13: Trusted Platform Module (TPM)
C14: Trusted Platform Module 2.0
C16: Processor | D16: =HYPERLINK("https://ark.intel.com/content/www/it/it/ark/products/193385/intel-xeon-silver-4214-processor-16-5m-cache-2-20-ghz.html","i") -> i
C17: Intel Xeon Silver 4214 2.2G, 12C/24T, 9.6GT/s, 16.5M Cache, Turbo, HT (85W)
C19: Additional Processor
C20: No Additional Processor | E20: =VLOOKUP($C$20,TS3L2_CPU,13,FALSE) ->  | F20: =VLOOKUP($C$20,TS3L2_CPU,7,FALSE) -> 0 | I20: =VLOOKUP($C$20,TS3L2_CPU,10,FALSE) -> 0 | K20: =VLOOKUP($C20,TS3L2_ALL,12,FALSE) -> 
C22: Memory Capacity
C23: 32GB | E23: =VLOOKUP($C$23,TS3L2_RAM,13,FALSE) ->  | F23: =VLOOKUP($C$23,TS3L2_RAM,7,FALSE) -> 0 | I23: =VLOOKUP($C$23,TS3L2_RAM,10,FALSE) -> 0 | K23: =VLOOKUP($C23,TS3L2_ALL,12,FALSE) -> 
C25: Operating System
C26: No Operating System | E26: =VLOOKUP($C$26,TS3L2_OS,13,FALSE) ->  | F26: =VLOOKUP($C$26,TS3L2_OS,7,FALSE) ->  | I26: =VLOOKUP($C$26,TS3L2_OS,10,FALSE) -> 0 | K26: =VLOOKUP($C26,TS3L2_ALL,12,FALSE) -> 
E27: =IF(F20=1,VLOOKUP($C$26,TS3L2_OS,20,FALSE),"") ->  | F27: =IF(F20=1,VLOOKUP($C$26,TS3L2_OS,14,FALSE),0) -> 0 | I27: =IF(F20=1,VLOOKUP($C$26,TS3L2_OS,17,FALSE),0) -> 0 | K27: =IF(F20=1,VLOOKUP($C26,TS3L2_OS,19,FALSE),"") -> 
C28: Raid Controller | D28: =IF(J29>0,HYPERLINK("https://convenzioni.converge.it/docs/ts3_datasheet/dellemc-poweredge-raid-controller-h740p.pdf","i"),HYPERLINK("https://convenzioni.converge.it/docs/ts3_datasheet/DELL_H730.pdf","i")) -> i
C29: PERC H730P+ Adapter RAID Controller, 2GB | E29: =VLOOKUP($C$29,TS3L2_ALL,13,FALSE) ->  | F29: =VLOOKUP($C$29,TS3L2_ALL,7,FALSE) ->  | H29: Configurazione RAID e/o NOTE | I29: =VLOOKUP($C$29,TS3L2_ALL,10,FALSE) -> 0 | J29: =VLOOKUP($C$29,TS3L2_ALL,11,FALSE) -> 0 | K29: =VLOOKUP($C29,TS3L2_ALL,12,FALSE) -> 
H30: Specificare la configurazione RAID per l'installazione del Sistema Operativo, se richiesto. e/o inserire eventuali note.
C31: Hard Drivers Bays disponibili n° 16 | E31: Usati | F31: Disponibili
E32: =F34+F36+F38+F40+F42 -> 2 | F32: =16-E32 -> 14
C34: 2.4TB 10K RPM SAS 12Gbps 512e 2.5in Hot-plug | E34: =VLOOKUP($C34,TS3L2_HDD,13,FALSE) -> TS3L2-HDD2TB | I34: =VLOOKUP($C34,TS3L2_HDD,10,FALSE)*F34 -> 0 | J34: =VLOOKUP($C34,TS3L2_HDD,11,FALSE) -> 0 | K34: =VLOOKUP($C34,TS3L2_ALL,12,FALSE) -> L2N05
C36: =ConfigurationTS3L2!A44 -> 1.2TB 10K RPM SAS 12Gbps 2.5in Hot-plug | E36: =VLOOKUP($C36,TS3L2_HDD,13,FALSE) -> TS3L2-HDD1TB | I36: =VLOOKUP($C36,TS3L2_HDD,10,FALSE)*F36 -> 0 | J36: =VLOOKUP($C36,TS3L2_HDD,11,FALSE) -> 0 | K36: =VLOOKUP($C36,TS3L2_ALL,12,FALSE) -> L2N06
C38: =ConfigurationTS3L2!A45 -> 300GB 15K RPM SAS 12Gbps 2.5in Hot-plug | E38: =VLOOKUP($C38,TS3L2_HDD,13,FALSE) -> TS3L2-HDD300GB | I38: =VLOOKUP($C38,TS3L2_HDD,10,FALSE)*F38 -> 0 | J38: =VLOOKUP($C38,TS3L2_HDD,11,FALSE) -> 0 | K38: =VLOOKUP($C38,TS3L2_ALL,12,FALSE) -> L2N07
C40: =ConfigurationTS3L2!A46 -> 960GB SSD SAS Read Intensive 12Gbps 2.5in Hot-plug | E40: =VLOOKUP($C40,TS3L2_HDD,13,FALSE) -> TS3L2-RI800GB | F40: 2 | I40: =IF(F40>2,(VLOOKUP($C40,TS3L2_HDD,10,FALSE)*(F40-2)),0) -> 0 | J40: =VLOOKUP($C40,TS3L2_HDD,11,FALSE) -> 0 | K40: =VLOOKUP($C40,TS3L2_ALL,12,FALSE) -> L2N08
C42: =ConfigurationTS3L2!A47 -> 480GB SSD SAS Read Intensive 12Gbps 2.5in Hot-plug | E42: =VLOOKUP($C42,TS3L2_HDD,13,FALSE) -> TS3L2-RI400GB | I42: =IF(F42>2,VLOOKUP($C42,TS3L2_HDD,10,FALSE)*(F42-2),0) -> 0 | J42: =VLOOKUP($C42,TS3L2_HDD,11,FALSE) -> 0 | K42: =VLOOKUP($C42,TS3L2_ALL,12,FALSE) -> L2N09
C44: Power Supply
C45: Dual, Hot-plug, Redundant Power Supply (1+1), 750W
C47: Embedded Systems Management | D47: =HYPERLINK("https://convenzioni.converge.it/docs/ts3_datasheet/idrac-spec-sheet.pdf","i") -> i
C48: iDRAC9,Enterprise
C50: Network Cards
C51: On-Board Dual-Port 10GbE LOM
C53: PCI Slot 1 Processor 1 x16 PCIe Gen3 for FH/FL
E54: =VLOOKUP($C54,TS3L2_PCI1,13,FALSE) ->  | F54: =VLOOKUP($C54,TS3L2_PCI1,7,FALSE) ->  | I54: =VLOOKUP($C54,TS3L2_PCI1,10,FALSE) -> 0 | J54: =VLOOKUP($C54,TS3L2_PCI1,11,FALSE) -> 0 | K54: =VLOOKUP($C54,TS3L2_ALL,12,FALSE) -> 
C56: PCI Slot 2 Processor 1 x4 PCIe Gen3 for FH/FL
E57: =VLOOKUP($C57,TS3L2_PCI2,13,FALSE) ->  | F57: =VLOOKUP($C57,TS3L2_PCI2,7,FALSE) ->  | I57: =VLOOKUP($C57,TS3L2_PCI2,10,FALSE) -> 0 | J57: =VLOOKUP($C57,TS3L2_PCI2,11,FALSE) -> 0 | K57: =VLOOKUP($C57,TS3L2_ALL,12,FALSE) -> 
C59: PCI Slot 3 Processor 1 x16 PCIe Gen3 for FH/FL
E60: =VLOOKUP($C60,TS3L2_PCI3,13,FALSE) ->  | F60: =VLOOKUP($C60,TS3L2_PCI3,7,FALSE) ->  | I60: =VLOOKUP($C60,TS3L2_PCI3,10,FALSE) -> 0 | J60: =VLOOKUP($C60,TS3L2_PCI3,11,FALSE) -> 0 | K60: =VLOOKUP($C60,TS3L2_ALL,12,FALSE) -> 
C62: PCI Slot 4 Processor 2 x8 PCIe Gen3 for FH/FL
E63: =IF($I$20>0,VLOOKUP($C63,TS3L2_PCI4,13,FALSE),"") ->  | F63: =IF($I$20>0,VLOOKUP($C63,TS3L2_PCI4,7,FALSE),"") ->  | I63: =IF($I$20>0,VLOOKUP($C63,TS3L2_PCI4,10,FALSE),0) -> 0 | J63: =IF($I$20>0,VLOOKUP($C63,TS3L2_PCI4,11,FALSE),0) -> 0 | K63: =IF($I$20>0,VLOOKUP($C63,TS3L2_ALL,12,FALSE),0) -> 0
C65: PCI Slot 5 Processor 2 x4 PCIe Gen3 for FH/FL
E66: =IF($I$20>0,VLOOKUP($C66,TS3L2_PCI5,13,FALSE),"") ->  | F66: =IF($I$20>0,VLOOKUP($C66,TS3L2_PCI5,7,FALSE),"") ->  | I66: =IF($I$20>0,VLOOKUP($C66,TS3L2_PCI5,10,FALSE),0) -> 0 | J66: =IF($I$20>0,VLOOKUP($C66,TS3L2_PCI5,11,FALSE),0) -> 0 | K66: =IF($I$20>0,VLOOKUP($C66,TS3L2_ALL,12,FALSE),0) -> 0
C68: PCI Slot 6 Processor 2 x16 PCIe Gen3 for FH/FL
E69: =IF($I$20>0,VLOOKUP($C69,TS3L2_PCI6,13,FALSE),"") ->  | F69: =IF($I$20>0,VLOOKUP($C69,TS3L2_PCI6,7,FALSE),"") ->  | I69: =IF($I$20>0,VLOOKUP($C69,TS3L2_PCI6,10,FALSE),0) -> 0 | J69: =IF($I$20>0,VLOOKUP($C69,TS3L2_PCI6,11,FALSE),0) -> 0 | K69: =IF($I$20>0,VLOOKUP($C69,TS3L2_ALL,12,FALSE),0) -> 0
C71: PCI Slot 7 Processor 2 x8 PCIe Gen3 for FH/FL
E72: =IF($I$20>0,VLOOKUP($C72,TS3L2_PCI7,13,FALSE),"") ->  | F72: =IF($I$20>0,VLOOKUP($C72,TS3L2_PCI7,7,FALSE),"") ->  | I72: =IF($I$20>0,VLOOKUP($C72,TS3L2_PCI7,10,FALSE),0) -> 0 | J72: =IF($I$20>0,VLOOKUP($C72,TS3L2_PCI7,11,FALSE),0) -> 0 | K72: =IF($I$20>0,VLOOKUP($C72,TS3L2_ALL,12,FALSE),0) -> 0
C74: PCI Slot 8 Processor 2 x16 PCIe Gen3 for FH/FL
E75: =IF($I$20>0,VLOOKUP($C75,TS3L2_PCI8,13,FALSE),"") ->  | F75: =IF($I$20>0,VLOOKUP($C75,TS3L2_PCI8,7,FALSE),"") ->  | I75: =IF($I$20>0,VLOOKUP($C75,TS3L2_PCI8,10,FALSE),0) -> 0 | J75: =IF($I$20>0,VLOOKUP($C75,TS3L2_PCI8,11,FALSE),0) -> 0 | K75: =IF(I$20>0,VLOOKUP($C75,TS3L2_ALL,12,FALSE),0) -> 0
C77: SFP+ Transceivers
C78: Transceiver, SFP+, 10GbE, SR, 850nm Wavelength, 300m | E78: =IF(J78>0,VLOOKUP($C78,ConfigurationTS3L2!$A$1:$M$4993,13,FALSE),"") ->  | I78: 0 | J78: =F78*ConfigurationTS3L2!K121 -> 0 | K78: =IF(F78>0,VLOOKUP($C78,TS3L2_ALL,12,FALSE),0) -> 0
C80: SFP+ Direct Attach Cables (Twinax)
C81: Cable, SFP+ to SFP+, 10GbE, Copper Twinax Direct Attach Cable, 3 Meter | E81: =IF(J81>0,VLOOKUP($C81,ConfigurationTS3L2!$A$1:$M$4993,13,FALSE),"") ->  | I81: 0 | J81: =F81*ConfigurationTS3L2!K120 -> 0 | K81: =IF(F81>0,VLOOKUP($C81,TS3L2_ALL,12,FALSE),0) -> 0
C83: Cavi RJ45
C84: Cavo “patch” di 3 mt RJ45 certificato per gigabit ethernet | E84: =IF(J84>0,VLOOKUP($C84,ConfigurationTS3L2!$A$1:$M$4993,13,FALSE),"") -> TS3L2-RJ453M | F84: 3 | I84: 0 | J84: =IF(F84>1,(F84-1)*ConfigurationTS3L2!K119,0) -> 6 | K84: =IF(F84>0,VLOOKUP($C84,TS3L2_ALL,12,FALSE),0) -> L2N26
C86: Bezel
C87: No Bezel | E87: =IF(J87>0,VLOOKUP($C87,ConfigurationTS3L2!$A$1:$M$4993,13,FALSE),"") ->  | F87: =IF(C87=ConfigurationTS3L2!A151,"",VLOOKUP($C87,TS3L2_BEZEL,7,FALSE)) ->  | I87: =IF(C87=ConfigurationTS3L2!A151,0,VLOOKUP($C87,TS3L2_BEZEL,10,FALSE)) -> 0 | J87: =IF(C87=ConfigurationTS3L2!A151,0,VLOOKUP($C87,TS3L2_BEZEL,11,FALSE)) -> 0 | K87: =IF(C87=ConfigurationTS3L2!A151,0,VLOOKUP($C87,TS3L2_ALL,12,FALSE)) -> 
C89: Warranty | D89: =HYPERLINK("https://convenzioni.converge.it/docs/ts3_datasheet/TS3warranty.pdf","i") -> i
C90: Manutenzione in garanzia (36 mesi) | E90: =VLOOKUP($C90,TS3L2_WARRANTY,13,FALSE) ->  | F90: =VLOOKUP($C90,TS3L2_WARRANTY,7,FALSE) ->  | I90: =VLOOKUP($C90,TS3L2_WARRANTY,10,FALSE) -> 0 | J90: =VLOOKUP($C90,TS3L2_WARRANTY,11,FALSE) -> 0 | K90: =VLOOKUP($C90,TS3L2_ALL,12,FALSE) -> 
C92: Hard Disk Retention | D92: =HYPERLINK("https://convenzioni.converge.it/docs/ts3_datasheet/DELL_HDD_KYHD.pdf","i") -> i
E93: =IFERROR(N93,VLOOKUP(C93,TS3L2_ALL,13,FALSE)) ->  | F93: =IF(C93="","",1) ->  | I93: =IFERROR(O93,VLOOKUP(C93,TS3L2_ALL,10,FALSE)) -> 0 | J93: =IFERROR(P93,VLOOKUP(C93,TS3L2_ALL,11,FALSE)) -> 0 | K93: =IFERROR(Q93,VLOOKUP(C93,TS3L2_ALL,12,FALSE)) ->  | N93: =IF(F90+F93=2,VLOOKUP("Hard Disk Retention (60 mesi)",TS3L2_ALL,13,FALSE),VLOOKUP(C93,TS3L2_ALL,13,FALSE)) ->  | O93: =IF(F90+F93=2,VLOOKUP("Hard Disk Retention (60 mesi)",TS3L2_ALL,10,FALSE),VLOOKUP(C93,TS3L2_ALL,10,FALSE)) ->  | P93: =IF(F90+F93=2,VLOOKUP("Hard Disk Retention (60 mesi)",TS3L2_ALL,11,FALSE),VLOOKUP(C93,TS3L2_ALL,11,FALSE)) ->  | Q93: =IF(F90+F93=2,VLOOKUP("Hard Disk Retention (60 mesi)",TS3L2_ALL,12,FALSE),VLOOKUP(C93,TS3L2_ALL,12,FALSE)) -> 
C96: UPS | D96: =HYPERLINK("https://convenzioni.converge.it/docs/ts3_datasheet/RPMM_UPS.pdf","i") -> i
E97: =VLOOKUP($C97,TS3L2_UPS,13,FALSE) ->  | F97: =VLOOKUP($C97,TS3L2_UPS,7,FALSE) ->  | I97: =VLOOKUP($C97,TS3L2_UPS,10,FALSE) -> 0 | J97: =VLOOKUP($C97,TS3L2_UPS,11,FALSE) -> 0 | K97: =VLOOKUP($C97,TS3L2_ALL,12,FALSE) -> 
C99: Kit Graphical User Interface | D99: =HYPERLINK("https://convenzioni.converge.it/docs/ts3_datasheet/Dell_E1916H.pdf","i") -> i
E100: =VLOOKUP($C100,TS3L2_GUI,13,FALSE) ->  | F100: =VLOOKUP($C100,TS3L2_GUI,7,FALSE) ->  | I100: =VLOOKUP($C100,TS3L2_GUI,10,FALSE) -> 0 | J100: =VLOOKUP($C100,TS3L2_GUI,11,FALSE) -> 0 | K100: =VLOOKUP($C100,TS3L2_ALL,12,FALSE) -> 

Sheet Lotto2_T640_2
E1: Convenzione | F1: =SUM(I8:I100)*F5 -> 0
E2: 0.2 | F2: =SUM(J8:J100)*F5 -> 0
E3: Totale | F3: =SUM(F1:F2) -> 0
C5: POWEREDGE T640 Consulta la Guida alla Convenzione ---> | D5: =HYPERLINK("https://convenzioni.converge.it/docs/L2GuidaAllaConvenzioneTecnologieServer3.pdf","&") -> & | E5: Quantità Server | H5: =Riepilogo!G8 -> Version 3.3
C7: Base | D7: =HYPERLINK("https://convenzioni.converge.it/docs/ts3_datasheet/dell-emc-poweredge-t640-spec-sheet.pdf","i") -> i
C8: PowerEdge T640 Server | E8: =IF($F$5>0,"TS3L2-SRV","") ->  | F8: =IF($F$5>0,1,"") ->  | I8: =VLOOKUP($C8,TS3L2_ALL,10,FALSE) -> 2088 | K8: =VLOOKUP($C8,TS3L2_ALL,12,FALSE) -> L2N01
C10: Chassis Configuration | D10: =HYPERLINK("https://dellservervr.dell.com/poweredge-t640/","i") -> i
C11: Chassis with up to 16 x 2.5" SAS/ SATA Hard Drives, Tower Configuration | E11: =VLOOKUP($C$11,TS3L2_Chassis,13,FALSE) ->  | F11: =VLOOKUP($C$11,TS3L2_Chassis,7,FALSE) ->  | I11: =VLOOKUP($C$11,TS3L2_Chassis,10,FALSE) -> 0 | J11: =VLOOKUP($C11,TS3L2_Chassis,11,FALSE) -> 0 | K11: =VLOOKUP($C11,TS3L2_Chassis,12,FALSE) -> 
C13: Trusted Platform Module (TPM)
C14: Trusted Platform Module 2.0
C16: Processor | D16: =HYPERLINK("https://ark.intel.com/content/www/it/it/ark/products/193385/intel-xeon-silver-4214-processor-16-5m-cache-2-20-ghz.html","i") -> i
C17: Intel Xeon Silver 4214 2.2G, 12C/24T, 9.6GT/s, 16.5M Cache, Turbo, HT (85W)
C19: Additional Processor
C20: No Additional Processor | E20: =VLOOKUP($C$20,TS3L2_CPU,13,FALSE) ->  | F20: =VLOOKUP($C$20,TS3L2_CPU,7,FALSE) -> 0 | I20: =VLOOKUP($C$20,TS3L2_CPU,10,FALSE) -> 0 | K20: =VLOOKUP($C20,TS3L2_ALL,12,FALSE) -> 
C22: Memory Capacity
C23: 32GB | E23: =VLOOKUP($C$23,TS3L2_RAM,13,FALSE) ->  | F23: =VLOOKUP($C$23,TS3L2_RAM,7,FALSE) -> 0 | I23: =VLOOKUP($C$23,TS3L2_RAM,10,FALSE) -> 0 | K23: =VLOOKUP($C23,TS3L2_ALL,12,FALSE) -> 
C25: Operating System
C26: No Operating System | E26: =VLOOKUP($C$26,TS3L2_OS,13,FALSE) ->  | F26: =VLOOKUP($C$26,TS3L2_OS,7,FALSE) ->  | I26: =VLOOKUP($C$26,TS3L2_OS,10,FALSE) -> 0 | K26: =VLOOKUP($C26,TS3L2_ALL,12,FALSE) -> 
E27: =IF(F20=1,VLOOKUP($C$26,TS3L2_OS,20,FALSE),"") ->  | F27: =IF(F20=1,VLOOKUP($C$26,TS3L2_OS,14,FALSE),0) -> 0 | I27: =IF(F20=1,VLOOKUP($C$26,TS3L2_OS,17,FALSE),0) -> 0 | K27: =IF(F20=1,VLOOKUP($C26,TS3L2_OS,19,FALSE),"") -> 
C28: Raid Controller | D28: =IF(J29>0,HYPERLINK("https://convenzioni.converge.it/docs/ts3_datasheet/dellemc-poweredge-raid-controller-h740p.pdf","i"),HYPERLINK("https://convenzioni.converge.it/docs/ts3_datasheet/DELL_H730.pdf","i")) -> i
C29: PERC H730P+ Adapter RAID Controller, 2GB | E29: =VLOOKUP($C$29,TS3L2_ALL,13,FALSE) ->  | F29: =VLOOKUP($C$29,TS3L2_ALL,7,FALSE) ->  | H29: Configurazione RAID e/o NOTE | I29: =VLOOKUP($C$29,TS3L2_ALL,10,FALSE) -> 0 | J29: =VLOOKUP($C$29,TS3L2_ALL,11,FALSE) -> 0 | K29: =VLOOKUP($C29,TS3L2_ALL,12,FALSE) -> 
H30: Specificare la configurazione RAID per l'installazione del Sistema Operativo, se richiesto. e/o inserire eventuali note.
C31: Hard Drivers Bays disponibili n° 16 | E31: Usati | F31: Disponibili
E32: =F34+F36+F38+F40+F42 -> 2 | F32: =16-E32 -> 14
C34: 2.4TB 10K RPM SAS 12Gbps 512e 2.5in Hot-plug | E34: =VLOOKUP($C34,TS3L2_HDD,13,FALSE) -> TS3L2-HDD2TB | I34: =VLOOKUP($C34,TS3L2_HDD,10,FALSE)*F34 -> 0 | J34: =VLOOKUP($C34,TS3L2_HDD,11,FALSE) -> 0 | K34: =VLOOKUP($C34,TS3L2_ALL,12,FALSE) -> L2N05
C36: =ConfigurationTS3L2!A44 -> 1.2TB 10K RPM SAS 12Gbps 2.5in Hot-plug | E36: =VLOOKUP($C36,TS3L2_HDD,13,FALSE) -> TS3L2-HDD1TB | I36: =VLOOKUP($C36,TS3L2_HDD,10,FALSE)*F36 -> 0 | J36: =VLOOKUP($C36,TS3L2_HDD,11,FALSE) -> 0 | K36: =VLOOKUP($C36,TS3L2_ALL,12,FALSE) -> L2N06
C38: =ConfigurationTS3L2!A45 -> 300GB 15K RPM SAS 12Gbps 2.5in Hot-plug | E38: =VLOOKUP($C38,TS3L2_HDD,13,FALSE) -> TS3L2-HDD300GB | I38: =VLOOKUP($C38,TS3L2_HDD,10,FALSE)*F38 -> 0 | J38: =VLOOKUP($C38,TS3L2_HDD,11,FALSE) -> 0 | K38: =VLOOKUP($C38,TS3L2_ALL,12,FALSE) -> L2N07
C40: =ConfigurationTS3L2!A46 -> 960GB SSD SAS Read Intensive 12Gbps 2.5in Hot-plug | E40: =VLOOKUP($C40,TS3L2_HDD,13,FALSE) -> TS3L2-RI800GB | F40: 2 | I40: =IF(F40>2,(VLOOKUP($C40,TS3L2_HDD,10,FALSE)*(F40-2)),0) -> 0 | J40: =VLOOKUP($C40,TS3L2_HDD,11,FALSE) -> 0 | K40: =VLOOKUP($C40,TS3L2_ALL,12,FALSE) -> L2N08
C42: =ConfigurationTS3L2!A47 -> 480GB SSD SAS Read Intensive 12Gbps 2.5in Hot-plug | E42: =VLOOKUP($C42,TS3L2_HDD,13,FALSE) -> TS3L2-RI400GB | I42: =IF(F42>2,VLOOKUP($C42,TS3L2_HDD,10,FALSE)*(F42-2),0) -> 0 | J42: =VLOOKUP($C42,TS3L2_HDD,11,FALSE) -> 0 | K42: =VLOOKUP($C42,TS3L2_ALL,12,FALSE) -> L2N09
C44: Power Supply
C45: Dual, Hot-plug, Redundant Power Supply (1+1), 750W
C47: Embedded Systems Management | D47: =HYPERLINK("https://convenzioni.converge.it/docs/ts3_datasheet/idrac-spec-sheet.pdf","i") -> i
C48: iDRAC9,Enterprise
C50: Network Cards
C51: On-Board Dual-Port 10GbE LOM
C53: PCI Slot 1 Processor 1 x16 PCIe Gen3 for FH/FL
E54: =VLOOKUP($C54,TS3L2_PCI1,13,FALSE) ->  | F54: =VLOOKUP($C54,TS3L2_PCI1,7,FALSE) ->  | I54: =VLOOKUP($C54,TS3L2_PCI1,10,FALSE) -> 0 | J54: =VLOOKUP($C54,TS3L2_PCI1,11,FALSE) -> 0 | K54: =VLOOKUP($C54,TS3L2_ALL,12,FALSE) -> 
C56: PCI Slot 2 Processor 1 x4 PCIe Gen3 for FH/FL
E57: =VLOOKUP($C57,TS3L2_PCI2,13,FALSE) ->  | F57: =VLOOKUP($C57,TS3L2_PCI2,7,FALSE) ->  | I57: =VLOOKUP($C57,TS3L2_PCI2,10,FALSE) -> 0 | J57: =VLOOKUP($C57,TS3L2_PCI2,11,FALSE) -> 0 | K57: =VLOOKUP($C57,TS3L2_ALL,12,FALSE) -> 
C59: PCI Slot 3 Processor 1 x16 PCIe Gen3 for FH/FL
E60: =VLOOKUP($C60,TS3L2_PCI3,13,FALSE) ->  | F60: =VLOOKUP($C60,TS3L2_PCI3,7,FALSE) ->  | I60: =VLOOKUP($C60,TS3L2_PCI3,10,FALSE) -> 0 | J60: =VLOOKUP($C60,TS3L2_PCI3,11,FALSE) -> 0 | K60: =VLOOKUP($C60,TS3L2_ALL,12,FALSE) -> 
C62: PCI Slot 4 Processor 2 x8 PCIe Gen3 for FH/FL
E63: =IF($I$20>0,VLOOKUP($C63,TS3L2_PCI4,13,FALSE),"") ->  | F63: =IF($I$20>0,VLOOKUP($C63,TS3L2_PCI4,7,FALSE),"") ->  | I63: =IF($I$20>0,VLOOKUP($C63,TS3L2_PCI4,10,FALSE),0) -> 0 | J63: =IF($I$20>0,VLOOKUP($C63,TS3L2_PCI4,11,FALSE),0) -> 0 | K63: =IF($I$20>0,VLOOKUP($C63,TS3L2_ALL,12,FALSE),0) -> 0
C65: PCI Slot 5 Processor 2 x4 PCIe Gen3 for FH/FL
E66: =IF($I$20>0,VLOOKUP($C66,TS3L2_PCI5,13,FALSE),"") ->  | F66: =IF($I$20>0,VLOOKUP($C66,TS3L2_PCI5,7,FALSE),"") ->  | I66: =IF($I$20>0,VLOOKUP($C66,TS3L2_PCI5,10,FALSE),0) -> 0 | J66: =IF($I$20>0,VLOOKUP($C66,TS3L2_PCI5,11,FALSE),0) -> 0 | K66: =IF($I$20>0,VLOOKUP($C66,TS3L2_ALL,12,FALSE),0) -> 0
C68: PCI Slot 6 Processor 2 x16 PCIe Gen3 for FH/FL
E69: =IF($I$20>0,VLOOKUP($C69,TS3L2_PCI6,13,FALSE),"") ->  | F69: =IF($I$20>0,VLOOKUP($C69,TS3L2_PCI6,7,FALSE),"") ->  | I69: =IF($I$20>0,VLOOKUP($C69,TS3L2_PCI6,10,FALSE),0) -> 0 | J69: =IF($I$20>0,VLOOKUP($C69,TS3L2_PCI6,11,FALSE),0) -> 0 | K69: =IF($I$20>0,VLOOKUP($C69,TS3L2_ALL,12,FALSE),0) -> 0
C71: PCI Slot 7 Processor 2 x8 PCIe Gen3 for FH/FL
E72: =IF($I$20>0,VLOOKUP($C72,TS3L2_PCI7,13,FALSE),"") ->  | F72: =IF($I$20>0,VLOOKUP($C72,TS3L2_PCI7,7,FALSE),"") ->  | I72: =IF($I$20>0,VLOOKUP($C72,TS3L2_PCI7,10,FALSE),0) -> 0 | J72: =IF($I$20>0,VLOOKUP($C72,TS3L2_PCI7,11,FALSE),0) -> 0 | K72: =IF($I$20>0,VLOOKUP($C72,TS3L2_ALL,12,FALSE),0) -> 0
C74: PCI Slot 8 Processor 2 x16 PCIe Gen3 for FH/FL
E75: =IF($I$20>0,VLOOKUP($C75,TS3L2_PCI8,13,FALSE),"") ->  | F75: =IF($I$20>0,VLOOKUP($C75,TS3L2_PCI8,7,FALSE),"") ->  | I75: =IF($I$20>0,VLOOKUP($C75,TS3L2_PCI8,10,FALSE),0) -> 0 | J75: =IF($I$20>0,VLOOKUP($C75,TS3L2_PCI8,11,FALSE),0) -> 0 | K75: =IF(I$20>0,VLOOKUP($C75,TS3L2_ALL,12,FALSE),0) -> 0
C77: SFP+ Transceivers
C78: Transceiver, SFP+, 10GbE, SR, 850nm Wavelength, 300m | E78: =IF(J78>0,VLOOKUP($C78,ConfigurationTS3L2!$A$1:$M$4993,13,FALSE),"") ->  | I78: 0 | J78: =F78*ConfigurationTS3L2!K121 -> 0 | K78: =IF(F78>0,VLOOKUP($C78,TS3L2_ALL,12,FALSE),0) -> 0
C80: SFP+ Direct Attach Cables (Twinax)
C81: Cable, SFP+ to SFP+, 10GbE, Copper Twinax Direct Attach Cable, 3 Meter | E81: =IF(J81>0,VLOOKUP($C81,ConfigurationTS3L2!$A$1:$M$4993,13,FALSE),"") ->  | I81: 0 | J81: =F81*ConfigurationTS3L2!K120 -> 0 | K81: =IF(F81>0,VLOOKUP($C81,TS3L2_ALL,12,FALSE),0) -> 0
C83: Cavi RJ45
C84: Cavo “patch” di 3 mt RJ45 certificato per gigabit ethernet | E84: =IF(J84>0,VLOOKUP($C84,ConfigurationTS3L2!$A$1:$M$4993,13,FALSE),"") -> TS3L2-RJ453M | F84: 3 | I84: 0 | J84: =IF(F84>1,(F84-1)*ConfigurationTS3L2!K119,0) -> 6 | K84: =IF(F84>0,VLOOKUP($C84,TS3L2_ALL,12,FALSE),0) -> L2N26
C86: Bezel
C87: No Bezel | E87: =IF(J87>0,VLOOKUP($C87,ConfigurationTS3L2!$A$1:$M$4993,13,FALSE),"") ->  | F87: =IF(C87=ConfigurationTS3L2!A151,"",VLOOKUP($C87,TS3L2_BEZEL,7,FALSE)) ->  | I87: =IF(C87=ConfigurationTS3L2!A151,0,VLOOKUP($C87,TS3L2_BEZEL,10,FALSE)) -> 0 | J87: =IF(C87=ConfigurationTS3L2!A151,0,VLOOKUP($C87,TS3L2_BEZEL,11,FALSE)) -> 0 | K87: =IF(C87=ConfigurationTS3L2!A151,0,VLOOKUP($C87,TS3L2_ALL,12,FALSE)) -> 
C89: Warranty | D89: =HYPERLINK("https://convenzioni.converge.it/docs/ts3_datasheet/TS3warranty.pdf","i") -> i
C90: Manutenzione in garanzia (36 mesi) | E90: =VLOOKUP($C90,TS3L2_WARRANTY,13,FALSE) ->  | F90: =VLOOKUP($C90,TS3L2_WARRANTY,7,FALSE) ->  | I90: =VLOOKUP($C90,TS3L2_WARRANTY,10,FALSE) -> 0 | J90: =VLOOKUP($C90,TS3L2_WARRANTY,11,FALSE) -> 0 | K90: =VLOOKUP($C90,TS3L2_ALL,12,FALSE) -> 
C92: Hard Disk Retention | D92: =HYPERLINK("https://convenzioni.converge.it/docs/ts3_datasheet/DELL_HDD_KYHD.pdf","i") -> i
E93: =IFERROR($N$93,VLOOKUP($C93,TS3L2_ALL,13,FALSE)) ->  | F93: =IF(C93="","",1) ->  | I93: =IFERROR($O$93,VLOOKUP($C93,TS3L2_ALL,10,FALSE)) -> 0 | J93: =IFERROR($P$93,VLOOKUP($C93,TS3L2_ALL,11,FALSE)) -> 0 | K93: =IFERROR($Q$93,VLOOKUP($C93,TS3L2_ALL,12,FALSE)) ->  | N93: =IF($F$90+$F$93=2,VLOOKUP("Hard Disk Retention (60 mesi)",TS3L2_ALL,13,FALSE),VLOOKUP($C93,TS3L2_ALL,13,FALSE)) ->  | O93: =IF($F$90+$F$93=2,VLOOKUP("Hard Disk Retention (60 mesi)",TS3L2_ALL,10,FALSE),VLOOKUP($C93,TS3L2_ALL,10,FALSE)) ->  | P93: =IF($F$90+$F$93=2,VLOOKUP("Hard Disk Retention (60 mesi)",TS3L2_ALL,11,FALSE),VLOOKUP($C93,TS3L2_ALL,11,FALSE)) ->  | Q93: =IF($F$90+$F$93=2,VLOOKUP("Hard Disk Retention (60 mesi)",TS3L2_ALL,12,FALSE),VLOOKUP($C93,TS3L2_ALL,12,FALSE)) -> 
C96: UPS | D96: =HYPERLINK("https://convenzioni.converge.it/docs/ts3_datasheet/RPMM_UPS.pdf","i") -> i
E97: =VLOOKUP($C97,TS3L2_UPS,13,FALSE) ->  | F97: =VLOOKUP($C97,TS3L2_UPS,7,FALSE) ->  | I97: =VLOOKUP($C97,TS3L2_UPS,10,FALSE) -> 0 | J97: =VLOOKUP($C97,TS3L2_UPS,11,FALSE) -> 0 | K97: =VLOOKUP($C97,TS3L2_ALL,12,FALSE) -> 
C99: Kit Graphical User Interface | D99: =HYPERLINK("https://convenzioni.converge.it/docs/ts3_datasheet/Dell_E1916H.pdf","i") -> i
E100: =VLOOKUP($C100,TS3L2_GUI,13,FALSE) ->  | F100: =VLOOKUP($C100,TS3L2_GUI,7,FALSE) ->  | I100: =VLOOKUP($C100,TS3L2_GUI,10,FALSE) -> 0 | J100: =VLOOKUP($C100,TS3L2_GUI,11,FALSE) -> 0 | K100: =VLOOKUP($C100,TS3L2_ALL,12,FALSE) -> 

Sheet Lotto2_T640_3
E1: Convenzione | F1: =SUM(I8:I100)*F5 -> 0
E2: 0.2 | F2: =SUM(J8:J100)*F5 -> 0
E3: Totale | F3: =SUM(F1:F2) -> 0
C5: POWEREDGE T640 Consulta la Guida alla Convenzione ---> | D5: =HYPERLINK("https://convenzioni.converge.it/docs/L2GuidaAllaConvenzioneTecnologieServer3.pdf","&") -> & | E5: Quantità Server | H5: =Riepilogo!G8 -> Version 3.3
C7: Base | D7: =HYPERLINK("https://convenzioni.converge.it/docs/ts3_datasheet/dell-emc-poweredge-t640-spec-sheet.pdf","i") -> i
C8: PowerEdge T640 Server | E8: =IF($F$5>0,"TS3L2-SRV","") ->  | F8: =IF($F$5>0,1,"") ->  | I8: =VLOOKUP($C8,TS3L2_ALL,10,FALSE) -> 2088 | K8: =VLOOKUP($C8,TS3L2_ALL,12,FALSE) -> L2N01
C10: Chassis Configuration | D10: =HYPERLINK("https://dellservervr.dell.com/poweredge-t640/","i") -> i
C11: Chassis with up to 16 x 2.5" SAS/ SATA Hard Drives, Tower Configuration | E11: =VLOOKUP($C$11,TS3L2_Chassis,13,FALSE) ->  | F11: =VLOOKUP($C$11,TS3L2_Chassis,7,FALSE) ->  | I11: =VLOOKUP($C$11,TS3L2_Chassis,10,FALSE) -> 0 | J11: =VLOOKUP($C11,TS3L2_Chassis,11,FALSE) -> 0 | K11: =VLOOKUP($C11,TS3L2_Chassis,12,FALSE) -> 
C13: Trusted Platform Module (TPM)
C14: Trusted Platform Module 2.0
C16: Processor | D16: =HYPERLINK("https://ark.intel.com/content/www/it/it/ark/products/193385/intel-xeon-silver-4214-processor-16-5m-cache-2-20-ghz.html","i") -> i
C17: Intel Xeon Silver 4214 2.2G, 12C/24T, 9.6GT/s, 16.5M Cache, Turbo, HT (85W)
C19: Additional Processor
C20: No Additional Processor | E20: =VLOOKUP($C$20,TS3L2_CPU,13,FALSE) ->  | F20: =VLOOKUP($C$20,TS3L2_CPU,7,FALSE) -> 0 | I20: =VLOOKUP($C$20,TS3L2_CPU,10,FALSE) -> 0 | K20: =VLOOKUP($C20,TS3L2_ALL,12,FALSE) -> 
C22: Memory Capacity
C23: 32GB | E23: =VLOOKUP($C$23,TS3L2_RAM,13,FALSE) ->  | F23: =VLOOKUP($C$23,TS3L2_RAM,7,FALSE) -> 0 | I23: =VLOOKUP($C$23,TS3L2_RAM,10,FALSE) -> 0 | K23: =VLOOKUP($C23,TS3L2_ALL,12,FALSE) -> 
C25: Operating System
C26: No Operating System | E26: =VLOOKUP($C$26,TS3L2_OS,13,FALSE) ->  | F26: =VLOOKUP($C$26,TS3L2_OS,7,FALSE) ->  | I26: =VLOOKUP($C$26,TS3L2_OS,10,FALSE) -> 0 | K26: =VLOOKUP($C26,TS3L2_ALL,12,FALSE) -> 
E27: =IF(F20=1,VLOOKUP($C$26,TS3L2_OS,20,FALSE),"") ->  | F27: =IF(F20=1,VLOOKUP($C$26,TS3L2_OS,14,FALSE),0) -> 0 | I27: =IF(F20=1,VLOOKUP($C$26,TS3L2_OS,17,FALSE),0) -> 0 | K27: =IF(F20=1,VLOOKUP($C26,TS3L2_OS,19,FALSE),"") -> 
C28: Raid Controller | D28: =IF(J29>0,HYPERLINK("https://convenzioni.converge.it/docs/ts3_datasheet/dellemc-poweredge-raid-controller-h740p.pdf","i"),HYPERLINK("https://convenzioni.converge.it/docs/ts3_datasheet/DELL_H730.pdf","i")) -> i
C29: PERC H730P+ Adapter RAID Controller, 2GB | E29: =VLOOKUP($C$29,TS3L2_ALL,13,FALSE) ->  | F29: =VLOOKUP($C$29,TS3L2_ALL,7,FALSE) ->  | H29: Configurazione RAID e/o NOTE | I29: =VLOOKUP($C$29,TS3L2_ALL,10,FALSE) -> 0 | J29: =VLOOKUP($C$29,TS3L2_ALL,11,FALSE) -> 0 | K29: =VLOOKUP($C29,TS3L2_ALL,12,FALSE) -> 
H30: Specificare la configurazione RAID per l'installazione del Sistema Operativo, se richiesto. e/o inserire eventuali note.
C31: Hard Drivers Bays disponibili n° 16 | E31: Usati | F31: Disponibili
E32: =F34+F36+F38+F40+F42 -> 2 | F32: =16-E32 -> 14
C34: 2.4TB 10K RPM SAS 12Gbps 512e 2.5in Hot-plug | E34: =VLOOKUP($C34,TS3L2_HDD,13,FALSE) -> TS3L2-HDD2TB | I34: =VLOOKUP($C34,TS3L2_HDD,10,FALSE)*F34 -> 0 | J34: =VLOOKUP($C34,TS3L2_HDD,11,FALSE) -> 0 | K34: =VLOOKUP($C34,TS3L2_ALL,12,FALSE) -> L2N05
C36: =ConfigurationTS3L2!A44 -> 1.2TB 10K RPM SAS 12Gbps 2.5in Hot-plug | E36: =VLOOKUP($C36,TS3L2_HDD,13,FALSE) -> TS3L2-HDD1TB | I36: =VLOOKUP($C36,TS3L2_HDD,10,FALSE)*F36 -> 0 | J36: =VLOOKUP($C36,TS3L2_HDD,11,FALSE) -> 0 | K36: =VLOOKUP($C36,TS3L2_ALL,12,FALSE) -> L2N06
C38: =ConfigurationTS3L2!A45 -> 300GB 15K RPM SAS 12Gbps 2.5in Hot-plug | E38: =VLOOKUP($C38,TS3L2_HDD,13,FALSE) -> TS3L2-HDD300GB | I38: =VLOOKUP($C38,TS3L2_HDD,10,FALSE)*F38 -> 0 | J38: =VLOOKUP($C38,TS3L2_HDD,11,FALSE) -> 0 | K38: =VLOOKUP($C38,TS3L2_ALL,12,FALSE) -> L2N07
C40: =ConfigurationTS3L2!A46 -> 960GB SSD SAS Read Intensive 12Gbps 2.5in Hot-plug | E40: =VLOOKUP($C40,TS3L2_HDD,13,FALSE) -> TS3L2-RI800GB | F40: 2 | I40: =IF(F40>2,(VLOOKUP($C40,TS3L2_HDD,10,FALSE)*(F40-2)),0) -> 0 | J40: =VLOOKUP($C40,TS3L2_HDD,11,FALSE) -> 0 | K40: =VLOOKUP($C40,TS3L2_ALL,12,FALSE) -> L2N08
C42: =ConfigurationTS3L2!A47 -> 480GB SSD SAS Read Intensive 12Gbps 2.5in Hot-plug | E42: =VLOOKUP($C42,TS3L2_HDD,13,FALSE) -> TS3L2-RI400GB | I42: =IF(F42>2,VLOOKUP($C42,TS3L2_HDD,10,FALSE)*(F42-2),0) -> 0 | J42: =VLOOKUP($C42,TS3L2_HDD,11,FALSE) -> 0 | K42: =VLOOKUP($C42,TS3L2_ALL,12,FALSE) -> L2N09
C44: Power Supply
C45: Dual, Hot-plug, Redundant Power Supply (1+1), 750W
C47: Embedded Systems Management | D47: =HYPERLINK("https://convenzioni.converge.it/docs/ts3_datasheet/idrac-spec-sheet.pdf","i") -> i
C48: iDRAC9,Enterprise
C50: Network Cards
C51: On-Board Dual-Port 10GbE LOM
C53: PCI Slot 1 Processor 1 x16 PCIe Gen3 for FH/FL
E54: =VLOOKUP($C54,TS3L2_PCI1,13,FALSE) ->  | F54: =VLOOKUP($C54,TS3L2_PCI1,7,FALSE) ->  | I54: =VLOOKUP($C54,TS3L2_PCI1,10,FALSE) -> 0 | J54: =VLOOKUP($C54,TS3L2_PCI1,11,FALSE) -> 0 | K54: =VLOOKUP($C54,TS3L2_ALL,12,FALSE) -> 
C56: PCI Slot 2 Processor 1 x4 PCIe Gen3 for FH/FL
E57: =VLOOKUP($C57,TS3L2_PCI2,13,FALSE) ->  | F57: =VLOOKUP($C57,TS3L2_PCI2,7,FALSE) ->  | I57: =VLOOKUP($C57,TS3L2_PCI2,10,FALSE) -> 0 | J57: =VLOOKUP($C57,TS3L2_PCI2,11,FALSE) -> 0 | K57: =VLOOKUP($C57,TS3L2_ALL,12,FALSE) -> 
C59: PCI Slot 3 Processor 1 x16 PCIe Gen3 for FH/FL
E60: =VLOOKUP($C60,TS3L2_PCI3,13,FALSE) ->  | F60: =VLOOKUP($C60,TS3L2_PCI3,7,FALSE) ->  | I60: =VLOOKUP($C60,TS3L2_PCI3,10,FALSE) -> 0 | J60: =VLOOKUP($C60,TS3L2_PCI3,11,FALSE) -> 0 | K60: =VLOOKUP($C60,TS3L2_ALL,12,FALSE) -> 
C62: PCI Slot 4 Processor 2 x8 PCIe Gen3 for FH/FL
E63: =IF($I$20>0,VLOOKUP($C63,TS3L2_PCI4,13,FALSE),"") ->  | F63: =IF($I$20>0,VLOOKUP($C63,TS3L2_PCI4,7,FALSE),"") ->  | I63: =IF($I$20>0,VLOOKUP($C63,TS3L2_PCI4,10,FALSE),0) -> 0 | J63: =IF($I$20>0,VLOOKUP($C63,TS3L2_PCI4,11,FALSE),0) -> 0 | K63: =IF($I$20>0,VLOOKUP($C63,TS3L2_ALL,12,FALSE),0) -> 0
C65: PCI Slot 5 Processor 2 x4 PCIe Gen3 for FH/FL
E66: =IF($I$20>0,VLOOKUP($C66,TS3L2_PCI5,13,FALSE),"") ->  | F66: =IF($I$20>0,VLOOKUP($C66,TS3L2_PCI5,7,FALSE),"") ->  | I66: =IF($I$20>0,VLOOKUP($C66,TS3L2_PCI5,10,FALSE),0) -> 0 | J66: =IF($I$20>0,VLOOKUP($C66,TS3L2_PCI5,11,FALSE),0) -> 0 | K66: =IF($I$20>0,VLOOKUP($C66,TS3L2_ALL,12,FALSE),0) -> 0
C68: PCI Slot 6 Processor 2 x16 PCIe Gen3 for FH/FL
E69: =IF($I$20>0,VLOOKUP($C69,TS3L2_PCI6,13,FALSE),"") ->  | F69: =IF($I$20>0,VLOOKUP($C69,TS3L2_PCI6,7,FALSE),"") ->  | I69: =IF($I$20>0,VLOOKUP($C69,TS3L2_PCI6,10,FALSE),0) -> 0 | J69: =IF($I$20>0,VLOOKUP($C69,TS3L2_PCI6,11,FALSE),0) -> 0 | K69: =IF($I$20>0,VLOOKUP($C69,TS3L2_ALL,12,FALSE),0) -> 0
C71: PCI Slot 7 Processor 2 x8 PCIe Gen3 for FH/FL
E72: =IF($I$20>0,VLOOKUP($C72,TS3L2_PCI7,13,FALSE),"") ->  | F72: =IF($I$20>0,VLOOKUP($C72,TS3L2_PCI7,7,FALSE),"") ->  | I72: =IF($I$20>0,VLOOKUP($C72,TS3L2_PCI7,10,FALSE),0) -> 0 | J72: =IF($I$20>0,VLOOKUP($C72,TS3L2_PCI7,11,FALSE),0) -> 0 | K72: =IF($I$20>0,VLOOKUP($C72,TS3L2_ALL,12,FALSE),0) -> 0
C74: PCI Slot 8 Processor 2 x16 PCIe Gen3 for FH/FL
E75: =IF($I$20>0,VLOOKUP($C75,TS3L2_PCI8,13,FALSE),"") ->  | F75: =IF($I$20>0,VLOOKUP($C75,TS3L2_PCI8,7,FALSE),"") ->  | I75: =IF($I$20>0,VLOOKUP($C75,TS3L2_PCI8,10,FALSE),0) -> 0 | J75: =IF($I$20>0,VLOOKUP($C75,TS3L2_PCI8,11,FALSE),0) -> 0 | K75: =IF(I$20>0,VLOOKUP($C75,TS3L2_ALL,12,FALSE),0) -> 0
C77: SFP+ Transceivers
C78: Transceiver, SFP+, 10GbE, SR, 850nm Wavelength, 300m | E78: =IF(J78>0,VLOOKUP($C78,ConfigurationTS3L2!$A$1:$M$4993,13,FALSE),"") ->  | I78: 0 | J78: =F78*ConfigurationTS3L2!K121 -> 0 | K78: =IF(F78>0,VLOOKUP($C78,TS3L2_ALL,12,FALSE),0) -> 0
C80: SFP+ Direct Attach Cables (Twinax)
C81: Cable, SFP+ to SFP+, 10GbE, Copper Twinax Direct Attach Cable, 3 Meter | E81: =IF(J81>0,VLOOKUP($C81,ConfigurationTS3L2!$A$1:$M$4993,13,FALSE),"") ->  | I81: 0 | J81: =F81*ConfigurationTS3L2!K120 -> 0 | K81: =IF(F81>0,VLOOKUP($C81,TS3L2_ALL,12,FALSE),0) -> 0
C83: Cavi RJ45
C84: Cavo “patch” di 3 mt RJ45 certificato per gigabit ethernet | E84: =IF(J84>0,VLOOKUP($C84,ConfigurationTS3L2!$A$1:$M$4993,13,FALSE),"") -> TS3L2-RJ453M | F84: 3 | I84: 0 | J84: =IF(F84>1,(F84-1)*ConfigurationTS3L2!K119,0) -> 6 | K84: =IF(F84>0,VLOOKUP($C84,TS3L2_ALL,12,FALSE),0) -> L2N26
C86: Bezel
C87: No Bezel | E87: =IF(J87>0,VLOOKUP($C87,ConfigurationTS3L2!$A$1:$M$4993,13,FALSE),"") ->  | F87: =IF(C87=ConfigurationTS3L2!A151,"",VLOOKUP($C87,TS3L2_BEZEL,7,FALSE)) ->  | I87: =IF(C87=ConfigurationTS3L2!A151,0,VLOOKUP($C87,TS3L2_BEZEL,10,FALSE)) -> 0 | J87: =IF(C87=ConfigurationTS3L2!A151,0,VLOOKUP($C87,TS3L2_BEZEL,11,FALSE)) -> 0 | K87: =IF(C87=ConfigurationTS3L2!A151,0,VLOOKUP($C87,TS3L2_ALL,12,FALSE)) -> 
C89: Warranty | D89: =HYPERLINK("https://convenzioni.converge.it/docs/ts3_datasheet/TS3warranty.pdf","i") -> i
C90: Manutenzione in garanzia (36 mesi) | E90: =VLOOKUP($C90,TS3L2_WARRANTY,13,FALSE) ->  | F90: =VLOOKUP($C90,TS3L2_WARRANTY,7,FALSE) ->  | I90: =VLOOKUP($C90,TS3L2_WARRANTY,10,FALSE) -> 0 | J90: =VLOOKUP($C90,TS3L2_WARRANTY,11,FALSE) -> 0 | K90: =VLOOKUP($C90,TS3L2_ALL,12,FALSE) -> 
C92: Hard Disk Retention | D92: =HYPERLINK("https://convenzioni.converge.it/docs/ts3_datasheet/DELL_HDD_KYHD.pdf","i") -> i
E93: =IFERROR($N$93,VLOOKUP($C93,TS3L2_ALL,13,FALSE)) ->  | F93: =IF(C93="","",1) ->  | I93: =IFERROR($O$93,VLOOKUP($C93,TS3L2_ALL,10,FALSE)) -> 0 | J93: =IFERROR($P$93,VLOOKUP($C93,TS3L2_ALL,11,FALSE)) -> 0 | K93: =IFERROR($Q$93,VLOOKUP($C93,TS3L2_ALL,12,FALSE)) ->  | N93: =IF($F$90+$F$93=2,VLOOKUP("Hard Disk Retention (60 mesi)",TS3L2_ALL,13,FALSE),VLOOKUP($C93,TS3L2_ALL,13,FALSE)) ->  | O93: =IF($F$90+$F$93=2,VLOOKUP("Hard Disk Retention (60 mesi)",TS3L2_ALL,10,FALSE),VLOOKUP($C93,TS3L2_ALL,10,FALSE)) ->  | P93: =IF($F$90+$F$93=2,VLOOKUP("Hard Disk Retention (60 mesi)",TS3L2_ALL,11,FALSE),VLOOKUP($C93,TS3L2_ALL,11,FALSE)) ->  | Q93: =IF($F$90+$F$93=2,VLOOKUP("Hard Disk Retention (60 mesi)",TS3L2_ALL,12,FALSE),VLOOKUP($C93,TS3L2_ALL,12,FALSE)) -> 
C96: UPS | D96: =HYPERLINK("https://convenzioni.converge.it/docs/ts3_datasheet/RPMM_UPS.pdf","i") -> i
E97: =VLOOKUP($C97,TS3L2_UPS,13,FALSE) ->  | F97: =VLOOKUP($C97,TS3L2_UPS,7,FALSE) ->  | I97: =VLOOKUP($C97,TS3L2_UPS,10,FALSE) -> 0 | J97: =VLOOKUP($C97,TS3L2_UPS,11,FALSE) -> 0 | K97: =VLOOKUP($C97,TS3L2_ALL,12,FALSE) -> 
C99: Kit Graphical User Interface | D99: =HYPERLINK("https://convenzioni.converge.it/docs/ts3_datasheet/Dell_E1916H.pdf","i") -> i
E100: =VLOOKUP($C100,TS3L2_GUI,13,FALSE) ->  | F100: =VLOOKUP($C100,TS3L2_GUI,7,FALSE) ->  | I100: =VLOOKUP($C100,TS3L2_GUI,10,FALSE) -> 0 | J100: =VLOOKUP($C100,TS3L2_GUI,11,FALSE) -> 0 | K100: =VLOOKUP($C100,TS3L2_ALL,12,FALSE) -> 

Sheet ConfigurationTS3L2 (hidden)
B2: Module Name | C2: Option ID | D2: Option Name | E2: Option List Price | F2: SKUs | G2: Qty | H2: SKU Customer Kit | I2: Attributo | J2: Valore inserito | L2: N° | M2: Codice Convenzione
A3: PowerEdge T640 Server | D3: =VLOOKUP(L3,Tabella_prezzi!$A$3:$J$308,8,FALSE) -> PowerEdge T640 Server | H3: =VLOOKUP(L3,Tabella_prezzi!$A$3:$J$308,9,FALSE) -> L1N02-ServerT640 | I3: =VLOOKUP(L3,Tabella_prezzi!$A$3:$J$308,3,FALSE) -> Server Tower bi-processore | J3: =VLOOKUP(L3,Tabella_prezzi!$A$3:$J$308,4,FALSE) -> 2088 | L3: L2N01 | M3: =VLOOKUP(L3,Tabella_prezzi!$A$3:$J$308,6,FALSE) -> TS3L2-SRV
A5: TS3L2_Chassis
A6: Chassis with up to 16 x 2.5" SAS/ SATA Hard Drives, Tower Configuration | G6: ="" ->  | I6: ="" ->  | L6: ="" ->  | M6: ="" -> 
A7: Chassis with up to 16 x 2.5" SAS/ SATA Hard Drives, Rack Configuration | D7: =VLOOKUP(L7,Tabella_prezzi!$A$3:$J$308,8,FALSE) -> Kit composto da: Tower to Rack Conversion Kit; Rack Standard Bezel; 3U Cable Management Arm; Ready Rails 3U Sliding Rails | G7: 1 | H7: =VLOOKUP(L7,Tabella_prezzi!$A$3:$J$308,9,FALSE) -> TS3-OpzA20T640K | I7: =VLOOKUP(L7,Tabella_prezzi!$A$3:$J$308,3,FALSE) -> TS3-OpzA20RKit | K7: =VLOOKUP(L7,Tabella_prezzi!$A$3:$J$308,4,FALSE) -> 270 | L7: L2N22 | M7: =VLOOKUP(L7,Tabella_prezzi!$A$3:$J$308,6,FALSE) -> TS3L2-RACKKIT
A9: TS3L2_CPU
A10: No Additional Processor | I10: ="" ->  | L10: ="" ->  | M10: ="" -> 
A11: Intel Xeon Silver 4214 2.2G, 12C/24T, 9.6GT/s, 16.5M Cache, Turbo, HT (85W) | D11: =VLOOKUP(L11,Tabella_prezzi!$A$3:$J$308,8,FALSE) -> Intel® Xeon® Silver 4214 Processor 2.20 GHz, 12C/24T | G11: 1 | H11: =VLOOKUP(L11,Tabella_prezzi!$A$3:$J$308,9,FALSE) -> L2N02-OpzCPU | I11: =VLOOKUP(L11,Tabella_prezzi!$A$3:$J$308,3,FALSE) -> Kit n. 1 Processore aggiuntivo | J11: =VLOOKUP(L11,Tabella_prezzi!$A$3:$J$308,4,FALSE) -> 590 | L11: L2N02 | M11: =VLOOKUP(L11,Tabella_prezzi!$A$3:$J$308,6,FALSE) -> TS3L2-CPU
A13: TS3L2_RAM (1CPU)
A14: 32GB | B14: Memory Capacity | D14: =D15 -> 16GB 2Rx8 DDR4 RDIMM 3200MHz | F14: =F15 -> 370-AEQF | G14: 0 | H14: =H15 -> L2N03-OpzRAM16GB | I14: ="" ->  | L14: ="" ->  | M14: ="" -> 
A15: 48GB | B15: Memory Capacity | D15: =VLOOKUP(L15,Tabella_prezzi!$A$3:$J$308,8,FALSE) -> 16GB 2Rx8 DDR4 RDIMM 3200MHz | F15: 370-AEQF | G15: 1 | H15: =VLOOKUP(L15,Tabella_prezzi!$A$3:$J$308,9,FALSE) -> L2N03-OpzRAM16GB | I15: =VLOOKUP(L15,Tabella_prezzi!$A$3:$J$308,3,FALSE) -> OpzRAM16GB | J15: =VLOOKUP(L15,Tabella_prezzi!$A$3:$J$308,4,FALSE)*G15 -> 99 | L15: L2N03 | M15: =VLOOKUP(L15,Tabella_prezzi!$A$3:$J$308,6,FALSE) -> TS3L2-RAM16
A16: 64GB | B16: Memory Capacity | D16: =VLOOKUP(L16,Tabella_prezzi!$A$3:$J$308,8,FALSE) -> 16GB 2Rx8 DDR4 RDIMM 3200MHz | F16: 370-AEQF | G16: 2 | H16: =VLOOKUP(L16,Tabella_prezzi!$A$3:$J$308,9,FALSE) -> L2N03-OpzRAM16GB | I16: =VLOOKUP(L16,Tabella_prezzi!$A$3:$J$308,3,FALSE) -> OpzRAM16GB | J16: =VLOOKUP(L16,Tabella_prezzi!$A$3:$J$308,4,FALSE)*G16 -> 198 | L16: L2N03 | M16: =VLOOKUP(L16,Tabella_prezzi!$A$3:$J$308,6,FALSE) -> TS3L2-RAM16
A17: 96GB | B17: Memory Capacity | D17: =VLOOKUP(L17,Tabella_prezzi!$A$3:$J$308,8,FALSE) -> 16GB 2Rx8 DDR4 RDIMM 3200MHz | F17: 370-AEQF | G17: 4 | H17: =VLOOKUP(L17,Tabella_prezzi!$A$3:$J$308,9,FALSE) -> L2N03-OpzRAM16GB | I17: =VLOOKUP(L17,Tabella_prezzi!$A$3:$J$308,3,FALSE) -> OpzRAM16GB | J17: =VLOOKUP(L17,Tabella_prezzi!$A$3:$J$308,4,FALSE)*G17 -> 396 | L17: L2N03 | M17: =VLOOKUP(L17,Tabella_prezzi!$A$3:$J$308,6,FALSE) -> TS3L2-RAM16
A18: 128GB | B18: Memory Capacity | D18: =VLOOKUP(L18,Tabella_prezzi!$A$3:$J$308,8,FALSE) -> 16GB 2Rx8 DDR4 RDIMM 3200MHz | F18: 370-AEQF | G18: 6 | H18: =VLOOKUP(L18,Tabella_prezzi!$A$3:$J$308,9,FALSE) -> L2N03-OpzRAM16GB | I18: =VLOOKUP(L18,Tabella_prezzi!$A$3:$J$308,3,FALSE) -> OpzRAM16GB | J18: =VLOOKUP(L18,Tabella_prezzi!$A$3:$J$308,4,FALSE)*G18 -> 594 | L18: L2N03 | M18: =VLOOKUP(L18,Tabella_prezzi!$A$3:$J$308,6,FALSE) -> TS3L2-RAM16
A19: 160GB | B19: Memory Capacity | D19: =VLOOKUP(L19,Tabella_prezzi!$A$3:$J$308,8,FALSE) -> 16GB 2Rx8 DDR4 RDIMM 3200MHz | F19: 370-AEQF | G19: 8 | H19: =VLOOKUP(L19,Tabella_prezzi!$A$3:$J$308,9,FALSE) -> L2N03-OpzRAM16GB | I19: =VLOOKUP(L19,Tabella_prezzi!$A$3:$J$308,3,FALSE) -> OpzRAM16GB | J19: =VLOOKUP(L19,Tabella_prezzi!$A$3:$J$308,4,FALSE)*G19 -> 792 | L19: L2N03 | M19: =VLOOKUP(L19,Tabella_prezzi!$A$3:$J$308,6,FALSE) -> TS3L2-RAM16
A20: 192GB | B20: Memory Capacity | D20: =VLOOKUP(L20,Tabella_prezzi!$A$3:$J$308,8,FALSE) -> 16GB 2Rx8 DDR4 RDIMM 3200MHz | F20: 370-AEQF | G20: 10 | H20: =VLOOKUP(L20,Tabella_prezzi!$A$3:$J$308,9,FALSE) -> L2N03-OpzRAM16GB | I20: =VLOOKUP(L20,Tabella_prezzi!$A$3:$J$308,3,FALSE) -> OpzRAM16GB | J20: =VLOOKUP(L20,Tabella_prezzi!$A$3:$J$308,4,FALSE)*G20 -> 990 | L20: L2N03 | M20: =VLOOKUP(L20,Tabella_prezzi!$A$3:$J$308,6,FALSE) -> TS3L2-RAM16
A22: TS3L2_RAM (2CPU)
A23: 32GB | B23: Memory Capacity | D23: =D24 -> 16GB 2Rx8 DDR4 RDIMM 3200MHz | F23: =F24 -> 370-AEQF | G23: 0 | H23: =H24 -> L2N03-OpzRAM16GB | I23: ="" ->  | L23: ="" ->  | M23: ="" -> 
A24: 48GB | B24: Memory Capacity | D24: =VLOOKUP(L24,Tabella_prezzi!$A$3:$J$308,8,FALSE) -> 16GB 2Rx8 DDR4 RDIMM 3200MHz | F24: 370-AEQF | G24: 1 | H24: =VLOOKUP(L24,Tabella_prezzi!$A$3:$J$308,9,FALSE) -> L2N03-OpzRAM16GB | I24: =VLOOKUP(L24,Tabella_prezzi!$A$3:$J$308,3,FALSE) -> OpzRAM16GB | J24: =VLOOKUP(L24,Tabella_prezzi!$A$3:$J$308,4,FALSE) -> 99 | L24: L2N03 | M24: =VLOOKUP(L24,Tabella_prezzi!$A$3:$J$308,6,FALSE) -> TS3L2-RAM16
A25: 64GB | B25: Memory Capacity | D25: =VLOOKUP(L25,Tabella_prezzi!$A$3:$J$308,8,FALSE) -> 16GB 2Rx8 DDR4 RDIMM 3200MHz | F25: 370-AEQF | G25: 2 | H25: =VLOOKUP(L25,Tabella_prezzi!$A$3:$J$308,9,FALSE) -> L2N03-OpzRAM16GB | I25: =VLOOKUP(L25,Tabella_prezzi!$A$3:$J$308,3,FALSE) -> OpzRAM16GB | J25: =VLOOKUP(L25,Tabella_prezzi!$A$3:$J$308,4,FALSE)*G25 -> 198 | L25: L2N03 | M25: =VLOOKUP(L25,Tabella_prezzi!$A$3:$J$308,6,FALSE) -> TS3L2-RAM16
A26: 96GB | B26: Memory Capacity | D26: =VLOOKUP(L26,Tabella_prezzi!$A$3:$J$308,8,FALSE) -> 16GB 2Rx8 DDR4 RDIMM 3200MHz | F26: 370-AEQF | G26: 4 | H26: =VLOOKUP(L26,Tabella_prezzi!$A$3:$J$308,9,FALSE) -> L2N03-OpzRAM16GB | I26: =VLOOKUP(L26,Tabella_prezzi!$A$3:$J$308,3,FALSE) -> OpzRAM16GB | J26: =VLOOKUP(L26,Tabella_prezzi!$A$3:$J$308,4,FALSE)*G26 -> 396 | L26: L2N03 | M26: =VLOOKUP(L26,Tabella_prezzi!$A$3:$J$308,6,FALSE) -> TS3L2-RAM16
A27: 128GB | B27: Memory Capacity | D27: =VLOOKUP(L27,Tabella_prezzi!$A$3:$J$308,8,FALSE) -> 16GB 2Rx8 DDR4 RDIMM 3200MHz | F27: 370-AEQF | G27: 6 | H27: =VLOOKUP(L27,Tabella_prezzi!$A$3:$J$308,9,FALSE) -> L2N03-OpzRAM16GB | I27: =VLOOKUP(L27,Tabella_prezzi!$A$3:$J$308,3,FALSE) -> OpzRAM16GB | J27: =VLOOKUP(L27,Tabella_prezzi!$A$3:$J$308,4,FALSE)*G27 -> 594 | L27: L2N03 | M27: =VLOOKUP(L27,Tabella_prezzi!$A$3:$J$308,6,FALSE) -> TS3L2-RAM16
A28: 160GB | B28: Memory Capacity | D28: =VLOOKUP(L28,Tabella_prezzi!$A$3:$J$308,8,FALSE) -> 16GB 2Rx8 DDR4 RDIMM 3200MHz | F28: 370-AEQF | G28: 8 | H28: =VLOOKUP(L28,Tabella_prezzi!$A$3:$J$308,9,FALSE) -> L2N03-OpzRAM16GB | I28: =VLOOKUP(L28,Tabella_prezzi!$A$3:$J$308,3,FALSE) -> OpzRAM16GB | J28: =VLOOKUP(L28,Tabella_prezzi!$A$3:$J$308,4,FALSE)*G28 -> 792 | L28: L2N03 | M28: =VLOOKUP(L28,Tabella_prezzi!$A$3:$J$308,6,FALSE) -> TS3L2-RAM16
A29: 192GB | B29: Memory Capacity | D29: =VLOOKUP(L29,Tabella_prezzi!$A$3:$J$308,8,FALSE) -> 16GB 2Rx8 DDR4 RDIMM 3200MHz | F29: 370-AEQF | G29: 10 | H29: =VLOOKUP(L29,Tabella_prezzi!$A$3:$J$308,9,FALSE) -> L2N03-OpzRAM16GB | I29: =VLOOKUP(L29,Tabella_prezzi!$A$3:$J$308,3,FALSE) -> OpzRAM16GB | J29: =VLOOKUP(L29,Tabella_prezzi!$A$3:$J$308,4,FALSE)*G29 -> 990 | L29: L2N03 | M29: =VLOOKUP(L29,Tabella_prezzi!$A$3:$J$308,6,FALSE) -> TS3L2-RAM16
A30: 224GB | B30: Memory Capacity | D30: =VLOOKUP(L30,Tabella_prezzi!$A$3:$J$308,8,FALSE) -> 16GB 2Rx8 DDR4 RDIMM 3200MHz | F30: 370-AEQF | G30: 12 | H30: =VLOOKUP(L30,Tabella_prezzi!$A$3:$J$308,9,FALSE) -> L2N03-OpzRAM16GB | I30: =VLOOKUP(L30,Tabella_prezzi!$A$3:$J$308,3,FALSE) -> OpzRAM16GB | J30: =VLOOKUP(L30,Tabella_prezzi!$A$3:$J$308,4,FALSE)*G30 -> 1188 | L30: L2N03 | M30: =VLOOKUP(L30,Tabella_prezzi!$A$3:$J$308,6,FALSE) -> TS3L2-RAM16
A31: 256GB | B31: Memory Capacity | D31: =VLOOKUP(L31,Tabella_prezzi!$A$3:$J$308,8,FALSE) -> 16GB 2Rx8 DDR4 RDIMM 3200MHz | F31: 370-AEQF | G31: 14 | H31: =VLOOKUP(L31,Tabella_prezzi!$A$3:$J$308,9,FALSE) -> L2N03-OpzRAM16GB | I31: =VLOOKUP(L31,Tabella_prezzi!$A$3:$J$308,3,FALSE) -> OpzRAM16GB | J31: =VLOOKUP(L31,Tabella_prezzi!$A$3:$J$308,4,FALSE)*G31 -> 1386 | L31: L2N03 | M31: =VLOOKUP(L31,Tabella_prezzi!$A$3:$J$308,6,FALSE) -> TS3L2-RAM16
A32: 320GB | B32: Memory Capacity | D32: =VLOOKUP(L32,Tabella_prezzi!$A$3:$J$308,8,FALSE) -> 16GB 2Rx8 DDR4 RDIMM 3200MHz | F32: 370-AEQF | G32: 18 | H32: =VLOOKUP(L32,Tabella_prezzi!$A$3:$J$308,9,FALSE) -> L2N03-OpzRAM16GB | I32: =VLOOKUP(L32,Tabella_prezzi!$A$3:$J$308,3,FALSE) -> OpzRAM16GB | J32: =VLOOKUP(L32,Tabella_prezzi!$A$3:$J$308,4,FALSE)*G32 -> 1782 | L32: L2N03 | M32: =VLOOKUP(L32,Tabella_prezzi!$A$3:$J$308,6,FALSE) -> TS3L2-RAM16
A33: 352GB | B33: Memory Capacity | D33: =VLOOKUP(L33,Tabella_prezzi!$A$3:$J$308,8,FALSE) -> 16GB 2Rx8 DDR4 RDIMM 3200MHz | F33: 370-AEQF | G33: 20 | H33: =VLOOKUP(L33,Tabella_prezzi!$A$3:$J$308,9,FALSE) -> L2N03-OpzRAM16GB | I33: =VLOOKUP(L33,Tabella_prezzi!$A$3:$J$308,3,FALSE) -> OpzRAM16GB | J33: =VLOOKUP(L33,Tabella_prezzi!$A$3:$J$308,4,FALSE)*G33 -> 1980 | L33: L2N03 | M33: =VLOOKUP(L33,Tabella_prezzi!$A$3:$J$308,6,FALSE) -> TS3L2-RAM16
A34: 384GB | B34: Memory Capacity | D34: =VLOOKUP(L34,Tabella_prezzi!$A$3:$J$308,8,FALSE) -> 16GB 2Rx8 DDR4 RDIMM 3200MHz | F34: 370-AEQF | G34: 22 | H34: =VLOOKUP(L34,Tabella_prezzi!$A$3:$J$308,9,FALSE) -> L2N03-OpzRAM16GB | I34: =VLOOKUP(L34,Tabella_prezzi!$A$3:$J$308,3,FALSE) -> OpzRAM16GB | J34: =VLOOKUP(L34,Tabella_prezzi!$A$3:$J$308,4,FALSE)*G34 -> 2178 | L34: L2N03 | M34: =VLOOKUP(L34,Tabella_prezzi!$A$3:$J$308,6,FALSE) -> TS3L2-RAM16
A36: TS3L2_OS
A37: No Operating System | B37: Operating System | G37: ="" ->  | I37: ="" ->  | L37: ="" ->  | M37: ="" ->  | N37: 0 | P37: ="" ->  | Q37: ="" ->  | R37: ="" ->  | S37: ="" ->  | T37: ="" -> 
A38: [TS3L2-WINSRVSTD] Windows Server® 2019 Standard | B38: Operating System | D38: =VLOOKUP(L38,Tabella_prezzi!$A$3:$J$308,8,FALSE) -> Windows Server 2019 Standard, ROK, 16CORE | G38: 1 | H38: =VLOOKUP(L38,Tabella_prezzi!$A$3:$J$308,9,FALSE) -> L2N12-OpzWinServSTD | I38: =VLOOKUP(L38,Tabella_prezzi!$A$3:$J$308,3,FALSE) -> OpzWinServSTD | J38: =VLOOKUP(L38,Tabella_prezzi!$A$3:$J$308,4,FALSE) -> 732 | L38: L2N12 | M38: =VLOOKUP(L38,Tabella_prezzi!$A$3:$J$308,6,FALSE) -> TS3L2-WINSRVSTD | N38: 4 | O38: =VLOOKUP(S38,Tabella_prezzi!$A$3:$J$308,9,FALSE) -> L2N13-OpzWinServSTD2core | P38: =VLOOKUP(S38,Tabella_prezzi!$A$3:$J$308,3,FALSE) -> OpzWinServSTD2core | Q38: =VLOOKUP(S38,Tabella_prezzi!$A$3:$J$308,4,FALSE)*N38 -> 376 | S38: L2N13 | T38: =VLOOKUP(S38,Tabella_prezzi!$A$3:$J$308,6,FALSE) -> TS3L2-WINSRV2C
A39: [TS3L2-LINUX] Ubuntu 18.04 LTS 64 Bit | B39: Operating System | D39: =VLOOKUP(L39,Tabella_prezzi!$A$3:$J$308,8,FALSE) -> Ubuntu 18.04 LTS 64 Bit | G39: 1 | H39: =VLOOKUP(L39,Tabella_prezzi!$A$3:$J$308,9,FALSE) -> L2N16-OpzOpenSource | I39: =VLOOKUP(L39,Tabella_prezzi!$A$3:$J$308,3,FALSE) -> OpzOpenSource | J39: =VLOOKUP(L39,Tabella_prezzi!$A$3:$J$308,4,FALSE) -> 49 | L39: L2N16 | M39: =VLOOKUP(L39,Tabella_prezzi!$A$3:$J$308,6,FALSE) -> TS3L2-LINUX | N39: 0 | P39: ="" ->  | Q39: ="" ->  | R39: ="" ->  | S39: ="" ->  | T39: ="" -> 
A41: TS3L2_HDD
A42: ="" ->  | G42: ="" ->  | I42: ="" ->  | L42: ="" ->  | M42: ="" -> 
A43: 2.4TB 10K RPM SAS 12Gbps 512e 2.5in Hot-plug | B43: Hard Drives | D43: =VLOOKUP(L43,Tabella_prezzi!$A$3:$J$308,8,FALSE) -> 2.4TB 10K RPM SAS 12Gbps 512e 2.5in Hot-plug | G43: 1 | H43: =VLOOKUP(L43,Tabella_prezzi!$A$3:$J$308,9,FALSE) -> L2N05-OpzHDD2TB | I43: =VLOOKUP(L43,Tabella_prezzi!$A$3:$J$308,3,FALSE) -> OpzHDD2TB | J43: =VLOOKUP(L43,Tabella_prezzi!$A$3:$J$308,4,FALSE) -> 226 | L43: L2N05 | M43: =VLOOKUP(L43,Tabella_prezzi!$A$3:$J$308,6,FALSE) -> TS3L2-HDD2TB
A44: 1.2TB 10K RPM SAS 12Gbps 2.5in Hot-plug | B44: Hard Drives | D44: =VLOOKUP(L44,Tabella_prezzi!$A$3:$J$308,8,FALSE) -> 1.2TB 10K RPM SAS 12Gbps 2.5in Hot-plug | G44: 1 | H44: =VLOOKUP(L44,Tabella_prezzi!$A$3:$J$308,9,FALSE) -> L2N06-OpzHDD1TB | I44: =VLOOKUP(L44,Tabella_prezzi!$A$3:$J$308,3,FALSE) -> OpzHDD1TB | J44: =VLOOKUP(L44,Tabella_prezzi!$A$3:$J$308,4,FALSE) -> 141 | L44: L2N06 | M44: =VLOOKUP(L44,Tabella_prezzi!$A$3:$J$308,6,FALSE) -> TS3L2-HDD1TB
A45: 300GB 15K RPM SAS 12Gbps 2.5in Hot-plug | B45: Hard Drives | D45: =VLOOKUP(L45,Tabella_prezzi!$A$3:$J$308,8,FALSE) -> 300GB 15K RPM SAS 12Gbps 2.5in Hot-plug | G45: 1 | H45: =VLOOKUP(L45,Tabella_prezzi!$A$3:$J$308,9,FALSE) -> L2N07-OpzHDD300GB | I45: =VLOOKUP(L45,Tabella_prezzi!$A$3:$J$308,3,FALSE) -> OpzHDD300GB | J45: =VLOOKUP(L45,Tabella_prezzi!$A$3:$J$308,4,FALSE) -> 92 | L45: L2N07 | M45: =VLOOKUP(L45,Tabella_prezzi!$A$3:$J$308,6,FALSE) -> TS3L2-HDD300GB
A46: 960GB SSD SAS Read Intensive 12Gbps 2.5in Hot-plug | B46: Hard Drives | D46: =VLOOKUP(L46,Tabella_prezzi!$A$3:$J$308,8,FALSE) -> 960GB SSD SAS Read Intensive 12Gbps 2.5in Hot-plug | G46: 1 | H46: =VLOOKUP(L46,Tabella_prezzi!$A$3:$J$308,9,FALSE) -> L2N08-OpzSSD-RI800GB | I46: =VLOOKUP(L46,Tabella_prezzi!$A$3:$J$308,3,FALSE) -> OpzSSD-RI800GB | J46: =VLOOKUP(L46,Tabella_prezzi!$A$3:$J$308,4,FALSE) -> 727 | L46: L2N08 | M46: =VLOOKUP(L46,Tabella_prezzi!$A$3:$J$308,6,FALSE) -> TS3L2-RI800GB
A47: 480GB SSD SAS Read Intensive 12Gbps 2.5in Hot-plug | B47: Hard Drives | D47: =VLOOKUP(L47,Tabella_prezzi!$A$3:$J$308,8,FALSE) -> 480GB SSD SAS Read Intensive 12Gbps 2.5in Hot-plug | G47: 1 | H47: =VLOOKUP(L47,Tabella_prezzi!$A$3:$J$308,9,FALSE) -> L2N09- OpzSSD-RI400GB | I47: =VLOOKUP(L47,Tabella_prezzi!$A$3:$J$308,3,FALSE) -> OpzSSD-RI400GB | J47: =VLOOKUP(L47,Tabella_prezzi!$A$3:$J$308,4,FALSE) -> 394 | L47: L2N09 | M47: =VLOOKUP(L47,Tabella_prezzi!$A$3:$J$308,6,FALSE) -> TS3L2-RI400GB
A49: TS3L2_RAID
A50: PERC H730P+ Adapter RAID Controller, 2GB | B50: Controller Raid | G50: ="" ->  | I50: ="" ->  | L50: ="" ->  | M50: ="" -> 
A51: PERC H740P Adapter RAID Controller, 8GB | B51: Controller Raid | D51: =VLOOKUP(L51,Tabella_prezzi!$A$3:$J$308,8,FALSE) -> Dell PERC H740P RAID Controller in sostituzione del Controller in configurazione BASE | G51: 1 | H51: =VLOOKUP(L51,Tabella_prezzi!$A$3:$J$308,9,FALSE) -> TS3-OpzA20H740P | I51: =VLOOKUP(L51,Tabella_prezzi!$A$3:$J$308,3,FALSE) -> 0 | K51: =VLOOKUP(L51,Tabella_prezzi!$A$3:$J$308,4,FALSE) -> 672 | L51: L2N30 | M51: =VLOOKUP(L51,Tabella_prezzi!$A$3:$J$308,6,FALSE) -> TS3L2-H740P
A53: TS3L2_PSU
A54: Single, Hot-plug Power Supply 1+0, 495W | B54: Power Supply | C54: GBF3YIX | D54: Single, Hot-plug Power Supply 1+0, 495W | F54: 450-AHVN | G54: ="" ->  | I54: ="" ->  | L54: ="" ->  | M54: ="" -> 
A55: -=-=-=-=-=-=-=-=-=-=-=-=-=-=-=-=-20%-=-=-=-=-=-=-=-=-=-=-=-=-=-=-=-=- | G55: ="" ->  | I55: ="" ->  | L55: ="" ->  | M55: ="" -> 
A56: [TS3L1-PSU] Dual, Hot-plug, Redundant Power Supply 1+1, 495W | B56: Power Supply | C56: GZ8351O | D56: =VLOOKUP(L56,Tabella_prezzi!$A$3:$J$308,8,FALSE) -> Single, Hot-plug Power Supply (1+0), 495W,CusKit | F56: 450-AHVO | G56: 1 | H56: =VLOOKUP(L56,Tabella_prezzi!$A$3:$J$308,9,FALSE) -> 0 | I56: =VLOOKUP(L56,Tabella_prezzi!$A$3:$J$308,3,FALSE) -> OpzPowerSupply | K56: =VLOOKUP(L56,Tabella_prezzi!$A$3:$J$308,4,FALSE) -> 82 | L56: L1N18 | M56: =VLOOKUP(L56,Tabella_prezzi!$A$3:$J$308,6,FALSE) -> TS3L1-PSU
A59: TS3L2_AddCPU
A60: ="" -> 
A61: Aggiungere Secondo Processore
A63: TS3L2_PCI1
A64: ="" ->  | G64: ="" ->  | I64: ="" ->  | L64: ="" ->  | M64: ="" -> 
A65: [TS3L2-LAN1] Broadcom 5720 Dual Port 1GbE BASE-T Adapter | B65: Additional Network Cards | C65: GI7RBKF | D65: =VLOOKUP(L65,Tabella_prezzi!$A$3:$J$308,8,FALSE) -> Broadcom 5720 DP 1Gb NIC,Full Height | F65: 540-BBCX | G65: 1 | H65: =VLOOKUP(L65,Tabella_prezzi!$A$3:$J$308,9,FALSE) -> L2N04-OpzGigabit | I65: =VLOOKUP(L65,Tabella_prezzi!$A$3:$J$308,3,FALSE) -> OpzGigabit | J65: =VLOOKUP(L65,Tabella_prezzi!$A$3:$J$308,4,FALSE) -> 26 | L65: L2N04 | M65: =VLOOKUP(L65,Tabella_prezzi!$A$3:$J$308,6,FALSE) -> TS3L2-LAN1
A66: -=-=-=-=-=-=-=-=-=-=-=-=-=-=-=-=-20%-=-=-=-=-=-=-=-=-=-=-=-=-=-=-=-=- | G66: ="" ->  | I66: ="" ->  | L66: ="" ->  | M66: ="" -> 
A67: [TS3L2-BOSS240] BOSS controller card, full height, with 2 240G M.2 Drives | B67: BOSS Card | D67: =VLOOKUP(L67,Tabella_prezzi!$A$3:$J$308,8,FALSE) -> BOSS controller card, full height, with 2 240G M.2 Drives | G67: 1 | I67: =VLOOKUP(L67,Tabella_prezzi!$A$3:$J$308,3,FALSE) -> OpzBOSS240 | K67: =VLOOKUP(L67,Tabella_prezzi!$A$3:$J$308,4,FALSE) -> 429 | L67: L2N20 | M67: =VLOOKUP(L67,Tabella_prezzi!$A$3:$J$308,6,FALSE) -> TS3L2-BOSS240
A68: [TS3L2-BOSS480] BOSS controller card, full height, with 2 480G M.2 Drives | B68: BOSS Card | D68: =VLOOKUP(L68,Tabella_prezzi!$A$3:$J$308,8,FALSE) -> BOSS controller card, full height, with 2 480G M.2 Drives | G68: 1 | I68: =VLOOKUP(L68,Tabella_prezzi!$A$3:$J$308,3,FALSE) -> OpzBOSS480 | K68: =VLOOKUP(L68,Tabella_prezzi!$A$3:$J$308,4,FALSE) -> 748 | L68: L2N21 | M68: =VLOOKUP(L68,Tabella_prezzi!$A$3:$J$308,6,FALSE) -> TS3L2-BOSS480
A69: [TS3L2-H840] PERC H840 RAID Adapter for External MD14XX Only, 8GB NV Cache | B69: PERC | D69: =VLOOKUP(L69,Tabella_prezzi!$A$3:$J$308,8,FALSE) -> PERC H840 RAID Adapter for External MD14XX Only, 8GB NV Cache, Full Height | G69: 1 | H69: =VLOOKUP(L69,Tabella_prezzi!$A$3:$J$308,9,FALSE) -> TS3-OpzA20H840 | I69: =VLOOKUP(L69,Tabella_prezzi!$A$3:$J$308,3,FALSE) -> OpzH840 | K69: =VLOOKUP(L69,Tabella_prezzi!$A$3:$J$308,4,FALSE) -> 479 | L69: L2N27 | M69: =VLOOKUP(L69,Tabella_prezzi!$A$3:$J$308,6,FALSE) -> TS3L2-H840
A70: [TS3L2-CNA10] Scheda 41112 DP 10Gb SFP+, 2 x Transceiver SFP+, 10GbE | B70: Additional Network Cards | D70: =VLOOKUP(L70,Tabella_prezzi!$A$3:$J$308,8,FALSE) -> Scheda 41112 DP 10Gb SFP+, 2 x Transceiver SFP+, 10GbE | G70: 1 | H70: =VLOOKUP(L70,Tabella_prezzi!$A$3:$J$308,9,FALSE) -> TS3-OpzA20CNA | I70: =VLOOKUP(L70,Tabella_prezzi!$A$3:$J$308,3,FALSE) -> OpzCNA10Gb | K70: =VLOOKUP(L70,Tabella_prezzi!$A$3:$J$308,4,FALSE) -> 383 | L70: L2N23 | M70: =VLOOKUP(L70,Tabella_prezzi!$A$3:$J$308,6,FALSE) -> TS3L2-CNA10GB
A71: [TS3L2-CNA10M3] Scheda 41112 DP 10Gb SFP+, 2 x Cable, SFP+ to SFP+, 10GbE, Copper Twinax Direct Attach Cable, 3 Meter | B71: Additional Network Cards | C71: Scheda 41112 DP 10Gb SFP+, 2 x Cable, SFP+ to SFP+, 10GbE, Copper Twinax Direct Attach Cable, 3 Meter | D71: =VLOOKUP(L71,Tabella_prezzi!$A$3:$J$308,8,FALSE) -> Scheda 41112 DP 10Gb SFP+, 2 x Cable, SFP+ to SFP+, 10GbE, Copper Twinax Direct Attach Cable, 3 Meter | G71: 1 | H71: =VLOOKUP(L71,Tabella_prezzi!$A$3:$J$308,9,FALSE) -> TS3-OpzA20CNA3M | I71: =VLOOKUP(L71,Tabella_prezzi!$A$3:$J$308,3,FALSE) -> OpzCNA10Gb | K71: =VLOOKUP(L71,Tabella_prezzi!$A$3:$J$308,4,FALSE) -> 411 | L71: L2N29 | M71: =VLOOKUP(L71,Tabella_prezzi!$A$3:$J$308,6,FALSE) -> TS3L2-CNA10M3
A73: TS3L2_PCI2
A74: ="" ->  | G74: ="" ->  | I74: ="" ->  | L74: ="" ->  | M74: ="" -> 
A75: [TS3L2-LAN1] Broadcom 5720 Dual Port 1GbE BASE-T Adapter | B75: Additional Network Cards | C75: GI7RBKF | D75: =VLOOKUP(L75,Tabella_prezzi!$A$3:$J$308,8,FALSE) -> Broadcom 5720 DP 1Gb NIC,Full Height | F75: 540-BBCX | G75: 1 | H75: =VLOOKUP(L75,Tabella_prezzi!$A$3:$J$308,9,FALSE) -> L2N04-OpzGigabit | I75: =VLOOKUP(L75,Tabella_prezzi!$A$3:$J$308,3,FALSE) -> OpzGigabit | J75: =VLOOKUP(L75,Tabella_prezzi!$A$3:$J$308,4,FALSE) -> 26 | L75: L2N04 | M75: =VLOOKUP(L75,Tabella_prezzi!$A$3:$J$308,6,FALSE) -> TS3L2-LAN1
A77: TS3L2_PCI3
A78: ="" ->  | G78: ="" ->  | I78: ="" ->  | L78: ="" ->  | M78: ="" -> 
A79: [TS3L2-LAN1] Broadcom 5720 Dual Port 1GbE BASE-T Adapter | B79: Additional Network Cards | C79: GI7RBKF | D79: =VLOOKUP(L79,Tabella_prezzi!$A$3:$J$308,8,FALSE) -> Broadcom 5720 DP 1Gb NIC,Full Height | F79: 540-BBCX | G79: 1 | H79: =VLOOKUP(L79,Tabella_prezzi!$A$3:$J$308,9,FALSE) -> L2N04-OpzGigabit | I79: =VLOOKUP(L79,Tabella_prezzi!$A$3:$J$308,3,FALSE) -> OpzGigabit | J79: =VLOOKUP(L79,Tabella_prezzi!$A$3:$J$308,4,FALSE) -> 26 | L79: L2N04 | M79: =VLOOKUP(L79,Tabella_prezzi!$A$3:$J$308,6,FALSE) -> TS3L2-LAN1
A81: TS3L2_PCI4
A82: ="" ->  | G82: ="" ->  | I82: ="" ->  | L82: ="" ->  | M82: ="" -> 
A83: [TS3L2-LAN1] Broadcom 5720 Dual Port 1GbE BASE-T Adapter | B83: Additional Network Cards | C83: GI7RBKF | D83: =VLOOKUP(L83,Tabella_prezzi!$A$3:$J$308,8,FALSE) -> Broadcom 5720 DP 1Gb NIC,Full Height | F83: 540-BBCX | G83: 1 | H83: =VLOOKUP(L83,Tabella_prezzi!$A$3:$J$308,9,FALSE) -> L2N04-OpzGigabit | I83: =VLOOKUP(L83,Tabella_prezzi!$A$3:$J$308,3,FALSE) -> OpzGigabit | J83: =VLOOKUP(L83,Tabella_prezzi!$A$3:$J$308,4,FALSE) -> 26 | L83: L2N04 | M83: =VLOOKUP(L83,Tabella_prezzi!$A$3:$J$308,6,FALSE) -> TS3L2-LAN1
A84: -=-=-=-=-=-=-=-=-=-=-=-=-=-=-=-=-20%-=-=-=-=-=-=-=-=-=-=-=-=-=-=-=-=- | G84: ="" ->  | I84: ="" ->  | L84: ="" ->  | M84: ="" -> 
A85: [TS3L2-BOSS240] BOSS controller card, full height, with 2 240G M.2 Drives | B85: BOSS Card | D85: =VLOOKUP(L85,Tabella_prezzi!$A$3:$J$308,8,FALSE) -> BOSS controller card, full height, with 2 240G M.2 Drives | G85: 1 | I85: =VLOOKUP(L85,Tabella_prezzi!$A$3:$J$308,3,FALSE) -> OpzBOSS240 | K85: =VLOOKUP(L85,Tabella_prezzi!$A$3:$J$308,4,FALSE) -> 429 | L85: L2N20 | M85: =VLOOKUP(L85,Tabella_prezzi!$A$3:$J$308,6,FALSE) -> TS3L2-BOSS240
A86: [TS3L2-BOSS480] BOSS controller card, full height, with 2 480G M.2 Drives | B86: BOSS Card | D86: =VLOOKUP(L86,Tabella_prezzi!$A$3:$J$308,8,FALSE) -> BOSS controller card, full height, with 2 480G M.2 Drives | G86: 1 | I86: =VLOOKUP(L86,Tabella_prezzi!$A$3:$J$308,3,FALSE) -> OpzBOSS480 | K86: =VLOOKUP(L86,Tabella_prezzi!$A$3:$J$308,4,FALSE) -> 748 | L86: L2N21 | M86: =VLOOKUP(L86,Tabella_prezzi!$A$3:$J$308,6,FALSE) -> TS3L2-BOSS480
A87: [TS3L2-H840] PERC H840 RAID Adapter for External MD14XX Only, 8GB NV Cache | B87: PERC | D87: =VLOOKUP(L87,Tabella_prezzi!$A$3:$J$308,8,FALSE) -> PERC H840 RAID Adapter for External MD14XX Only, 8GB NV Cache, Full Height | G87: 1 | H87: =VLOOKUP(L87,Tabella_prezzi!$A$3:$J$308,9,FALSE) -> TS3-OpzA20H840 | I87: =VLOOKUP(L87,Tabella_prezzi!$A$3:$J$308,3,FALSE) -> OpzH840 | K87: =VLOOKUP(L87,Tabella_prezzi!$A$3:$J$308,4,FALSE) -> 479 | L87: L2N27 | M87: =VLOOKUP(L87,Tabella_prezzi!$A$3:$J$308,6,FALSE) -> TS3L2-H840
A88: [TS3L2-CNA10] Scheda 41112 DP 10Gb SFP+, 2 x Transceiver SFP+, 10GbE | B88: Additional Network Cards | D88: =VLOOKUP(L88,Tabella_prezzi!$A$3:$J$308,8,FALSE) -> Scheda 41112 DP 10Gb SFP+, 2 x Transceiver SFP+, 10GbE | G88: 1 | H88: =VLOOKUP(L88,Tabella_prezzi!$A$3:$J$308,9,FALSE) -> TS3-OpzA20CNA | I88: =VLOOKUP(L88,Tabella_prezzi!$A$3:$J$308,3,FALSE) -> OpzCNA10Gb | K88: =VLOOKUP(L88,Tabella_prezzi!$A$3:$J$308,4,FALSE) -> 383 | L88: L2N23 | M88: =VLOOKUP(L88,Tabella_prezzi!$A$3:$J$308,6,FALSE) -> TS3L2-CNA10GB
A89: [TS3L2-CNA10M3] Scheda 41112 DP 10Gb SFP+, 2 x Cable, SFP+ to SFP+, 10GbE, Copper Twinax Direct Attach Cable, 3 Meter | B89: Additional Network Cards | C89: Scheda 41112 DP 10Gb SFP+, 2 x Cable, SFP+ to SFP+, 10GbE, Copper Twinax Direct Attach Cable, 3 Meter | D89: =VLOOKUP(L89,Tabella_prezzi!$A$3:$J$308,8,FALSE) -> Scheda 41112 DP 10Gb SFP+, 2 x Cable, SFP+ to SFP+, 10GbE, Copper Twinax Direct Attach Cable, 3 Meter | G89: 1 | H89: =VLOOKUP(L89,Tabella_prezzi!$A$3:$J$308,9,FALSE) -> TS3-OpzA20CNA3M | I89: =VLOOKUP(L89,Tabella_prezzi!$A$3:$J$308,3,FALSE) -> OpzCNA10Gb | K89: =VLOOKUP(L89,Tabella_prezzi!$A$3:$J$308,4,FALSE) -> 411 | L89: L2N29 | M89: =VLOOKUP(L89,Tabella_prezzi!$A$3:$J$308,6,FALSE) -> TS3L2-CNA10M3
A91: TS3L2_PCI5
A92: ="" ->  | G92: ="" ->  | I92: ="" ->  | L92: ="" ->  | M92: ="" -> 
A93: [TS3L2-LAN1] Broadcom 5720 Dual Port 1GbE BASE-T Adapter | B93: Additional Network Cards | C93: GI7RBKF | D93: =VLOOKUP(L93,Tabella_prezzi!$A$3:$J$308,8,FALSE) -> Broadcom 5720 DP 1Gb NIC,Full Height | F93: 540-BBCX | G93: 1 | H93: =VLOOKUP(L93,Tabella_prezzi!$A$3:$J$308,9,FALSE) -> L2N04-OpzGigabit | I93: =VLOOKUP(L93,Tabella_prezzi!$A$3:$J$308,3,FALSE) -> OpzGigabit | J93: =VLOOKUP(L93,Tabella_prezzi!$A$3:$J$308,4,FALSE) -> 26 | L93: L2N04 | M93: =VLOOKUP(L93,Tabella_prezzi!$A$3:$J$308,6,FALSE) -> TS3L2-LAN1
A95: TS3L2_PCI6
A96: ="" ->  | G96: ="" ->  | I96: ="" ->  | L96: ="" ->  | M96: ="" -> 
A97: [TS3L2-LAN1] Broadcom 5720 Dual Port 1GbE BASE-T Adapter | B97: Additional Network Cards | C97: GI7RBKF | D97: =VLOOKUP(L97,Tabella_prezzi!$A$3:$J$308,8,FALSE) -> Broadcom 5720 DP 1Gb NIC,Full Height | F97: 540-BBCX | G97: 1 | H97: =VLOOKUP(L97,Tabella_prezzi!$A$3:$J$308,9,FALSE) -> L2N04-OpzGigabit | I97: =VLOOKUP(L97,Tabella_prezzi!$A$3:$J$308,3,FALSE) -> OpzGigabit | J97: =VLOOKUP(L97,Tabella_prezzi!$A$3:$J$308,4,FALSE) -> 26 | L97: L2N04 | M97: =VLOOKUP(L97,Tabella_prezzi!$A$3:$J$308,6,FALSE) -> TS3L2-LAN1
A98: -=-=-=-=-=-=-=-=-=-=-=-=-=-=-=-=-20%-=-=-=-=-=-=-=-=-=-=-=-=-=-=-=-=- | G98: ="" ->  | I98: ="" ->  | L98: ="" ->  | M98: ="" -> 
A99: [TS3L2-BOSS240] BOSS controller card, full height, with 2 240G M.2 Drives | B99: BOSS Card | D99: =VLOOKUP(L99,Tabella_prezzi!$A$3:$J$308,8,FALSE) -> BOSS controller card, full height, with 2 240G M.2 Drives | G99: 1 | I99: =VLOOKUP(L99,Tabella_prezzi!$A$3:$J$308,3,FALSE) -> OpzBOSS240 | K99: =VLOOKUP(L99,Tabella_prezzi!$A$3:$J$308,4,FALSE) -> 429 | L99: L2N20 | M99: =VLOOKUP(L99,Tabella_prezzi!$A$3:$J$308,6,FALSE) -> TS3L2-BOSS240
A100: [TS3L2-BOSS480] BOSS controller card, full height, with 2 480G M.2 Drives | B100: BOSS Card | D100: =VLOOKUP(L100,Tabella_prezzi!$A$3:$J$308,8,FALSE) -> BOSS controller card, full height, with 2 480G M.2 Drives | G100: 1 | I100: =VLOOKUP(L100,Tabella_prezzi!$A$3:$J$308,3,FALSE) -> OpzBOSS480 | K100: =VLOOKUP(L100,Tabella_prezzi!$A$3:$J$308,4,FALSE) -> 748 | L100: L2N21 | M100: =VLOOKUP(L100,Tabella_prezzi!$A$3:$J$308,6,FALSE) -> TS3L2-BOSS480
A101: [TS3L2-H840] PERC H840 RAID Adapter for External MD14XX Only, 8GB NV Cache | B101: PERC | D101: =VLOOKUP(L101,Tabella_prezzi!$A$3:$J$308,8,FALSE) -> PERC H840 RAID Adapter for External MD14XX Only, 8GB NV Cache, Full Height | G101: 1 | H101: =VLOOKUP(L101,Tabella_prezzi!$A$3:$J$308,9,FALSE) -> TS3-OpzA20H840 | I101: =VLOOKUP(L101,Tabella_prezzi!$A$3:$J$308,3,FALSE) -> OpzH840 | K101: =VLOOKUP(L101,Tabella_prezzi!$A$3:$J$308,4,FALSE) -> 479 | L101: L2N27 | M101: =VLOOKUP(L101,Tabella_prezzi!$A$3:$J$308,6,FALSE) -> TS3L2-H840
A102: [TS3L2-CNA10] Scheda 41112 DP 10Gb SFP+, 2 x Transceiver SFP+, 10GbE | B102: Additional Network Cards | D102: =VLOOKUP(L102,Tabella_prezzi!$A$3:$J$308,8,FALSE) -> Scheda 41112 DP 10Gb SFP+, 2 x Transceiver SFP+, 10GbE | G102: 1 | H102: =VLOOKUP(L102,Tabella_prezzi!$A$3:$J$308,9,FALSE) -> TS3-OpzA20CNA | I102: =VLOOKUP(L102,Tabella_prezzi!$A$3:$J$308,3,FALSE) -> OpzCNA10Gb | K102: =VLOOKUP(L102,Tabella_prezzi!$A$3:$J$308,4,FALSE) -> 383 | L102: L2N23 | M102: =VLOOKUP(L102,Tabella_prezzi!$A$3:$J$308,6,FALSE) -> TS3L2-CNA10GB
A103: [TS3L2-CNA10M3] Scheda 41112 DP 10Gb SFP+, 2 x Cable, SFP+ to SFP+, 10GbE, Copper Twinax Direct Attach Cable, 3 Meter | B103: Additional Network Cards | C103: Scheda 41112 DP 10Gb SFP+, 2 x Cable, SFP+ to SFP+, 10GbE, Copper Twinax Direct Attach Cable, 3 Meter | D103: =VLOOKUP(L103,Tabella_prezzi!$A$3:$J$308,8,FALSE) -> Scheda 41112 DP 10Gb SFP+, 2 x Cable, SFP+ to SFP+, 10GbE, Copper Twinax Direct Attach Cable, 3 Meter | G103: 1 | H103: =VLOOKUP(L103,Tabella_prezzi!$A$3:$J$308,9,FALSE) -> TS3-OpzA20CNA3M | I103: =VLOOKUP(L103,Tabella_prezzi!$A$3:$J$308,3,FALSE) -> OpzCNA10Gb | K103: =VLOOKUP(L103,Tabella_prezzi!$A$3:$J$308,4,FALSE) -> 411 | L103: L2N29 | M103: =VLOOKUP(L103,Tabella_prezzi!$A$3:$J$308,6,FALSE) -> TS3L2-CNA10M3
A105: TS3L2_PCI7
A106: ="" ->  | G106: ="" ->  | I106: ="" ->  | L106: ="" ->  | M106: ="" -> 
A107: [TS3L2-LAN1] Broadcom 5720 Dual Port 1GbE BASE-T Adapter | B107: Additional Network Cards | C107: GI7RBKF | D107: =VLOOKUP(L107,Tabella_prezzi!$A$3:$J$308,8,FALSE) -> Broadcom 5720 DP 1Gb NIC,Full Height | F107: 540-BBCX | G107: 1 | H107: =VLOOKUP(L107,Tabella_prezzi!$A$3:$J$308,9,FALSE) -> L2N04-OpzGigabit | I107: =VLOOKUP(L107,Tabella_prezzi!$A$3:$J$308,3,FALSE) -> OpzGigabit | J107: =VLOOKUP(L107,Tabella_prezzi!$A$3:$J$308,4,FALSE) -> 26 | L107: L2N04 | M107: =VLOOKUP(L107,Tabella_prezzi!$A$3:$J$308,6,FALSE) -> TS3L2-LAN1
A108: -=-=-=-=-=-=-=-=-=-=-=-=-=-=-=-=-20%-=-=-=-=-=-=-=-=-=-=-=-=-=-=-=-=- | G108: ="" ->  | I108: ="" ->  | L108: ="" ->  | M108: ="" -> 
A109: [TS3L2-BOSS240] BOSS controller card, full height, with 2 240G M.2 Drives | B109: BOSS Card | D109: =VLOOKUP(L109,Tabella_prezzi!$A$3:$J$308,8,FALSE) -> BOSS controller card, full height, with 2 240G M.2 Drives | G109: 1 | I109: =VLOOKUP(L109,Tabella_prezzi!$A$3:$J$308,3,FALSE) -> OpzBOSS240 | J109: =VLOOKUP(L109,Tabella_prezzi!$A$3:$J$308,4,FALSE) -> 429 | L109: L2N20 | M109: =VLOOKUP(L109,Tabella_prezzi!$A$3:$J$308,6,FALSE) -> TS3L2-BOSS240
A110: [TS3L2-BOSS480] BOSS controller card, full height, with 2 480G M.2 Drives | B110: BOSS Card | D110: =VLOOKUP(L110,Tabella_prezzi!$A$3:$J$308,8,FALSE) -> BOSS controller card, full height, with 2 480G M.2 Drives | G110: 1 | I110: =VLOOKUP(L110,Tabella_prezzi!$A$3:$J$308,3,FALSE) -> OpzBOSS480 | J110: =VLOOKUP(L110,Tabella_prezzi!$A$3:$J$308,4,FALSE) -> 748 | L110: L2N21 | M110: =VLOOKUP(L110,Tabella_prezzi!$A$3:$J$308,6,FALSE) -> TS3L2-BOSS480
A111: [TS3L2-H840] PERC H840 RAID Adapter for External MD14XX Only, 8GB NV Cache | B111: PERC | D111: =VLOOKUP(L111,Tabella_prezzi!$A$3:$J$308,8,FALSE) -> PERC H840 RAID Adapter for External MD14XX Only, 8GB NV Cache, Full Height | G111: 1 | H111: =VLOOKUP(L111,Tabella_prezzi!$A$3:$J$308,9,FALSE) -> TS3-OpzA20H840 | I111: =VLOOKUP(L111,Tabella_prezzi!$A$3:$J$308,3,FALSE) -> OpzH840 | K111: =VLOOKUP(L111,Tabella_prezzi!$A$3:$J$308,4,FALSE) -> 479 | L111: L2N27 | M111: =VLOOKUP(L111,Tabella_prezzi!$A$3:$J$308,6,FALSE) -> TS3L2-H840
A112: [TS3L2-CNA10] Scheda 41112 DP 10Gb SFP+, 2 x Transceiver SFP+, 10GbE | B112: Additional Network Cards | D112: =VLOOKUP(L112,Tabella_prezzi!$A$3:$J$308,8,FALSE) -> Scheda 41112 DP 10Gb SFP+, 2 x Transceiver SFP+, 10GbE | G112: 1 | H112: =VLOOKUP(L112,Tabella_prezzi!$A$3:$J$308,9,FALSE) -> TS3-OpzA20CNA | I112: =VLOOKUP(L112,Tabella_prezzi!$A$3:$J$308,3,FALSE) -> OpzCNA10Gb | K112: =VLOOKUP(L112,Tabella_prezzi!$A$3:$J$308,4,FALSE) -> 383 | L112: L2N23 | M112: =VLOOKUP(L112,Tabella_prezzi!$A$3:$J$308,6,FALSE) -> TS3L2-CNA10GB
A113: [TS3L2-CNA10M3] Scheda 41112 DP 10Gb SFP+, 2 x Cable, SFP+ to SFP+, 10GbE, Copper Twinax Direct Attach Cable, 3 Meter | B113: Additional Network Cards | C113: Scheda 41112 DP 10Gb SFP+, 2 x Cable, SFP+ to SFP+, 10GbE, Copper Twinax Direct Attach Cable, 3 Meter | D113: =VLOOKUP(L113,Tabella_prezzi!$A$3:$J$308,8,FALSE) -> Scheda 41112 DP 10Gb SFP+, 2 x Cable, SFP+ to SFP+, 10GbE, Copper Twinax Direct Attach Cable, 3 Meter | G113: 1 | H113: =VLOOKUP(L113,Tabella_prezzi!$A$3:$J$308,9,FALSE) -> TS3-OpzA20CNA3M | I113: =VLOOKUP(L113,Tabella_prezzi!$A$3:$J$308,3,FALSE) -> OpzCNA10Gb | K113: =VLOOKUP(L113,Tabella_prezzi!$A$3:$J$308,4,FALSE) -> 411 | L113: L2N29 | M113: =VLOOKUP(L113,Tabella_prezzi!$A$3:$J$308,6,FALSE) -> TS3L2-CNA10M3
A115: TS3L2_PCI8
A116: ="" ->  | G116: ="" ->  | I116: ="" ->  | L116: ="" ->  | M116: ="" -> 
A117: [TS3L2-LAN1] Broadcom 5720 Dual Port 1GbE BASE-T Adapter | B117: Additional Network Cards | C117: GI7RBKF | D117: =VLOOKUP(L117,Tabella_prezzi!$A$3:$J$308,8,FALSE) -> Broadcom 5720 DP 1Gb NIC,Full Height | F117: 540-BBCX | G117: 1 | H117: =VLOOKUP(L117,Tabella_prezzi!$A$3:$J$308,9,FALSE) -> L2N04-OpzGigabit | I117: =VLOOKUP(L117,Tabella_prezzi!$A$3:$J$308,3,FALSE) -> OpzGigabit | J117: =VLOOKUP(L117,Tabella_prezzi!$A$3:$J$308,4,FALSE) -> 26 | L117: L2N04 | M117: =VLOOKUP(L117,Tabella_prezzi!$A$3:$J$308,6,FALSE) -> TS3L2-LAN1
A119: Cavo “patch” di 3 mt RJ45 certificato per gigabit ethernet | D119: =VLOOKUP(L119,Tabella_prezzi!$A$3:$J$308,8,FALSE) -> Cavo “patch” di 3 mt RJ45 certificato per gigabit ethernet | G119: ="" ->  | H119: =VLOOKUP(L119,Tabella_prezzi!$A$3:$J$308,9,FALSE) -> TS3-OpzA20RJ45 | I119: =VLOOKUP(L119,Tabella_prezzi!$A$3:$J$308,3,FALSE) -> TS3-OpzA20RJ45 | K119: =VLOOKUP(L119,Tabella_prezzi!$A$3:$J$308,4,FALSE) -> 3 | L119: L2N26 | M119: =VLOOKUP(L119,Tabella_prezzi!$A$3:$J$308,6,FALSE) -> TS3L2-RJ453M
A120: Cable, SFP+ to SFP+, 10GbE, Copper Twinax Direct Attach Cable, 3 Meter | D120: Cable, SFP+ to SFP+, 10GbE, Copper Twinax Direct Attach Cable, 3 Meter | G120: ="" ->  | H120: =VLOOKUP(L120,Tabella_prezzi!$A$3:$J$308,9,FALSE) -> 0 | I120: =VLOOKUP(L120,Tabella_prezzi!$A$3:$J$308,3,FALSE) -> OpzDAC3M | K120: =VLOOKUP(L120,Tabella_prezzi!$A$3:$J$308,4,FALSE) -> 9999 | L120: L2N25 | M120: =VLOOKUP(L120,Tabella_prezzi!$A$3:$J$308,6,FALSE) -> TS3L2-DAC3M
A121: Transceiver, SFP+, 10GbE, SR, 850nm Wavelength, 300m | D121: Transceiver, SFP+, 10GbE, SR, 850nm Wavelength, 300m | H121: =VLOOKUP(L121,Tabella_prezzi!$A$3:$J$308,9,FALSE) -> 0 | I121: =VLOOKUP(L121,Tabella_prezzi!$A$3:$J$308,3,FALSE) -> Opz10GBIC | K121: =VLOOKUP(L121,Tabella_prezzi!$A$3:$J$308,4,FALSE) -> 90 | L121: L2N24 | M121: =VLOOKUP(L121,Tabella_prezzi!$A$3:$J$308,6,FALSE) -> TS3L2-10GBIC
A123: TS3L2_BEZEL
A124: No Bezel | B124: Bezel | C124: GKGZ6OF | D124: No Bezel | F124: 350-BBBW | G124: ="" ->  | I124: ="" ->  | L124: ="" ->  | M124: ="" -> 
A125: -=-=-=-=-=-=-=-=-=-=-=-=-=-=-=-=-20%-=-=-=-=-=-=-=-=-=-=-=-=-=-=-=-=- | G125: ="" ->  | I125: ="" ->  | L125: ="" ->  | M125: ="" -> 
A126: [TS3L2-BEZEL] Tower Security Bezel | B126: Bezel | C126: G87WRUY | D126: Tower Security Bezel | F126: 325-BCOO | G126: 1 | H126: =VLOOKUP(L126,Tabella_prezzi!$A$3:$J$308,9,FALSE) -> TS3-OpzA20BT640 | I126: =VLOOKUP(L126,Tabella_prezzi!$A$3:$J$308,3,FALSE) -> TS3-OpzA20BT640 | K126: =VLOOKUP(L126,Tabella_prezzi!$A$3:$J$308,4,FALSE) -> 99.99 | L126: L2N19 | M126: =VLOOKUP(L126,Tabella_prezzi!$A$3:$J$308,6,FALSE) -> TS3L2-BEZEL
A128: TS3L1_DVD
A129: No Internal Optical Drive | B129: Internal Optical Drive | C129: G5M9GE3 | D129: No Internal Optical Drive | F129: 429-ABDL | G129: ="" ->  | I129: ="" ->  | L129: ="" ->  | M129: ="" -> 
A130: -=-=-=-=-=-=-=-=-=-=-=-=-=-=-=-=-20%-=-=-=-=-=-=-=-=-=-=-=-=-=-=-=-=- | G130: ="" ->  | I130: ="" ->  | L130: ="" ->  | M130: ="" -> 
A131: [TS3L1-DVD] DVD +/-RW, SATA, Internal | B131: Internal Optical Drive | C131: GR53HYI | D131: DVD +/-RW, SATA, Internal | F131: 429-ABCJ | G131: 1 | H131: =VLOOKUP(L131,Tabella_prezzi!$A$3:$J$308,9,FALSE) -> 0 | I131: =VLOOKUP(L131,Tabella_prezzi!$A$3:$J$308,3,FALSE) -> OpzDVD | K131: =VLOOKUP(L131,Tabella_prezzi!$A$3:$J$308,4,FALSE) -> 99.99 | L131: L1N28 | M131: =VLOOKUP(L131,Tabella_prezzi!$A$3:$J$308,6,FALSE) -> TS3L1-DVD
A133: TS3L2_WARRANTY
A134: Manutenzione in garanzia (36 mesi) | B134: Dell Services: Extended Service | C134: G5IMJFP | D134: RESTRICTED:ProSupport One Data Center and Next Business Day Onsite Service Volume Low, 39 Month(s) | F134: 865-BBKY, 865-BBKZ | G134: ="" ->  | I134: ="" ->  | L134: ="" ->  | M134: ="" -> 
A135: [TS3L2-5Y] Manutenzione in garanzia (60 mesi) | B135: Dell Services: Extended Service | C135: G5IMJFP | D135: =VLOOKUP(L135,Tabella_prezzi!$A$3:$J$308,8,FALSE) -> Estensione della manutenzione in garanzia per ulteriori 24 mesi | F135: 865-BBKY, 865-BBKZ | G135: 1 | H135: =VLOOKUP(L135,Tabella_prezzi!$A$3:$J$503,9,FALSE) -> L2N18-OpzEstensione24 | I135: =VLOOKUP(L135,Tabella_prezzi!$A$3:$J$503,3,FALSE) -> OpzEstensione24 | J135: =VLOOKUP(L135,Tabella_prezzi!$A$3:$J$503,4,FALSE) -> 79 | L135: L2N18 | M135: =VLOOKUP(L135,Tabella_prezzi!$A$3:$J$308,6,FALSE) -> TS3L2-5Y
A137: TS3L2_KYHDD
A138: ="" ->  | B138: Keep Your Hard Drive | G138: ="" ->  | I138: ="" ->  | L138: ="" ->  | M138: ="" -> 
A139: Hard Disk Retention | B139: Keep Your Hard Drive | C139: GPZX1KQ | D139: =VLOOKUP(L139,Tabella_prezzi!$A$3:$J$308,8,FALSE) -> Hard Disk Retention 36 mesi | F139: 711-BBBR | G139: 1 | H139: =VLOOKUP(L139,Tabella_prezzi!$A$3:$J$503,9,FALSE) -> L2N17-OpzHDDRetention | I139: =VLOOKUP(L139,Tabella_prezzi!$A$3:$J$503,3,FALSE) -> OpzHDDRetention | J139: =VLOOKUP(L139,Tabella_prezzi!$A$3:$J$503,4,FALSE) -> 207 | L139: L2N17 | M139: =VLOOKUP(L139,Tabella_prezzi!$A$3:$J$308,6,FALSE) -> TS3L2-HDRTNTN
A140: Hard Disk Retention (60 mesi) | B140: Keep Your Hard Drive | C140: GPZX1KQ | D140: =VLOOKUP(L140,Tabella_prezzi!$A$3:$J$308,8,FALSE) -> Hard Disk Retention 60 mesi | F140: 711-BBBR | G140: 1 | H140: =VLOOKUP(L140,Tabella_prezzi!$A$3:$J$503,9,FALSE) -> L2N28-OpzHDDRetention60 | I140: =VLOOKUP(L140,Tabella_prezzi!$A$3:$J$503,3,FALSE) -> OpzHDDRetention60 | J140: =VLOOKUP(L140,Tabella_prezzi!$A$3:$J$503,4,FALSE) -> 345 | L140: L2N28 | M140: =VLOOKUP(L140,Tabella_prezzi!$A$3:$J$308,6,FALSE) -> TS3L2-HDRTNTN60
A142: TS3L2_UPS
A143: ="" ->  | G143: ="" ->  | I143: ="" ->  | L143: ="" ->  | M143: ="" -> 
A144: [TS3L2-UPS] UPS PowerMe RPMM/9K - 3000VA Tower | D144: =VLOOKUP(L144,Tabella_prezzi!$A$3:$J$308,8,FALSE) -> UPS PowerMe RPMM/9K - 3000VA Tower | G144: 1 | H144: =VLOOKUP(L144,Tabella_prezzi!$A$3:$J$503,9,FALSE) -> L2N10-OpzUps | I144: =VLOOKUP(L144,Tabella_prezzi!$A$3:$J$503,3,FALSE) -> OpzUps (3000VA) | J144: =VLOOKUP(L144,Tabella_prezzi!$A$3:$J$503,4,FALSE) -> 300 | L144: L2N10 | M144: =VLOOKUP(L144,Tabella_prezzi!$A$3:$J$308,6,FALSE) -> TS3L2-UPS
A146: TS3L2_GUI
A147: ="" ->  | G147: ="" ->  | I147: ="" ->  | L147: ="" ->  | M147: ="" -> 
A148: [TS3L2-GUI] Monitor DELL E1920H + Keyboard + Mouse | D148: =VLOOKUP(L148,Tabella_prezzi!$A$3:$J$308,8,FALSE) -> Monitor 19" E1920H, Mouse MS116, Tastiera KB216 | G148: 1 | H148: =VLOOKUP(L148,Tabella_prezzi!$A$3:$J$503,9,FALSE) -> L2N11-OpzGUI | I148: =VLOOKUP(L148,Tabella_prezzi!$A$3:$J$503,3,FALSE) -> OpzGUI per tower | J148: =VLOOKUP(L148,Tabella_prezzi!$A$3:$J$503,4,FALSE) -> 104 | L148: L2N11 | M148: =VLOOKUP(L148,Tabella_prezzi!$A$3:$J$308,6,FALSE) -> TS3L2-GUI
A150: No Bezel
A151: Bezel già compreso nel Kit TS3L2-RACKKIT
A153: 1-pack of Windows Server 2019/2016 Device CALs (STD or DC) | D153: =VLOOKUP(L153,Tabella_prezzi!$A$3:$J$308,8,FALSE) -> Windows Server 2019 Device CAL (STD or DC) | G153: 1 | H153: =VLOOKUP(L153,Tabella_prezzi!$A$3:$J$503,9,FALSE) -> L2N14-OpzDeviceCal | I153: =VLOOKUP(L153,Tabella_prezzi!$A$3:$J$503,3,FALSE) -> OpzDeviceCal | J153: =VLOOKUP(L153,Tabella_prezzi!$A$3:$J$503,4,FALSE) -> 23 | L153: L2N14 | M153: =VLOOKUP(L153,Tabella_prezzi!$A$3:$J$308,6,FALSE) -> TS3L2-WINDEVCAL
A154: 1-pack of Windows Server 2019/2016 User CALs (STD or DC) | D154: =VLOOKUP(L154,Tabella_prezzi!$A$3:$J$308,8,FALSE) -> Windows Server 2019 User CAL (STD or DC) | G154: 1 | H154: =VLOOKUP(L154,Tabella_prezzi!$A$3:$J$503,9,FALSE) -> L2N15-OpzUserCal | I154: =VLOOKUP(L154,Tabella_prezzi!$A$3:$J$503,3,FALSE) -> OpzUserCal | J154: =VLOOKUP(L154,Tabella_prezzi!$A$3:$J$503,4,FALSE) -> 29 | L154: L2N15 | M154: =VLOOKUP(L154,Tabella_prezzi!$A$3:$J$308,6,FALSE) -> TS3L2-WINUSRCAL

Sheet Tabella_prezzi (hidden)
A2: N° | C2: Attributo | D2: Valore inserito | E2: N° | F2: Codice Convenzione | G2: Qty: | H2: Description: | I2: Sku Number: | J2: Brand | L2: Sku Number:
A3: L1N01 | B3: 1 | C3: Server Tower mono-processore | D3: 1399 | E3: L1N01 | F3: TS3L1-SRV | G3: 1 | H3: PowerEdge T340 Server | J3: DELL | L3: -
A4: L1N02 | B4: 2 | C4: OpzRAM16GB | D4: 98 | E4: L1N02 | F4: TS3L1-RAM16 | G4: 1 | H4: 16GB 2Rx8 DDR4 UDIMM 2666MHz | J4: DELL | L4: AA335286
A5: L1N03 | B5: 3 | C5: OpzGigabit | D5: 25 | E5: L1N03 | F5: TS3L1-LAN1 | G5: 1 | H5: Broadcom 5720 DP 1Gb NIC,Full Height | J5: DELL | L5: 540-BBGY
A6: L1N04 | B6: 4 | C6: OpzHDD8TB | D6: 285 | E6: L1N04 | F6: TS3L1-HDD8TB | G6: 1 | H6: 8TB 7.2K RPM SATA 6Gbps 3.5in Hot-plug | J6: DELL | L6: 400-AHID
A7: L1N05 | B7: 5 | C7: OpzHDD4TB | D7: 194 | E7: L1N05 | F7: TS3L1-HDD4TB | G7: 1 | H7: 4TB 7.2K RPM SATA 6Gbps 3.5in Hot-plug | J7: DELL | L7: 400-AUWY
A8: L1N06 | B8: 6 | C8: OpzHDD2TB | D8: 148 | E8: L1N06 | F8: TS3L1-HDD2TB | G8: 1 | H8: 2TB 7.2K RPM SATA 6Gbps 3.5in Hot-plug | J8: DELL | L8: 400-AUWX
A9: L1N07 | B9: 7 | C9: OpzHDD1TB | D9: 80 | E9: L1N07 | F9: TS3L1-HDD1TB | G9: 1 | H9: 1TB 7.2K RPM SATA 6Gbps 3.5in Hot-plug | J9: DELL | L9: 400-AURS
A10: L1N08 | B10: 8 | C10: OpzSSD-RI800GB | D10: 216 | E10: L1N08 | F10: TS3L1-RI960GB | G10: 1 | H10: 960GB SSD SATA Read Intensive 6Gbps 2.5in Drive in 3.5in Hybrid Carrier, 1 DWPD | J10: DELL | L10: 400-BDPC
A11: L1N09 | B11: 9 | C11: OpzSSD-RI400GB | D11: 160 | E11: L1N09 | F11: TS3L1-RI480GB | G11: 1 | H11: 480GB SSD SATA Read Intensive 6Gbps 2.5in Drive in 3.5in Hybrid Carrier, 1 DWPD | J11: DELL | L11: 400-BDQT
A12: L1N10 | B12: 10 | C12: OpzUps (3000VA) | D12: 302 | E12: L1N10 | F12: TS3L1-UPS | G12: 1 | H12: Powerme Online UPS RPMM/9 3K, Tower, SNMP card | J12: PowerME | L12: TPMM/ 3K
A13: L1N11 | B13: 11 | C13: OpzGUI per tower | D13: 69 | E13: L1N11 | F13: TS3L1-GUI | G13: 1 | H13: Monitor 19" E1920H, Mouse MS116, Tastiera KB216 | J13: DELL | L13: 580-ADHM
G14: 1 | H14: Mouse ottico Dell MS116 - nero | L14: 570-AAIS
G15: 1 | H15: BASE,DIS,MON,E1920H,EMEA | L15: 210-AURI
G16: 1 | H16: Italian 220V Power Cord | L16: 450-ABCK
G17: 1 | H17: SnP order - EMEA. | L17: 800-10243
G18: 1 | H18: 39M Basic with Advanced Exchange Channel | L18: 709-17931
G19: 1 | H19: No Warranty Upgrade | L19: 710-10844
A20: L1N12 | B20: 12 | C20: OpzWinServESS | D20: 256 | E20: L1N12 | F20: TS3L1-WINSRVESS | G20: 1 | H20: Windows Server 2019,Essentials, ROK | J20: DELL | L20: 634-BSFZ
A21: L1N13 | B21: 13 | E21: L1N13
A22: L1N14 | B22: 14 | E22: L1N14
A23: L1N15 | B23: 15 | C23: OpzOpenSource | D23: 49 | E23: L1N15 | F23: TS3L1-LINUX | G23: 1 | H23: Ubuntu 18.04 LTS 64 Bit
A24: L1N16 | B24: 16 | C24: OpzHDDRetention | D24: 38 | E24: L1N16 | F24: TS3L1-HDRTNTN | G24: 1 | H24: Hard Disk Retention | J24: DELL | L24: 785-10921
A25: L1N17 | B25: 17 | C25: OpzEstensione24 | D25: 79 | E25: L1N17 | F25: TS3L1-5Y | G25: 1 | H25: Estensione della manutenzione in garanzia per ulteriori 24 mesi | J25: DELL | L25: 742-10105
A26: L1N18 | B26: 18 | C26: OpzPowerSupply | D26: 82 | E26: L1N18 | F26: TS3L1-PSU | G26: 1 | H26: Single, Hot-plug Power Supply (1+0), 495W,CusKit | J26: DELL | L26: 450-AEBM
A27: L1N19 | B27: 19 | C27: OpzGigabit 4p | D27: 50 | E27: L1N19 | F27: TS3L1-LAN1QP | G27: 1 | H27: Broadcom 5719 QP 1Gb Network Interface Card,Full Height,CusKit | J27: DELL | L27: 540-BBGX
A28: L1N20 | B28: 20 | C28: OpzGigabit I350 2p | D28: 99.99 | E28: L1N20 | F28: TS3L1-I3502P | G28: 1 | H28: Intel Ethernet I350 Dual Port 1GbE BASE-T Adapter, PCIe Full Height | J28: DELL | L28: 540-BBGZ
A29: L1N21 | B29: 21 | C29: OpzGigabit I350 4p | D29: 99.99 | E29: L1N21 | F29: TS3L1-I3504P | G29: 1 | H29: Intel Ethernet I350 Quad Port 1GbE BASE-T Adapter, PCIe Full Height | J29: DELL | L29: 540-BBDS
A30: L1N22 | B30: 22 | C30: OpzGigabit10Gbps X550 2p T | D30: 99.99 | E30: L1N22 | F30: TS3L1-X550 | G30: 1 | H30: Intel X550 Dual Port 10GbE BASE-T Adapter, PCIe Full Height | J30: DELL | L30: 540-BBRK
A31: L1N23 | B31: 23 | C31: OpzGigabit10Gbps X710 2p SFP+ | D31: 99.99 | E31: L1N23 | F31: TS3L1-X710 | G31: 1 | H31: Intel X710 Dual Port 10GbE SFP+ Adapter, PCIe Full Height | J31: DELL | L31: 540-BBIV
A32: L1N24 | B32: 24 | C32: OpzFibreChannel Emulex LPE12002 | D32: 99.99 | E32: L1N24 | F32: TS3L1-E12002 | G32: 1 | H32: Emulex LPE 12002 Dual Port 8Gb Fibre Channel HBA, PCIe Full Height | J32: DELL | L32: 406-BBGR
A33: L1N25 | B33: 25 | C33: OpzControllerSAS | D33: 99 | E33: L1N25 | F33: TS3L1-CtrlSAS | G33: 1 | H33: SAS 12Gbps HBA External Controller | J33: DELL | L33: 405-AADZ
A34: L1N26 | B34: 26 | C34: OpzRJ45 3m | D34: 2 | E34: L1N26 | F34: TS3L1-RJ453M | G34: 1 | H34: cavo “patch” di 3 mt RJ45 certificato per gigabit ethernet
A35: L1N27 | B35: 27 | C35: OpzBezel | D35: 99.99 | E35: L1N27 | F35: TS3L1-BEZEL | G35: 1 | H35: Tower Bezel, PowerEdge, T340 | J35: DELL | L35: 470-ACNV
A36: L1N28 | B36: 28 | C36: OpzDVD | D36: 99.99 | E36: L1N28 | F36: TS3L1-DVD | G36: 1 | H36: DVD+/-RW, SATA, Internal | J36: DELL | L36: 429-ABIE
A37: L1N29 | B37: 29 | C37: OpzHDMiniSAS2M | D37: 80 | E37: L1N29 | F37: TS3L1-SAS2M | G37: 1 | H37: 12Gb HD-Mini to HD-Mini SAS Cable, 2M, Customer Kit | J37: DELL | L37: 470-AATP
A38: L1N30 | B38: 30 | C38: OpzHDMiniSAS6M | D38: 120 | E38: L1N30 | F38: TS3L1-SAS6M | G38: 1 | H38: 12Gb HD-Mini to HD-Mini SAS Cable, 6M, Customer Kit | J38: DELL | L38: 470-AATR
A39: L1N31 | B39: 31 | C39: OpzHDMiniSAS05M | D39: 50 | E39: L1N31 | F39: TS3L1-SAS05M | G39: 1 | H39: 12Gb HD-Mini SAS cable, 0.5m, Customer Kit | J39: DELL | L39: 470-ABDQ
A40: L1N32 | B40: 32 | C40: OpzHDMiniSAS2MB | D40: 80 | E40: L1N32 | F40: TS3L1-SAS2MB | G40: 1 | H40: 12Gb HD-Mini SAS cable, 2m, Customer Kit | J40: DELL | L40: 470-ABDR
A41: L1N33 | B41: 33 | C41: OpzHDMiniSAS4M | D41: 100 | E41: L1N33 | F41: TS3L1-SAS4M | G41: 1 | H41: 12Gb Mini-SAS HD to Mini-SAS HD Cable, 4m, Customer Kit | J41: DELL | L41: 470-ACIS
A42: L1N34 | B42: 34 | C42: OpzSFPALL | D42: 40 | E42: L1N34 | F42: TS3L1-SFPALL | G42: 1 | H42: SFP+ SR Optic for all SFP+ | J42: DELL | L42: 407-BCBN
A43: L1N35 | B43: 35 | C43: OpzDAC1M | D43: 120 | E43: L1N35 | F43: TS3L1-DAC1M | G43: 1 | H43: Cable, SFP+ to SFP+, 10GbE, Copper Twinax Direct Attach Cable, 1 Meter | J43: DELL | L43: 470-AAVG
A44: L1N36 | B44: 36 | C44: OpzDAC3M | D44: 150 | E44: L1N36 | F44: TS3L1-DAC3M | G44: 1 | H44: Cable, SFP+ to SFP+, 10GbE, Copper Twinax Direct Attach Cable, 3 Meter | J44: DELL | L44: 470-AAVH
A45: L1N37 | B45: 37 | C45: OpzDAC5M | D45: 170 | E45: L1N37 | F45: TS3L1-DAC5M | G45: 1 | H45: Cable, SFP+ to SFP+, 10GbE, Copper Twinax Direct Attach Cable, 5 Meter | J45: DELL | L45: 470-AAVJ
A46: L1N38 | B46: 38 | E46: L1N38
A47: L1N39 | B47: 39 | E47: L1N39
A48: L1N40 | B48: 40 | E48: L1N40
A49: L1N41 | B49: 41 | E49: L1N41
A50: L1N42 | B50: 42 | E50: L1N42
A51: L1N43 | B51: 43 | E51: L1N43
A52: L1N44 | B52: 44 | E52: L1N44
A53: L1N45 | B53: 45 | E53: L1N45
A54: L1N46 | B54: 46 | E54: L1N46
A55: L1N47 | B55: 47 | E55: L1N47
A56: L1N48 | B56: 48 | E56: L1N48
A57: L1N49 | B57: 49 | E57: L1N49
A58: L1N50 | B58: 50 | E58: L1N50
A59: N° | C59: Attributo | D59: Valore inserito | E59: N° | F59: Codice Convenzione | G59: Qty: | H59: Description: | I59: Sku Number: | L59: Sku Number:
A60: L2N01 | B60: 1 | C60: Server Tower bi-processore | D60: 2088 | E60: L2N01 | F60: TS3L2-SRV | G60: 1 | H60: PowerEdge T640 Server | I60: L1N02-ServerT640 | L60: -
A61: L2N02 | B61: 2 | C61: Kit n. 1 Processore aggiuntivo | D61: 590 | E61: L2N02 | F61: TS3L2-CPU | G61: 1 | H61: Intel® Xeon® Silver 4214 Processor 2.20 GHz, 12C/24T | I61: L2N02-OpzCPU | L61: 338-BSDR
G62: 1 | L62: 412-AAMS
A63: L2N03 | B63: 3 | C63: OpzRAM16GB | D63: 99 | E63: L2N03 | F63: TS3L2-RAM16 | G63: 1 | H63: 16GB 2Rx8 DDR4 RDIMM 3200MHz | I63: L2N03-OpzRAM16GB | L63: AA799064
A64: L2N04 | B64: 4 | C64: OpzGigabit | D64: 26 | E64: L2N04 | F64: TS3L2-LAN1 | G64: 1 | H64: Broadcom 5720 DP 1Gb NIC,Full Height | I64: L2N04-OpzGigabit | L64: 540-BBGY
A65: L2N05 | B65: 5 | C65: OpzHDD2TB | D65: 226 | E65: L2N05 | F65: TS3L2-HDD2TB | G65: 1 | H65: 2.4TB 10K RPM SAS 12Gbps 512e 2.5in Hot-plug | I65: L2N05-OpzHDD2TB | L65: 400-AUQX
A66: L2N06 | B66: 6 | C66: OpzHDD1TB | D66: 141 | E66: L2N06 | F66: TS3L2-HDD1TB | G66: 1 | H66: 1.2TB 10K RPM SAS 12Gbps 2.5in Hot-plug | I66: L2N06-OpzHDD1TB | L66: 400-AJPD
A67: L2N07 | B67: 7 | C67: OpzHDD300GB | D67: 92 | E67: L2N07 | F67: TS3L2-HDD300GB | G67: 1 | H67: 300GB 15K RPM SAS 12Gbps 2.5in Hot-plug | I67: L2N07-OpzHDD300GB | L67: 400-AUXN
A68: L2N08 | B68: 8 | C68: OpzSSD-RI800GB | D68: 727 | E68: L2N08 | F68: TS3L2-RI800GB | G68: 1 | H68: 960GB SSD SAS Read Intensive 12Gbps 2.5in Hot-plug | I68: L2N08-OpzSSD-RI800GB | L68: 400-BBOU
A69: L2N09 | B69: 9 | C69: OpzSSD-RI400GB | D69: 394 | E69: L2N09 | F69: TS3L2-RI400GB | G69: 1 | H69: 480GB SSD SAS Read Intensive 12Gbps 2.5in Hot-plug | I69: L2N09- OpzSSD-RI400GB | L69: 400-BKSC
A70: L2N10 | B70: 10 | C70: OpzUps (3000VA) | D70: 300 | E70: L2N10 | F70: TS3L2-UPS | G70: 1 | H70: UPS PowerMe RPMM/9K - 3000VA Tower | I70: L2N10-OpzUps | L70: TPMM/ 3K
A71: L2N11 | B71: 11 | C71: OpzGUI per tower | D71: 104 | E71: L2N11 | F71: TS3L2-GUI | G71: 1 | H71: Monitor 19" E1920H, Mouse MS116, Tastiera KB216 | I71: L2N11-OpzGUI | L71: 580-ADHM
G72: 1 | L72: 570-AAIS
G73: 1 | L73: 210-AURI
G74: 1 | L74: 450-ABCK
G75: 1 | L75: 800-10243
G76: 1 | L76: 709-17931
G77: 1 | L77: 710-10844
A78: L2N12 | B78: 12 | C78: OpzWinServSTD | D78: 732 | E78: L2N12 | F78: TS3L2-WINSRVSTD | G78: 1 | H78: Windows Server 2019 Standard, ROK, 16CORE | I78: L2N12-OpzWinServSTD | L78: 634-BSFX
A79: L2N13 | B79: 13 | C79: OpzWinServSTD2core | D79: 94 | E79: L2N13 | F79: TS3L2-WINSRV2C | G79: 1 | H79: Windows Server 2019 Standard, Additional License, 2CORE | I79: L2N13-OpzWinServSTD2core | L79: 634-BSGS
A80: L2N14 | B80: 14 | C80: OpzDeviceCal | D80: 23 | E80: L2N14 | F80: TS3L2-WINDEVCAL | G80: 1 | H80: Windows Server 2019 Device CAL (STD or DC) | I80: L2N14-OpzDeviceCal | L80: 623-BBCV
A81: L2N15 | B81: 15 | C81: OpzUserCal | D81: 29 | E81: L2N15 | F81: TS3L2-WINUSRCAL | G81: 1 | H81: Windows Server 2019 User CAL (STD or DC) | I81: L2N15-OpzUserCal | L81: 623-BBCT
A82: L2N16 | B82: 16 | C82: OpzOpenSource | D82: 49 | E82: L2N16 | F82: TS3L2-LINUX | G82: 1 | H82: Ubuntu 18.04 LTS 64 Bit | I82: L2N16-OpzOpenSource
A83: L2N17 | B83: 17 | C83: OpzHDDRetention | D83: 207 | E83: L2N17 | F83: TS3L2-HDRTNTN | G83: 1 | H83: Hard Disk Retention 36 mesi | I83: L2N17-OpzHDDRetention | L83: 785-10921
A84: L2N18 | B84: 18 | C84: OpzEstensione24 | D84: 79 | E84: L2N18 | F84: TS3L2-5Y | G84: 1 | H84: Estensione della manutenzione in garanzia per ulteriori 24 mesi | I84: L2N18-OpzEstensione24 | L84: 742-10105
A85: L2N19 | B85: 19 | C85: TS3-OpzA20BT640 | D85: 99.99 | E85: L2N19 | F85: TS3L2-BEZEL | G85: 1 | H85: Tower Standard Bezel for T640 | I85: TS3-OpzA20BT640 | J85: DELL | L85: 325-BCMV
A86: L2N20 | B86: 20 | C86: OpzBOSS240 | D86: 429 | E86: L2N20 | F86: TS3L2-BOSS240 | G86: 1 | H86: BOSS controller card, full height, with 2 240G M.2 Drives | I86: TS3-OpzA20B240G | J86: DELL | L86: 403-BBVQ
G87: 2 | J87: DELL | L87: 400-ASDQ
A88: L2N21 | B88: 21 | C88: OpzBOSS480 | D88: 748 | E88: L2N21 | F88: TS3L2-BOSS480 | G88: 1 | H88: BOSS controller card, full height, with 2 480G M.2 Drives | I88: TS3-OpzA20B480G | J88: DELL | L88: 403-BBVQ
G89: 2 | J89: DELL | L89: 400-AVSS
A90: L2N22 | B90: 22 | C90: TS3-OpzA20RKit | D90: 270 | E90: L2N22 | F90: TS3L2-RACKKIT | G90: 1 | H90: Kit composto da: Tower to Rack Conversion Kit; Rack Standard Bezel; 3U Cable Management Arm; Ready Rails 3U Sliding Rails | I90: TS3-OpzA20T640K
G91: 1 | H91: Rack Standard Bezel for T640 | J91: DELL | L91: 325-BCOZ
G92: 1 | H92: Tower to Rack,Conversion Kit T640 | J92: DELL | L92: 770-BCJK
G93: 1 | H93: 3U Cable Management Arm | J93: DELL | L93: 770-BBKV
G94: 1 | H94: Ready Rails 3U Sliding Rails | J94: DELL | L94: 770-BBJJ
A95: L2N23 | B95: 23 | C95: OpzCNA10Gb | D95: 383 | E95: L2N23 | F95: TS3L2-CNA10GB | G95: 1 | H95: Scheda 41112 DP 10Gb SFP+, 2 x Transceiver SFP+, 10GbE | I95: TS3-OpzA20CNA | J95: DELL | L95: 540-BBYH
G96: 2 | J96: DELL | L96: 407-BBOU
A97: L2N24 | B97: 24 | C97: Opz10GBIC | D97: 90 | E97: L2N24 | F97: TS3L2-10GBIC | G97: 1 | H97: Transceiver, SFP+, 10GbE, SR, 850nm Wavelength, 300m Reach | J97: DELL | L97: 407-BBOU
A98: L2N25 | B98: 25 | C98: OpzDAC3M | D98: 9999 | E98: L2N25 | F98: TS3L2-DAC3M | G98: 1 | H98: Cable, SFP+ to SFP+, 10GbE, Copper Twinax Direct Attach Cable, 3 Meter | J98: DELL | L98: 470-AAVJ
A99: L2N26 | B99: 26 | C99: TS3-OpzA20RJ45 | D99: 3 | E99: L2N26 | F99: TS3L2-RJ453M | G99: 1 | H99: Cavo “patch” di 3 mt RJ45 certificato per gigabit ethernet | I99: TS3-OpzA20RJ45
A100: L2N27 | B100: 27 | C100: OpzH840 | D100: 479 | E100: L2N27 | F100: TS3L2-H840 | G100: 1 | H100: PERC H840 RAID Adapter for External MD14XX Only, 8GB NV Cache, Full Height | I100: TS3-OpzA20H840 | J100: DELL | L100: 405-AAMZ
A101: L2N28 | B101: 28 | C101: OpzHDDRetention60 | D101: 345 | E101: L2N28 | F101: TS3L2-HDRTNTN60 | G101: 1 | H101: Hard Disk Retention 60 mesi | I101: L2N28-OpzHDDRetention60
A102: L2N29 | B102: 29 | C102: OpzCNA10Gb | D102: 411 | E102: L2N29 | F102: TS3L2-CNA10M3 | G102: 1 | H102: Scheda 41112 DP 10Gb SFP+, 2 x Cable, SFP+ to SFP+, 10GbE, Copper Twinax Direct Attach Cable, 3 Meter | I102: TS3-OpzA20CNA3M | J102: DELL | L102: 540-BBYH
G103: 2 | J103: DELL | L103: 470-AAVJ
A104: L2N30 | B104: 30 | D104: 672 | E104: L2N30 | F104: TS3L2-H740P | G104: 1 | H104: Dell PERC H740P RAID Controller in sostituzione del Controller in configurazione BASE | I104: TS3-OpzA20H740P | J104: DELL
A105: L2N31 | B105: 31 | E105: L2N31 | J105: DELL
A106: L2N32 | B106: 32 | E106: L2N32 | J106: DELL
A107: L2N33 | B107: 33 | E107: L2N33 | J107: DELL
A108: L2N34 | B108: 34 | E108: L2N34
A109: L2N35 | B109: 35 | E109: L2N35
A110: L2N36 | B110: 36 | C110: OpzLCLC1M | E110: L2N36 | F110: TS3L2-LCLC1M | G110: 2 | H110: Networking Cable, OM4 LC/LC Fiber Cable, (Optics required), 1 Meter | J110: DELL | L110: 470-ACLV
A111: L2N37 | B111: 37 | C111: OpzLCLC2M | E111: L2N37 | F111: TS3L2-LCLC2M | G111: 2 | H111: Networking Cable, OM4 LC/LC Fiber Cable, (Optics required), 2 Meter | J111: DELL | L111: 470-ACLT
A112: L2N38 | B112: 38 | C112: OpzLCLC3M | E112: L2N38 | F112: TS3L2-LCLC3M | G112: 2 | H112: Networking Cable, OM4 LC/LC Fiber Cable, (Optics required), 3 Meter | J112: DELL | L112: 470-ACMO
A113: L2N39 | B113: 39 | C113: OpzLCLC5M | E113: L2N39 | F113: TS3L2-LCLC5M | G113: 2 | H113: Networking Cable, OM4 LC/LC Fiber Cable, (Optics required), 5 Meter | J113: DELL | L113: 470-ACLY
A114: L2N40 | B114: 40 | C114: OpzLCLC10M | E114: L2N40 | F114: TS3L2-LCLC10M | G114: 2 | H114: Networking Cable, OM4 LC/LC Fiber Cable, (Optics required), 10 Meter | J114: DELL | L114: 470-ACMN
A115: L2N41 | B115: 41 | C115: OpzLCLC30M | E115: L2N41 | F115: TS3L2-LCLC30M | G115: 2 | H115: Networking Cable, OM4 LC/LC Fiber Cable, (Optics required), 30 Meter | J115: DELL | L115: 470-ACLM
A116: L2N42 | B116: 42 | E116: L2N42
A117: L2N43 | B117: 43 | E117: L2N43
A118: L2N44 | B118: 44 | E118: L2N44
A119: L2N45 | B119: 45 | E119: L2N45
A120: L2N46 | B120: 46 | E120: L2N46
A121: L2N47 | B121: 47 | E121: L2N47
A122: L2N48 | B122: 48 | E122: L2N48
A123: L2N49 | B123: 49 | E123: L2N49
A124: L2N50 | B124: 50 | C124: OpzCodiceNATO | D124: 200 | E124: L2N50 | F124: TS3L2-NATO | G124: 1 | H124: Codifica NATO

Sheet Altre_Opzioni
E1: Convenzione | F1: =SUM(J9:J117) -> 0
E2: 0.2 | F2: =SUM(K9:K117) -> 0
E3: Totale | F3: =SUM(F1:F2) -> 0
C5: Opzioni in Convenzione
C8: OpzRack
C9: Rack 42U con portata 1000 KG e 4 ruote + coppia PDU 12 prese Shuko bipasso ITA
C11: OpzUps (3000VA)
C12: BUNDLE PMEUPS3RTSER Comprensivo di UPS e scheda SNMP + Kit Rack incluso
C14: OpzGUI
C15: Unità KVM - monitor 17", cavo combi PS2 e USB da 1,8mt, tastiera ita, touch pad
C17: OpzKVM
C18: Switch 16 porte IP con relativi cavi combi PS/2 e USB inclusi
C20: =IF(Riepilogo!P34>0,"OpzDeviceCal","") -> 
C21: =IF(Riepilogo!P34>0,"1-pack of Windows Server 2019/2016 Device CALs (STD or DC)","") ->  | E21: =VLOOKUP($C21,TS3L2_ALL,13,FALSE) ->  | J21: =VLOOKUP($C21,TS3L2_ALL,10,FALSE)*F21 -> 0 | K21: =VLOOKUP($C21,TS3L2_ALL,11,FALSE) -> 0 | L21: =VLOOKUP($C21,TS3L2_ALL,12,FALSE) -> 
C23: =IF(Riepilogo!P34>0,"OpzUserCal","") -> 
C24: =IF(Riepilogo!P34>0,"1-pack of Windows Server 2019/2016 User CALs (STD or DC)","") ->  | E24: =VLOOKUP($C24,TS3L2_ALL,13,FALSE) ->  | J24: =VLOOKUP($C24,TS3L2_ALL,10,FALSE)*F24 -> 0 | K24: =VLOOKUP($C24,TS3L2_ALL,11,FALSE) -> 0 | L24: =VLOOKUP($C24,TS3L2_ALL,12,FALSE) -> 

Sheet Riepilogo
J1: 1
B2: Ente: | J2: 1 | L2: ente | M2: =IF(D2>0,0,1) -> 1
J3: 1
B4: Ordine N. | E4: =M7 -> ERRORE DI MANCATA COMPILAZIONE DATI NECESSARI PER L'ORDINATIVO | J4: 1 | L4: N°ordine | M4: =IF(D4>0,0,1) -> 1
E5: =M8 ->  | J5: 1
B6: Data | E6: =M9 ->  | J6: 1 | L6: data | M6: =IF(D6>0,0,1) -> 1
E7: =M10 ->  | J7: 1 | K7: Campi non compilati | L7: ERRORE1 | M7: =IF(M2+M4+M6+M11+M13+M16+M18+O18+O13,"ERRORE DI MANCATA COMPILAZIONE DATI NECESSARI PER L'ORDINATIVO","") -> ERRORE DI MANCATA COMPILAZIONE DATI NECESSARI PER L'ORDINATIVO | N7: =IF(M7="",0,1) -> 1
B8: Totale IVA incl. | D8: =G59 -> 0 | E8: =IF(Q11=0,"CONFIGURATORE OK", "") ->  | G8: Version 3.3 | J8: 1 | K8: Avvertimento 20% | L8: Warning2 | M8: =IF(G56>D56,"!!! ATTENZIONE !!! L'IMPORTO 20% SUPERA IL VALORE MASSIMO CONSENTITO","") ->  | N8: =IF(M8="",0,1) -> 0
J9: 1 | L9: ERRORE3 | M9: ="" ->  | N9: 0
J10: 1 | K10: Avvertimento Note/Raid | L10: Waning4 | M10: =IF(N10>0,"!!! ATTENZIONE !!! COMPLETARE IL CAMPO NOTE NELLE CONFIGURAZIONI","") ->  | N10: =IF(M22>0,O10,0)+IF(N22>0,P10,0)+IF(O22>0,Q10,0) -> 0 | O10: =IF(Lotto2_T640_1!$H$30="Specificare la configurazione RAID per l'installazione del Sistema Operativo, se richiesto. e/o inserire eventuali note.",1,0) -> 1 | P10: =IF(Lotto2_T640_2!$H$30="Specificare la configurazione RAID per l'installazione del Sistema Operativo, se richiesto. e/o inserire eventuali note.",1,0) -> 1 | Q10: =IF(Lotto2_T640_3!$H$30="Specificare la configurazione RAID per l'installazione del Sistema Operativo, se richiesto. e/o inserire eventuali note.",1,0) -> 1
B11: Referente Consegna | J11: 1 | L11: ref1 | M11: =IF(D11>0,0,1) -> 1 | O11: Verifica Errori | Q11: =N7+N9 -> 1
J12: 1
B13: Telefono | D13: email | J13: 1 | L13: tel1 | M13: =IF(C13>0,0,1) -> 1 | N13: mail1 | O13: =IF(E13>0,0,1) -> 1
J14: 1
J15: 1
B16: Referente Installazione | J16: 1 | L16: ref2 | M16: =IF(D16>0,0,1) -> 1
J17: 1
B18: Telefono | D18: email | J18: 1 | L18: tel2 | M18: =IF(C18>0,0,1) -> 1 | N18: mail2 | O18: =IF(E18>0,0,1) -> 1
J19: 1
J20: 1 | M20: Server1 | N20: Server2 | O20: Server3 | P20: Totale
B21: TECNOLOGIE SERVER 3 LOTTO 2 - LISTA ARTICOLI IN CONVENZIONE - | J21: =IF($G$55>0,1,0) -> 0
B22: Quantità | C22: Codice Articolo Produttore | D22: Codice Articolo Convenzione | E22: Descrizione | F22: Costo unitario | G22: Costo complessivo | J22: =IF($G$55>0,1,0) -> 0 | K22: Codice Convenzione | L22: N° | M22: =Lotto2_T640_1!F5 -> 0 | N22: =Lotto2_T640_2!F5 -> 0 | O22: =Lotto2_T640_3!F5 -> 0
B23: =IF(P23>0,P23,"") ->  | C23: =IF(B23="","",VLOOKUP(L23,Tabella_prezzi!$A$3:$J$308,9,FALSE)) ->  | D23: =IF(B23="","",VLOOKUP(L23,Tabella_prezzi!$A$3:$J$308,6,FALSE)) ->  | E23: =IF(B23="","",VLOOKUP(L23,Tabella_prezzi!$A$3:$J$308,8,FALSE)) ->  | F23: =IF(B23="","",VLOOKUP(L23,Tabella_prezzi!$A$3:$J$308,4,FALSE)) ->  | G23: =IF(C23="","",F23*B23) ->  | J23: =IF(B23="",0,1) -> 0 | K23: =VLOOKUP(L23,Tabella_prezzi!A2:J308,6,FALSE) -> TS3L2-SRV | L23: L2N01 | M23: =COUNTIF($Q$23:$Q$61,L23)*$M$22 -> 0 | N23: =COUNTIF($S$23:$S$61,L23)*$N$22 -> 0 | O23: =COUNTIF($U$23:$U$61,L23)*$O$22 -> 0 | P23: =SUM(M23:O23) -> 0 | Q23: =Lotto2_T640_1!K8 -> L2N01 | R23: =Lotto2_T640_1!F8 ->  | S23: =Lotto2_T640_2!K8 -> L2N01 | T23: =Lotto2_T640_2!F8 ->  | U23: =Lotto2_T640_3!K8 -> L2N01 | V23: =Lotto2_T640_3!F8 ->  | X23: =ISODD(J23) -> FALSE | Y23: server
B24: =IF(P24>0,P24,"") ->  | C24: =IF(B24="","",VLOOKUP(L24,Tabella_prezzi!$A$3:$J$308,9,FALSE)) ->  | D24: =IF(B24="","",VLOOKUP(L24,Tabella_prezzi!$A$3:$J$308,6,FALSE)) ->  | E24: =IF(B24="","",VLOOKUP(L24,Tabella_prezzi!$A$3:$J$308,8,FALSE)) ->  | F24: =IF(B24="","",VLOOKUP(L24,Tabella_prezzi!$A$3:$J$308,4,FALSE)) ->  | G24: =IF(C24="","",F24*B24) ->  | J24: =IF(B24="",0,1) -> 0 | K24: =VLOOKUP(L24,Tabella_prezzi!A3:J309,6,FALSE) -> TS3L2-CPU | L24: L2N02 | M24: =COUNTIF($Q$23:$Q$61,L24)*$M$22*R24 -> 0 | N24: =COUNTIF($S$23:$S$61,L24)*$N$22*T24 -> 0 | O24: =COUNTIF($U$23:$U$61,L24)*$O$22*V24 -> 0 | P24: =SUM(M24:O24) -> 0 | Q24: =Lotto2_T640_1!K20 ->  | R24: =Lotto2_T640_1!F20 -> 0 | S24: =Lotto2_T640_2!K20 ->  | T24: =Lotto2_T640_2!F20 -> 0 | U24: =Lotto2_T640_3!K20 ->  | V24: =Lotto2_T640_3!F20 -> 0 | X24: =ISODD(SUM($J$23:J24)) -> FALSE | Y24: Cpu
C25: =IF(B25="","",VLOOKUP(L25,Tabella_prezzi!$A$3:$J$308,9,FALSE)) ->  | D25: =IF(B25="","",VLOOKUP(L25,Tabella_prezzi!$A$3:$J$308,6,FALSE)) ->  | E25: =IF(B25="","",VLOOKUP(L25,Tabella_prezzi!$A$3:$J$308,8,FALSE)) ->  | F25: =IF(B25="","",VLOOKUP(L25,Tabella_prezzi!$A$3:$J$308,4,FALSE)) ->  | J25: 0 | K25: =VLOOKUP(L25,Tabella_prezzi!A4:J310,6,FALSE) -> TS3L2-RAM16 | L25: L2N03 | M25: =COUNTIF($Q$23:$Q$61,L25)*$M$22*R25 -> 0 | N25: =COUNTIF($S$23:$S$61,L25)*$N$22*T25 -> 0 | O25: =COUNTIF($U$23:$U$61,L25)*$O$22*V25 -> 0 | P25: 0 | Q25: =Lotto2_T640_1!K23 ->  | R25: =Lotto2_T640_1!F23 -> 0 | S25: =Lotto2_T640_2!K23 ->  | T25: =Lotto2_T640_2!F23 -> 0 | U25: =Lotto2_T640_3!K23 ->  | V25: =Lotto2_T640_3!F23 -> 0 | X25: =ISODD(SUM($J$23:J25)) -> FALSE | Y25: ram
C26: =IF(B26="","",VLOOKUP(L26,Tabella_prezzi!$A$3:$J$308,9,FALSE)) ->  | D26: =IF(B26="","",VLOOKUP(L26,Tabella_prezzi!$A$3:$J$308,6,FALSE)) ->  | E26: =IF(B26="","",VLOOKUP(L26,Tabella_prezzi!$A$3:$J$308,8,FALSE)) ->  | F26: =IF(B26="","",VLOOKUP(L26,Tabella_prezzi!$A$3:$J$308,4,FALSE)) ->  | J26: 0 | K26: =VLOOKUP(L26,Tabella_prezzi!A5:J311,6,FALSE) -> TS3L2-LAN1 | L26: L2N04 | M26: =COUNTIF($Q$23:$Q$61,L26)*$M$22 -> 0 | N26: =COUNTIF($S$23:$S$61,L26)*$N$22 -> 0 | O26: =COUNTIF($U$23:$U$61,L26)*$O$22 -> 0 | P26: 0 | Q26: =Lotto2_T640_1!K26 ->  | R26: =Lotto2_T640_1!F26 ->  | S26: =Lotto2_T640_2!K26 ->  | T26: =Lotto2_T640_2!F26 ->  | U26: =Lotto2_T640_3!K26 ->  | V26: =Lotto2_T640_3!F26 ->  | X26: =ISODD(SUM($J$23:J26)) -> FALSE | Y26: Sist Op
C27: =IF(B27="","",VLOOKUP(L27,Tabella_prezzi!$A$3:$J$308,9,FALSE)) ->  | D27: =IF(B27="","",VLOOKUP(L27,Tabella_prezzi!$A$3:$J$308,6,FALSE)) ->  | E27: =IF(B27="","",VLOOKUP(L27,Tabella_prezzi!$A$3:$J$308,8,FALSE)) ->  | F27: =IF(B27="","",VLOOKUP(L27,Tabella_prezzi!$A$3:$J$308,4,FALSE)) ->  | J27: 0 | K27: =VLOOKUP(L27,Tabella_prezzi!A6:J312,6,FALSE) -> TS3L2-HDD2TB | L27: L2N05 | M27: =COUNTIF($Q$23:$Q$61,L27)*$M$22*R27 -> 0 | N27: =COUNTIF($S$23:$S$61,L27)*$N$22*T27 -> 0 | O27: =COUNTIF($U$23:$U$61,L27)*$O$22*V27 -> 0 | P27: 0 | Q27: =Lotto2_T640_1!K34 -> L2N05 | R27: =Lotto2_T640_1!F34 -> 0 | S27: =Lotto2_T640_2!K34 -> L2N05 | T27: =Lotto2_T640_2!F34 -> 0 | U27: =Lotto2_T640_3!K34 -> L2N05 | V27: =Lotto2_T640_3!F34 -> 0 | X27: =ISODD(SUM($J$23:J27)) -> FALSE | Y27: hd2tb
C28: =IF(B28="","",VLOOKUP(L28,Tabella_prezzi!$A$3:$J$308,9,FALSE)) ->  | D28: =IF(B28="","",VLOOKUP(L28,Tabella_prezzi!$A$3:$J$308,6,FALSE)) ->  | E28: =IF(B28="","",VLOOKUP(L28,Tabella_prezzi!$A$3:$J$308,8,FALSE)) ->  | F28: =IF(B28="","",VLOOKUP(L28,Tabella_prezzi!$A$3:$J$308,4,FALSE)) ->  | J28: 0 | K28: =VLOOKUP(L28,Tabella_prezzi!A7:J313,6,FALSE) -> TS3L2-HDD1TB | L28: L2N06 | M28: =COUNTIF($Q$23:$Q$61,L28)*$M$22*R28 -> 0 | N28: =COUNTIF($S$23:$S$61,L28)*$N$22*T28 -> 0 | O28: =COUNTIF($U$23:$U$61,L28)*$O$22*V28 -> 0 | P28: 0 | Q28: =Lotto2_T640_1!K36 -> L2N06 | R28: =Lotto2_T640_1!F36 -> 0 | S28: =Lotto2_T640_2!K36 -> L2N06 | T28: =Lotto2_T640_2!F36 -> 0 | U28: =Lotto2_T640_3!K36 -> L2N06 | V28: =Lotto2_T640_3!F36 -> 0 | X28: =ISODD(SUM($J$23:J28)) -> FALSE | Y28: hd1tb
C29: =IF(B29="","",VLOOKUP(L29,Tabella_prezzi!$A$3:$J$308,9,FALSE)) ->  | D29: =IF(B29="","",VLOOKUP(L29,Tabella_prezzi!$A$3:$J$308,6,FALSE)) ->  | E29: =IF(B29="","",VLOOKUP(L29,Tabella_prezzi!$A$3:$J$308,8,FALSE)) ->  | F29: =IF(B29="","",VLOOKUP(L29,Tabella_prezzi!$A$3:$J$308,4,FALSE)) ->  | J29: 0 | K29: =VLOOKUP(L29,Tabella_prezzi!A8:J314,6,FALSE) -> TS3L2-HDD300GB | L29: L2N07 | M29: =COUNTIF($Q$23:$Q$61,L29)*$M$22*R29 -> 0 | N29: =COUNTIF($S$23:$S$61,L29)*$N$22*T29 -> 0 | O29: =COUNTIF($U$23:$U$61,L29)*$O$22*V29 -> 0 | P29: 0 | Q29: =Lotto2_T640_1!K38 -> L2N07 | R29: =Lotto2_T640_1!F38 -> 0 | S29: =Lotto2_T640_2!K38 -> L2N07 | T29: =Lotto2_T640_2!F38 -> 0 | U29: =Lotto2_T640_3!K38 -> L2N07 | V29: =Lotto2_T640_3!F38 -> 0 | X29: =ISODD(SUM($J$23:J29)) -> FALSE | Y29: hd300gb
C30: =IF(B30="","",VLOOKUP(L30,Tabella_prezzi!$A$3:$J$308,9,FALSE)) ->  | D30: =IF(B30="","",VLOOKUP(L30,Tabella_prezzi!$A$3:$J$308,6,FALSE)) ->  | E30: =IF(B30="","",VLOOKUP(L30,Tabella_prezzi!$A$3:$J$308,8,FALSE)) ->  | F30: =IF(B30="","",VLOOKUP(L30,Tabella_prezzi!$A$3:$J$308,4,FALSE)) ->  | J30: 0 | K30: =VLOOKUP(L30,Tabella_prezzi!A9:J315,6,FALSE) -> TS3L2-RI800GB | L30: L2N08 | M30: =COUNTIF($Q$23:$Q$61,L30)*$M$22*R30 -> 0 | N30: =COUNTIF($S$23:$S$61,L30)*$N$22*T30 -> 0 | O30: =COUNTIF($U$23:$U$61,L30)*$O$22*V30 -> 0 | P30: 0 | Q30: =Lotto2_T640_1!K40 -> L2N08 | R30: =IF(Lotto2_T640_1!F40>2,Lotto2_T640_1!F40-2,0) -> 0 | S30: =Lotto2_T640_2!K40 -> L2N08 | T30: =IF(Lotto2_T640_2!F40>2,Lotto2_T640_2!F40-2,0) -> 0 | U30: =Lotto2_T640_3!K40 -> L2N08 | V30: =IF(Lotto2_T640_3!F40>2,Lotto2_T640_3!F40-2,0) -> 0 | X30: =ISODD(SUM($J$23:J30)) -> FALSE | Y30: ssd960GB
C31: =IF(B31="","",VLOOKUP(L31,Tabella_prezzi!$A$3:$J$308,9,FALSE)) ->  | D31: =IF(B31="","",VLOOKUP(L31,Tabella_prezzi!$A$3:$J$308,6,FALSE)) ->  | E31: =IF(B31="","",VLOOKUP(L31,Tabella_prezzi!$A$3:$J$308,8,FALSE)) ->  | F31: =IF(B31="","",VLOOKUP(L31,Tabella_prezzi!$A$3:$J$308,4,FALSE)) ->  | J31: 0 | K31: =VLOOKUP(L31,Tabella_prezzi!A10:J316,6,FALSE) -> TS3L2-RI400GB | L31: L2N09 | M31: =IF(R31>2,COUNTIF($Q$23:$Q$61,L31)*$M$22*R31-2,0) -> 0 | N31: =IF(T31>2,COUNTIF($S$23:$S$61,L31)*$N$22*T31-2,0) -> 0 | O31: =IF(T31>2,COUNTIF($U$23:$U$61,L31)*$O$22*V31-2,0) -> 0 | P31: 0 | Q31: =Lotto2_T640_1!K42 -> L2N09 | R31: =Lotto2_T640_1!F42 -> 0 | S31: =Lotto2_T640_2!K42 -> L2N09 | T31: =Lotto2_T640_2!F42 -> 0 | U31: =Lotto2_T640_3!K42 -> L2N09 | V31: =Lotto2_T640_3!F42 -> 0 | X31: =ISODD(SUM($J$23:J31)) -> FALSE | Y31: ssd480GB
C32: =IF(B32="","",VLOOKUP(L32,Tabella_prezzi!$A$3:$J$308,9,FALSE)) ->  | D32: =IF(B32="","",VLOOKUP(L32,Tabella_prezzi!$A$3:$J$308,6,FALSE)) ->  | E32: =IF(B32="","",VLOOKUP(L32,Tabella_prezzi!$A$3:$J$308,8,FALSE)) ->  | F32: =IF(B32="","",VLOOKUP(L32,Tabella_prezzi!$A$3:$J$308,4,FALSE)) ->  | J32: 0 | K32: =VLOOKUP(L32,Tabella_prezzi!A11:J317,6,FALSE) -> TS3L2-UPS | L32: L2N10 | M32: =COUNTIF($Q$23:$Q$61,L32)*$M$22 -> 0 | N32: 0 | O32: 0 | P32: 0 | Q32: =Lotto2_T640_1!K54 ->  | R32: =Lotto2_T640_1!F54 ->  | S32: =Lotto2_T640_2!K54 ->  | T32: =Lotto2_T640_2!F54 ->  | U32: =Lotto2_T640_3!K54 ->  | V32: =Lotto2_T640_3!F54 ->  | X32: =ISODD(SUM($J$23:J32)) -> FALSE | Y32: pci1
C33: =IF(B33="","",VLOOKUP(L33,Tabella_prezzi!$A$3:$J$308,9,FALSE)) ->  | D33: =IF(B33="","",VLOOKUP(L33,Tabella_prezzi!$A$3:$J$308,6,FALSE)) ->  | E33: =IF(B33="","",VLOOKUP(L33,Tabella_prezzi!$A$3:$J$308,8,FALSE)) ->  | F33: =IF(B33="","",VLOOKUP(L33,Tabella_prezzi!$A$3:$J$308,4,FALSE)) ->  | J33: 0 | K33: =VLOOKUP(L33,Tabella_prezzi!A12:J318,6,FALSE) -> TS3L2-GUI | L33: L2N11 | M33: =COUNTIF($Q$23:$Q$61,L33)*$M$22 -> 0 | N33: 0 | O33: 0 | P33: 0 | Q33: =Lotto2_T640_1!K57 ->  | R33: =Lotto2_T640_1!F57 ->  | S33: =Lotto2_T640_2!K57 ->  | T33: =Lotto2_T640_2!F57 ->  | U33: =Lotto2_T640_3!K57 ->  | V33: =Lotto2_T640_3!F57 ->  | X33: =ISODD(SUM($J$23:J33)) -> FALSE | Y33: pci2
C34: =IF(B34="","",VLOOKUP(L34,Tabella_prezzi!$A$3:$J$308,9,FALSE)) ->  | D34: =IF(B34="","",VLOOKUP(L34,Tabella_prezzi!$A$3:$J$308,6,FALSE)) ->  | E34: =IF(B34="","",VLOOKUP(L34,Tabella_prezzi!$A$3:$J$308,8,FALSE)) ->  | F34: =IF(B34="","",VLOOKUP(L34,Tabella_prezzi!$A$3:$J$308,4,FALSE)) ->  | J34: 0 | K34: =VLOOKUP(L34,Tabella_prezzi!A13:J319,6,FALSE) -> TS3L2-WINSRVSTD | L34: L2N12 | M34: =COUNTIF($Q$23:$Q$61,L34)*$M$22 -> 0 | N34: 0 | O34: 0 | P34: 0 | Q34: =Lotto2_T640_1!K60 ->  | R34: =Lotto2_T640_1!F60 ->  | S34: =Lotto2_T640_2!K60 ->  | T34: =Lotto2_T640_2!F60 ->  | U34: =Lotto2_T640_3!K60 ->  | V34: =Lotto2_T640_3!F60 ->  | X34: =ISODD(SUM($J$23:J34)) -> FALSE | Y34: pci3
C35: =IF(B35="","",VLOOKUP(L35,Tabella_prezzi!$A$3:$J$308,9,FALSE)) ->  | D35: =IF(B35="","",VLOOKUP(L35,Tabella_prezzi!$A$3:$J$308,6,FALSE)) ->  | E35: =IF(B35="","",VLOOKUP(L35,Tabella_prezzi!$A$3:$J$308,8,FALSE)) ->  | F35: =IF(B35="","",VLOOKUP(L35,Tabella_prezzi!$A$3:$J$308,4,FALSE)) ->  | J35: 0 | K35: =VLOOKUP(L35,Tabella_prezzi!A14:J320,6,FALSE) -> TS3L2-WINSRV2C | L35: L2N13 | M35: =COUNTIF($Q$23:$Q$61,L35)*$M$22*R40 -> 0 | N35: =COUNTIF($S$23:$S$61,L35)*$N$22*T40 -> 0 | O35: =COUNTIF($U$23:$U$61,L35)*$O$22*V40 -> 0 | P35: 0 | Q35: =Lotto2_T640_1!K63 -> 0 | R35: =Lotto2_T640_1!F63 ->  | S35: =Lotto2_T640_2!K63 -> 0 | T35: =Lotto2_T640_2!F63 ->  | U35: =Lotto2_T640_3!K63 -> 0 | V35: =Lotto2_T640_3!F63 ->  | X35: =ISODD(SUM($J$23:J35)) -> FALSE | Y35: pci4
C36: =IF(B36="","",VLOOKUP(L36,Tabella_prezzi!$A$3:$J$308,9,FALSE)) ->  | D36: =IF(B36="","",VLOOKUP(L36,Tabella_prezzi!$A$3:$J$308,6,FALSE)) ->  | E36: =IF(B36="","",VLOOKUP(L36,Tabella_prezzi!$A$3:$J$308,8,FALSE)) ->  | F36: =IF(B36="","",VLOOKUP(L36,Tabella_prezzi!$A$3:$J$308,4,FALSE)) ->  | J36: 0 | K36: =VLOOKUP(L36,Tabella_prezzi!A15:J321,6,FALSE) -> TS3L2-WINDEVCAL | L36: L2N14 | P36: =Altre_Opzioni!F21 -> 0 | Q36: =Lotto2_T640_1!K66 -> 0 | R36: =Lotto2_T640_1!F66 ->  | S36: =Lotto2_T640_2!K66 -> 0 | T36: =Lotto2_T640_2!F66 ->  | U36: =Lotto2_T640_3!K66 -> 0 | V36: =Lotto2_T640_3!F66 ->  | X36: =ISODD(SUM($J$23:J36)) -> FALSE | Y36: pci5
C37: =IF(B37="","",VLOOKUP(L37,Tabella_prezzi!$A$3:$J$308,9,FALSE)) ->  | D37: =IF(B37="","",VLOOKUP(L37,Tabella_prezzi!$A$3:$J$308,6,FALSE)) ->  | E37: =IF(B37="","",VLOOKUP(L37,Tabella_prezzi!$A$3:$J$308,8,FALSE)) ->  | F37: =IF(B37="","",VLOOKUP(L37,Tabella_prezzi!$A$3:$J$308,4,FALSE)) ->  | J37: 0 | K37: =VLOOKUP(L37,Tabella_prezzi!A16:J322,6,FALSE) -> TS3L2-WINUSRCAL | L37: L2N15 | P37: =Altre_Opzioni!F24 -> 0 | Q37: =Lotto2_T640_1!K69 -> 0 | R37: =Lotto2_T640_1!F69 ->  | S37: =Lotto2_T640_2!K69 -> 0 | T37: =Lotto2_T640_2!F69 ->  | U37: =Lotto2_T640_3!K69 -> 0 | V37: =Lotto2_T640_3!F69 ->  | X37: =ISODD(SUM($J$23:J37)) -> FALSE | Y37: pci6
C38: =IF(B38="","",VLOOKUP(L38,Tabella_prezzi!$A$3:$J$308,9,FALSE)) ->  | D38: =IF(B38="","",VLOOKUP(L38,Tabella_prezzi!$A$3:$J$308,6,FALSE)) ->  | E38: =IF(B38="","",VLOOKUP(L38,Tabella_prezzi!$A$3:$J$308,8,FALSE)) ->  | F38: =IF(B38="","",VLOOKUP(L38,Tabella_prezzi!$A$3:$J$308,4,FALSE)) ->  | J38: 0 | K38: =VLOOKUP(L38,Tabella_prezzi!A17:J323,6,FALSE) -> TS3L2-LINUX | L38: L2N16 | M38: =COUNTIF($Q$23:$Q$61,L38)*$M$22 -> 0 | N38: =COUNTIF($S$23:$S$61,L38)*$N$22 -> 0 | O38: =COUNTIF($U$23:$U$61,L38)*$O$22 -> 0 | P38: 0 | Q38: =Lotto2_T640_1!K72 -> 0 | R38: =Lotto2_T640_1!F72 ->  | S38: =Lotto2_T640_2!K72 -> 0 | T38: =Lotto2_T640_2!F72 ->  | U38: =Lotto2_T640_3!K72 -> 0 | V38: =Lotto2_T640_3!F72 ->  | X38: =ISODD(SUM($J$23:J38)) -> FALSE | Y38: pci7
C39: =IF(B39="","",VLOOKUP(L39,Tabella_prezzi!$A$3:$J$308,9,FALSE)) ->  | D39: =IF(B39="","",VLOOKUP(L39,Tabella_prezzi!$A$3:$J$308,6,FALSE)) ->  | E39: =IF(B39="","",VLOOKUP(L39,Tabella_prezzi!$A$3:$J$308,8,FALSE)) ->  | F39: =IF(B39="","",VLOOKUP(L39,Tabella_prezzi!$A$3:$J$308,4,FALSE)) ->  | J39: 0 | K39: =VLOOKUP(L39,Tabella_prezzi!A18:J324,6,FALSE) -> TS3L2-HDRTNTN | L39: L2N17 | M39: 0 | N39: 0 | O39: 0 | P39: 0 | Q39: =Lotto2_T640_1!K75 -> 0 | R39: =Lotto2_T640_1!F75 ->  | S39: =Lotto2_T640_2!K75 -> 0 | T39: =Lotto2_T640_2!F75 ->  | U39: =Lotto2_T640_3!K75 -> 0 | V39: =Lotto2_T640_3!F75 ->  | X39: =ISODD(SUM($J$23:J39)) -> FALSE | Y39: pci8
B40: =IF(P40>0,P40,"") ->  | C40: =IF(B40="","",VLOOKUP(L40,Tabella_prezzi!$A$3:$J$308,9,FALSE)) ->  | D40: =IF(B40="","",VLOOKUP(L40,Tabella_prezzi!$A$3:$J$308,6,FALSE)) ->  | E40: =IF(B40="","",VLOOKUP(L40,Tabella_prezzi!$A$3:$J$308,8,FALSE)) ->  | F40: =IF(B40="","",VLOOKUP(L40,Tabella_prezzi!$A$3:$J$308,4,FALSE)) ->  | G40: =IF(C40="","",F40*B40) ->  | J40: 0 | K40: =VLOOKUP(L40,Tabella_prezzi!A19:J325,6,FALSE) -> TS3L2-5Y | L40: L2N18 | M40: 0 | N40: 0 | O40: 0 | P40: =SUM(M40:O40) -> 0 | Q40: =Lotto2_T640_1!K27 ->  | R40: =Lotto2_T640_1!F27 -> 0 | S40: =Lotto2_T640_2!K27 ->  | T40: =Lotto2_T640_2!F27 -> 0 | U40: =Lotto2_T640_3!K27 ->  | V40: =Lotto2_T640_3!F27 -> 0 | X40: =ISODD(SUM($J$23:J40)) -> FALSE | Y40: win2core
C41: =IF(B41="","",VLOOKUP(L41,Tabella_prezzi!$A$3:$J$308,9,FALSE)) ->  | D41: =IF(B41="","",VLOOKUP(L41,Tabella_prezzi!$A$3:$J$308,6,FALSE)) ->  | E41: =IF(B41="","",VLOOKUP(L41,Tabella_prezzi!$A$3:$J$308,8,FALSE)) ->  | F41: =IF(B41="","",VLOOKUP(L41,Tabella_prezzi!$A$3:$J$308,4,FALSE)) ->  | J41: 0 | K41: =VLOOKUP(L41,Tabella_prezzi!A31:J337,6,FALSE) -> TS3L2-HDRTNTN60 | L41: L2N28 | M41: 0 | N41: 0 | O41: 0 | P41: =SUM(M41:O41) -> 0 | X41: =ISODD(SUM($J$23:J41)) -> FALSE
B42: TECNOLOGIE SERVER 3 LOTTO 2 - LISTA ULTERIORI ARTICOLI IN CONVENZIONE (20%) - | J42: =IF($G$56>0,1,0) -> 0 | Q42: =Lotto2_T640_1!K93 ->  | R42: =Lotto2_T640_1!F93 ->  | S42: =Lotto2_T640_2!K93 ->  | T42: =Lotto2_T640_2!F93 ->  | U42: =Lotto2_T640_3!K93 ->  | V42: =Lotto2_T640_3!F93 ->  | Y42: retention
B43: Quantità | C43: Codice Articolo Produttore | D43: Codice Articolo Convenzione | E43: Descrizione | F43: Costo unitario | G43: Costo complessivo | J43: =IF($G$56>0,1,0) -> 0 | Q43: =Lotto2_T640_1!$K$90 ->  | R43: =Lotto2_T640_1!$F$90 ->  | S43: =Lotto2_T640_2!$K$90 ->  | T43: =Lotto2_T640_2!$F$90 ->  | U43: =Lotto2_T640_3!$K$90 ->  | V43: =Lotto2_T640_3!$F$90 ->  | Y43: warranty
C44: =IF(B44="","",VLOOKUP(L44,Tabella_prezzi!$A$3:$J$308,9,FALSE)) ->  | D44: =IF(B44="","",VLOOKUP(L44,Tabella_prezzi!$A$3:$J$308,6,FALSE)) ->  | E44: =IF(B44="","",VLOOKUP(L44,Tabella_prezzi!$A$3:$J$308,8,FALSE)) ->  | F44: =IF(B44="","",VLOOKUP(L44,Tabella_prezzi!$A$3:$J$308,4,FALSE)) ->  | G44: =IF(C44="","",F44*B44) ->  | J44: =IF(B44="",0,1) -> 0 | K44: =VLOOKUP(L44,Tabella_prezzi!A22:J328,6,FALSE) -> TS3L2-BEZEL | L44: L2N19 | M44: =COUNTIF($Q$23:$Q$61,L44)*$M$22 -> 0 | N44: =COUNTIF($S$23:$S$61,L44)*$N$22 -> 0 | O44: =COUNTIF($U$23:$U$61,L44)*$O$22 -> 0 | P44: 0 | Q44: =Lotto2_T640_1!K97 ->  | R44: =Lotto2_T640_1!F97 ->  | S44: =Lotto2_T640_2!K97 ->  | T44: =Lotto2_T640_2!F97 ->  | U44: =Lotto2_T640_3!K97 ->  | V44: =Lotto2_T640_3!F97 ->  | X44: =ISODD(SUM($J$23:J44)) -> FALSE | Y44: ups
C45: =IF(B45="","",VLOOKUP(L45,Tabella_prezzi!$A$3:$J$308,9,FALSE)) ->  | D45: =IF(B45="","",VLOOKUP(L45,Tabella_prezzi!$A$3:$J$308,6,FALSE)) ->  | E45: =IF(B45="","",VLOOKUP(L45,Tabella_prezzi!$A$3:$J$308,8,FALSE)) ->  | F45: =IF(B45="","",VLOOKUP(L45,Tabella_prezzi!$A$3:$J$308,4,FALSE)) ->  | J45: 0 | K45: =VLOOKUP(L45,Tabella_prezzi!A23:J329,6,FALSE) -> TS3L2-BOSS240 | L45: L2N20 | M45: 0 | N45: 0 | O45: 0 | P45: 0 | Q45: =Lotto2_T640_1!K100 ->  | R45: =Lotto2_T640_1!F100 ->  | S45: =Lotto2_T640_2!K100 ->  | T45: =Lotto2_T640_2!F100 ->  | U45: =Lotto2_T640_3!K100 ->  | V45: =Lotto2_T640_3!F100 ->  | X45: =ISODD(SUM($J$23:J45)) -> FALSE | Y45: gui
C46: =IF(B46="","",VLOOKUP(L46,Tabella_prezzi!$A$3:$J$308,9,FALSE)) ->  | D46: =IF(B46="","",VLOOKUP(L46,Tabella_prezzi!$A$3:$J$308,6,FALSE)) ->  | E46: =IF(B46="","",VLOOKUP(L46,Tabella_prezzi!$A$3:$J$308,8,FALSE)) ->  | F46: =IF(B46="","",VLOOKUP(L46,Tabella_prezzi!$A$3:$J$308,4,FALSE)) ->  | J46: 0 | K46: =VLOOKUP(L46,Tabella_prezzi!A24:J330,6,FALSE) -> TS3L2-BOSS480 | L46: L2N21 | M46: 0 | N46: 0 | O46: 0 | P46: 0 | Q46: =Lotto2_T640_1!K87 ->  | R46: =Lotto2_T640_1!F87 ->  | S46: =Lotto2_T640_2!K87 ->  | T46: =Lotto2_T640_2!F87 ->  | U46: =Lotto2_T640_3!K87 ->  | V46: =Lotto2_T640_3!F87 ->  | X46: =ISODD(SUM($J$23:J46)) -> FALSE
C47: =IF(B47="","",VLOOKUP(L47,Tabella_prezzi!$A$3:$J$308,9,FALSE)) ->  | D47: =IF(B47="","",VLOOKUP(L47,Tabella_prezzi!$A$3:$J$308,6,FALSE)) ->  | E47: =IF(B47="","",VLOOKUP(L47,Tabella_prezzi!$A$3:$J$308,8,FALSE)) ->  | F47: =IF(B47="","",VLOOKUP(L47,Tabella_prezzi!$A$3:$J$308,4,FALSE)) ->  | J47: 0 | K47: =VLOOKUP(L47,Tabella_prezzi!A25:J331,6,FALSE) -> TS3L2-RACKKIT | L47: L2N22 | M47: 0 | N47: 0 | O47: 0 | P47: 0 | Q47: =Lotto2_T640_1!K84 -> L2N26 | R47: =Lotto2_T640_1!F84 -> 3 | S47: =Lotto2_T640_2!K84 -> L2N26 | T47: =Lotto2_T640_2!F84 -> 3 | U47: =Lotto2_T640_3!K84 -> L2N26 | V47: =Lotto2_T640_3!F84 -> 3 | X47: =ISODD(SUM($J$23:J47)) -> FALSE
C48: =IF(B48="","",VLOOKUP(L48,Tabella_prezzi!$A$3:$J$308,9,FALSE)) ->  | D48: =IF(B48="","",VLOOKUP(L48,Tabella_prezzi!$A$3:$J$308,6,FALSE)) ->  | E48: =IF(B48="","",VLOOKUP(L48,Tabella_prezzi!$A$3:$J$308,8,FALSE)) ->  | F48: =IF(B48="","",VLOOKUP(L48,Tabella_prezzi!$A$3:$J$308,4,FALSE)) ->  | J48: 0 | K48: =VLOOKUP(L48,Tabella_prezzi!A26:J332,6,FALSE) -> TS3L2-CNA10GB | L48: L2N23 | M48: 0 | N48: 0 | O48: 0 | P48: 0 | Q48: =Lotto2_T640_1!K81 -> 0 | R48: =Lotto2_T640_1!F81 -> 0 | S48: =Lotto2_T640_2!K81 -> 0 | T48: =Lotto2_T640_2!F81 -> 0 | U48: =Lotto2_T640_3!K81 -> 0 | V48: =Lotto2_T640_3!F81 -> 0 | X48: =ISODD(SUM($J$23:J48)) -> FALSE
C49: =IF(B49="","",VLOOKUP(L49,Tabella_prezzi!$A$3:$J$308,9,FALSE)) ->  | D49: =IF(B49="","",VLOOKUP(L49,Tabella_prezzi!$A$3:$J$308,6,FALSE)) ->  | E49: =IF(B49="","",VLOOKUP(L49,Tabella_prezzi!$A$3:$J$308,8,FALSE)) ->  | F49: =IF(B49="","",VLOOKUP(L49,Tabella_prezzi!$A$3:$J$308,4,FALSE)) ->  | J49: 0 | K49: =VLOOKUP(L49,Tabella_prezzi!A27:J333,6,FALSE) -> TS3L2-10GBIC | L49: L2N24 | M49: 0 | N49: 0 | O49: 0 | P49: 0 | Q49: =Lotto2_T640_1!K78 -> 0 | R49: =Lotto2_T640_1!F78 -> 0 | S49: =Lotto2_T640_2!K78 -> 0 | T49: =Lotto2_T640_2!F78 -> 0 | U49: =Lotto2_T640_3!K78 -> 0 | V49: =Lotto2_T640_3!F78 -> 0 | X49: =ISODD(SUM($J$23:J49)) -> FALSE
C50: =IF(B50="","",VLOOKUP(L50,Tabella_prezzi!$A$3:$J$308,9,FALSE)) ->  | D50: =IF(B50="","",VLOOKUP(L50,Tabella_prezzi!$A$3:$J$308,6,FALSE)) ->  | E50: =IF(B50="","",VLOOKUP(L50,Tabella_prezzi!$A$3:$J$308,8,FALSE)) ->  | F50: =IF(B50="","",VLOOKUP(L50,Tabella_prezzi!$A$3:$J$308,4,FALSE)) ->  | J50: 0 | K50: =VLOOKUP(L50,Tabella_prezzi!A28:J334,6,FALSE) -> TS3L2-DAC3M | L50: L2N25 | M50: 0 | N50: 0 | O50: 0 | P50: 0 | Q50: =Lotto2_T640_1!K11 ->  | R50: =Lotto2_T640_1!F11 ->  | S50: =Lotto2_T640_2!K11 ->  | T50: =Lotto2_T640_2!F11 ->  | U50: =Lotto2_T640_3!K11 ->  | V50: =Lotto2_T640_3!F11 ->  | X50: =ISODD(SUM($J$23:J50)) -> FALSE
C51: =IF(B51="","",VLOOKUP(L51,Tabella_prezzi!$A$3:$J$308,9,FALSE)) ->  | D51: =IF(B51="","",VLOOKUP(L51,Tabella_prezzi!$A$3:$J$308,6,FALSE)) ->  | E51: =IF(B51="","",VLOOKUP(L51,Tabella_prezzi!$A$3:$J$308,8,FALSE)) ->  | F51: =IF(B51="","",VLOOKUP(L51,Tabella_prezzi!$A$3:$J$308,4,FALSE)) ->  | J51: 0 | K51: =VLOOKUP(L51,Tabella_prezzi!A29:J335,6,FALSE) -> TS3L2-RJ453M | L51: L2N26 | M51: =IF(R47>1,(R47)*$M$22,0) -> 0 | N51: =IF(T47>1,(T47)*$N$22,0) -> 0 | O51: =IF(V47>1,(V47)*$O$22,0) -> 0 | P51: 0 | X51: =ISODD(SUM($J$23:J51)) -> FALSE
C52: =IF(B52="","",VLOOKUP(L52,Tabella_prezzi!$A$3:$J$308,9,FALSE)) ->  | D52: =IF(B52="","",VLOOKUP(L52,Tabella_prezzi!$A$3:$J$308,6,FALSE)) ->  | E52: =IF(B52="","",VLOOKUP(L52,Tabella_prezzi!$A$3:$J$308,8,FALSE)) ->  | F52: =IF(B52="","",VLOOKUP(L52,Tabella_prezzi!$A$3:$J$308,4,FALSE)) ->  | J52: 0 | K52: =VLOOKUP(L52,Tabella_prezzi!A30:J336,6,FALSE) -> TS3L2-H840 | L52: L2N27 | M52: 0 | N52: 0 | O52: 0 | P52: =SUM(M52:O52) -> 0 | X52: =ISODD(SUM($J$23:J52)) -> FALSE
C53: =IF(B53="","",VLOOKUP(L53,Tabella_prezzi!$A$3:$J$308,9,FALSE)) ->  | D53: =IF(B53="","",VLOOKUP(L53,Tabella_prezzi!$A$3:$J$308,6,FALSE)) ->  | E53: =IF(B53="","",VLOOKUP(L53,Tabella_prezzi!$A$3:$J$308,8,FALSE)) ->  | F53: =IF(B53="","",VLOOKUP(L53,Tabella_prezzi!$A$3:$J$308,4,FALSE)) ->  | G53: =IF(C53="","",F53*B53) ->  | J53: 0 | K53: =VLOOKUP(L53,Tabella_prezzi!A31:J337,6,FALSE) -> TS3L2-H740P | L53: L2N30 | M53: =COUNTIF(L2N_1,L53)*$M$22 -> 0 | N53: =COUNTIF(L2N_2,L53)*$N$22 -> 0 | O53: =COUNTIF(L2N_3,L53)*$O$22 -> 0 | P53: 0 | X53: =ISODD(SUM($J$23:J53)) -> FALSE
C54: =IF(B54="","",VLOOKUP(L54,Tabella_prezzi!$A$3:$J$308,9,FALSE)) ->  | D54: =IF(B54="","",VLOOKUP(L54,Tabella_prezzi!$A$3:$J$308,6,FALSE)) ->  | E54: =IF(B54="","",VLOOKUP(L54,Tabella_prezzi!$A$3:$J$308,8,FALSE)) ->  | F54: =IF(B54="","",VLOOKUP(L54,Tabella_prezzi!$A$3:$J$308,4,FALSE)) ->  | J54: 0 | K54: =VLOOKUP(L54,Tabella_prezzi!A32:J338,6,FALSE) -> TS3L2-CNA10M3 | L54: L2N29 | M54: 0 | N54: 0 | O54: 0 | P54: 0 | X54: =ISODD(SUM($J$23:J54)) -> FALSE
B55: Convenzione | G55: =SUM(G23:G41) -> 0 | J55: =IF(G55=0,0,1) -> 0
B56: Valore economico 20% consentito | D56: =G55/100*20 -> 0 | E56: Ulteriori componenti opzionali (20%) | G56: =SUM(G44:G54) -> 0 | J56: =IF(G56=0,0,1) -> 0
B57: Totale iva esclusa | G57: =G56+G55 -> 0 | J57: 0
B58: I.V.A. | G58: =G57/100*22 -> 0 | J58: 0
B59: TOTALE ORDINE | G59: =G57+G58 -> 0 | J59: 0
J60: 1

Sheet Configurazione
V1: 1
B2: =Riepilogo!M22 -> 0 | C2: PowerEdge T640 Configurazione 1 | E2: =Riepilogo!N22 -> 0 | F2: PowerEdge T640 Configurazione 2 | H2: =Riepilogo!O22 -> 0 | I2: PowerEdge T640 Configurazione 3 | V2: 1
V3: =IF($U$4>0,1,0) -> 0
B4: =IF(Riepilogo!M23>0,Riepilogo!M23/$B$2,"") ->  | C4: =IF(B4="","",Riepilogo!K23) ->  | E4: =IF(Riepilogo!N23>0,Riepilogo!N23/$E$2,"") ->  | F4: =IF(E4="","",Riepilogo!K23) ->  | H4: =IF(Riepilogo!O23>0,Riepilogo!O23/$H$2,"") ->  | I4: =IF(H4="","",Riepilogo!K23) ->  | L4: =IF(B4="",0,B4) -> 0 | O4: =IF(E4="",0,E4) -> 0 | R4: =IF(H4="",0,H4) -> 0 | U4: =SUM(L4:T4) -> 0 | V4: =IF(U4>0,1,0) -> 0 | W4: =ISODD(V4) -> FALSE
B5: =IF(Riepilogo!M24>0,Riepilogo!M24/$B$2,"") ->  | C5: =IF(B5="","",Riepilogo!K24) ->  | E5: =IF(Riepilogo!N24>0,Riepilogo!N24/$E$2,"") ->  | F5: =IF(E5="","",Riepilogo!K24) ->  | H5: =IF(Riepilogo!O24>0,Riepilogo!O24/$H$2,"") ->  | I5: =IF(H5="","",Riepilogo!K24) ->  | L5: =IF(B5="",0,B5) -> 0 | O5: =IF(E5="",0,E5) -> 0 | R5: =IF(H5="",0,H5) -> 0 | U5: =SUM(L5:T5) -> 0 | V5: =IF(U5>0,1,0) -> 0 | W5: =ISODD(SUM($V$4:V5)) -> FALSE
B6: =IF(Riepilogo!M25>0,Riepilogo!M25/$B$2,"") ->  | C6: =IF(B6="","",Riepilogo!K25) ->  | E6: =IF(Riepilogo!N25>0,Riepilogo!N25/$E$2,"") ->  | F6: =IF(E6="","",Riepilogo!K25) ->  | H6: =IF(Riepilogo!O25>0,Riepilogo!O25/$H$2,"") ->  | I6: =IF(H6="","",Riepilogo!K25) ->  | L6: 0 | O6: 0 | R6: 0 | U6: 0 | V6: 0 | W6: =ISODD(SUM($V$4:V6)) -> FALSE
B7: =IF(Riepilogo!M26>0,Riepilogo!M26/$B$2,"") ->  | C7: =IF(B7="","",Riepilogo!K26) ->  | E7: =IF(Riepilogo!N26>0,Riepilogo!N26/$E$2,"") ->  | F7: =IF(E7="","",Riepilogo!K26) ->  | H7: =IF(Riepilogo!O26>0,Riepilogo!O26/$H$2,"") ->  | I7: =IF(H7="","",Riepilogo!K26) ->  | L7: 0 | O7: 0 | R7: 0 | U7: 0 | V7: 0 | W7: =ISODD(SUM($V$4:V7)) -> FALSE
B8: =IF(Riepilogo!M27>0,Riepilogo!M27/$B$2,"") ->  | C8: =IF(B8="","",Riepilogo!K27) ->  | E8: =IF(Riepilogo!N27>0,Riepilogo!N27/$E$2,"") ->  | F8: =IF(E8="","",Riepilogo!K27) ->  | H8: =IF(Riepilogo!O27>0,Riepilogo!O27/$H$2,"") ->  | I8: =IF(H8="","",Riepilogo!K27) ->  | L8: 0 | O8: 0 | R8: 0 | U8: 0 | V8: 0 | W8: =ISODD(SUM($V$4:V8)) -> FALSE
B9: =IF(Riepilogo!M28>0,Riepilogo!M28/$B$2,"") ->  | C9: =IF(B9="","",Riepilogo!K28) ->  | E9: =IF(Riepilogo!N28>0,Riepilogo!N28/$E$2,"") ->  | F9: =IF(E9="","",Riepilogo!K28) ->  | H9: =IF(Riepilogo!O28>0,Riepilogo!O28/$H$2,"") ->  | I9: =IF(H9="","",Riepilogo!K28) ->  | L9: 0 | O9: 0 | R9: 0 | U9: 0 | V9: 0 | W9: =ISODD(SUM($V$4:V9)) -> FALSE
B10: =IF(Riepilogo!M29>0,Riepilogo!M29/$B$2,"") ->  | C10: =IF(B10="","",Riepilogo!K29) ->  | E10: =IF(Riepilogo!N29>0,Riepilogo!N29/$E$2,"") ->  | F10: =IF(E10="","",Riepilogo!K29) ->  | H10: =IF(Riepilogo!O29>0,Riepilogo!O29/$H$2,"") ->  | I10: =IF(H10="","",Riepilogo!K29) ->  | L10: 0 | O10: 0 | R10: 0 | U10: 0 | V10: 0 | W10: =ISODD(SUM($V$4:V10)) -> FALSE
B11: =IF(Riepilogo!M30>0,Riepilogo!M30/$B$2,"") ->  | C11: =IF(B11="","",Riepilogo!K30) ->  | E11: =IF(Riepilogo!N30>0,Riepilogo!N30/$E$2,"") ->  | F11: =IF(E11="","",Riepilogo!K30) ->  | H11: =IF(Riepilogo!O30>0,Riepilogo!O30/$H$2,"") ->  | I11: =IF(H11="","",Riepilogo!K30) ->  | L11: 0 | O11: 0 | R11: 0 | U11: 0 | V11: 0 | W11: =ISODD(SUM($V$4:V11)) -> FALSE
B12: =IF(Riepilogo!M31>0,Riepilogo!M31/$B$2,"") ->  | C12: =IF(B12="","",Riepilogo!K31) ->  | E12: =IF(Riepilogo!N31>0,Riepilogo!N31/$E$2,"") ->  | F12: =IF(E12="","",Riepilogo!K31) ->  | H12: =IF(Riepilogo!O31>0,Riepilogo!O31/$H$2,"") ->  | I12: =IF(H12="","",Riepilogo!K31) ->  | L12: 0 | O12: 0 | R12: 0 | U12: 0 | V12: 0 | W12: =ISODD(SUM($V$4:V12)) -> FALSE
B13: =IF(Riepilogo!M32>0,Riepilogo!M32/$B$2,"") ->  | C13: =IF(B13="","",Riepilogo!K32) ->  | E13: =IF(Riepilogo!N32>0,Riepilogo!N32/$E$2,"") ->  | F13: =IF(E13="","",Riepilogo!K32) ->  | H13: =IF(Riepilogo!O32>0,Riepilogo!O32/$H$2,"") ->  | I13: =IF(H13="","",Riepilogo!K32) ->  | L13: 0 | O13: 0 | R13: 0 | U13: 0 | V13: 0 | W13: =ISODD(SUM($V$4:V13)) -> FALSE
B14: =IF(Riepilogo!M33>0,Riepilogo!M33/$B$2,"") ->  | C14: =IF(B14="","",Riepilogo!K33) ->  | E14: =IF(Riepilogo!N33>0,Riepilogo!N33/$E$2,"") ->  | F14: =IF(E14="","",Riepilogo!K33) ->  | H14: =IF(Riepilogo!O33>0,Riepilogo!O33/$H$2,"") ->  | I14: =IF(H14="","",Riepilogo!K33) ->  | L14: 0 | O14: 0 | R14: 0 | U14: 0 | V14: 0 | W14: =ISODD(SUM($V$4:V14)) -> FALSE
B15: =IF(Riepilogo!M34>0,Riepilogo!M34/$B$2,"") ->  | C15: =IF(B15="","",Riepilogo!K34) ->  | E15: =IF(Riepilogo!N34>0,Riepilogo!N34/$E$2,"") ->  | F15: =IF(E15="","",Riepilogo!K34) ->  | H15: =IF(Riepilogo!O34>0,Riepilogo!O34/$H$2,"") ->  | I15: =IF(H15="","",Riepilogo!K34) ->  | L15: 0 | O15: 0 | R15: 0 | U15: 0 | V15: 0 | W15: =ISODD(SUM($V$4:V15)) -> FALSE
B16: =IF(Riepilogo!M35>0,Riepilogo!M35/$B$2,"") ->  | C16: =IF(B16="","",Riepilogo!K35) ->  | E16: =IF(Riepilogo!N35>0,Riepilogo!N35/$E$2,"") ->  | F16: =IF(E16="","",Riepilogo!K35) ->  | H16: =IF(Riepilogo!O35>0,Riepilogo!O35/$H$2,"") ->  | I16: =IF(H16="","",Riepilogo!K35) ->  | L16: 0 | O16: 0 | R16: 0 | U16: 0 | V16: 0 | W16: =ISODD(SUM($V$4:V16)) -> FALSE
B17: =IF(Riepilogo!M36>0,Riepilogo!M36/$B$2,"") ->  | C17: =IF(B17="","",Riepilogo!K36) ->  | E17: =IF(Riepilogo!N36>0,Riepilogo!N36/$E$2,"") ->  | F17: =IF(E17="","",Riepilogo!K36) ->  | H17: =IF(Riepilogo!O36>0,Riepilogo!O36/$H$2,"") ->  | I17: =IF(H17="","",Riepilogo!K36) ->  | L17: 0 | O17: 0 | R17: 0 | U17: 0 | V17: 0 | W17: =ISODD(SUM($V$4:V17)) -> FALSE
B18: =IF(Riepilogo!M37>0,Riepilogo!M37/$B$2,"") ->  | C18: =IF(B18="","",Riepilogo!K37) ->  | E18: =IF(Riepilogo!N37>0,Riepilogo!N37/$E$2,"") ->  | F18: =IF(E18="","",Riepilogo!K37) ->  | H18: =IF(Riepilogo!O37>0,Riepilogo!O37/$H$2,"") ->  | I18: =IF(H18="","",Riepilogo!K37) ->  | L18: 0 | O18: 0 | R18: 0 | U18: 0 | V18: 0 | W18: =ISODD(SUM($V$4:V18)) -> FALSE
B19: =IF(Riepilogo!M38>0,Riepilogo!M38/$B$2,"") ->  | C19: =IF(B19="","",Riepilogo!K38) ->  | E19: =IF(Riepilogo!N38>0,Riepilogo!N38/$E$2,"") ->  | F19: =IF(E19="","",Riepilogo!K38) ->  | H19: =IF(Riepilogo!O38>0,Riepilogo!O38/$H$2,"") ->  | I19: =IF(H19="","",Riepilogo!K38) ->  | L19: 0 | O19: 0 | R19: 0 | U19: 0 | V19: 0 | W19: =ISODD(SUM($V$4:V19)) -> FALSE
B20: =IF(Riepilogo!M39>0,Riepilogo!M39/$B$2,"") ->  | C20: =IF(B20="","",Riepilogo!K39) ->  | E20: =IF(Riepilogo!N39>0,Riepilogo!N39/$E$2,"") ->  | F20: =IF(E20="","",Riepilogo!K39) ->  | H20: =IF(Riepilogo!O39>0,Riepilogo!O39/$H$2,"") ->  | I20: =IF(H20="","",Riepilogo!K39) ->  | L20: 0 | O20: 0 | R20: 0 | U20: 0 | V20: 0 | W20: =ISODD(SUM($V$4:V20)) -> FALSE
B21: =IF(Riepilogo!M40>0,Riepilogo!M40/$B$2,"") ->  | C21: =IF(B21="","",Riepilogo!K40) ->  | E21: =IF(Riepilogo!N40>0,Riepilogo!N40/$E$2,"") ->  | F21: =IF(E21="","",Riepilogo!K40) ->  | H21: =IF(Riepilogo!O40>0,Riepilogo!O40/$H$2,"") ->  | I21: =IF(H21="","",Riepilogo!K40) ->  | L21: =IF(B21="",0,B21) -> 0 | O21: =IF(E21="",0,E21) -> 0 | R21: =IF(H21="",0,H21) -> 0 | U21: =SUM(L21:T21) -> 0 | V21: =IF(U21>0,1,0) -> 0 | W21: =ISODD(SUM($V$4:V21)) -> FALSE
B22: =IF(Riepilogo!M41>0,Riepilogo!M41/$B$2,"") ->  | C22: =IF(B22="","",Riepilogo!K41) ->  | E22: =IF(Riepilogo!N41>0,Riepilogo!N41/$E$2,"") ->  | F22: =IF(E22="","",Riepilogo!K41) ->  | H22: =IF(Riepilogo!O41>0,Riepilogo!O41/$H$2,"") ->  | I22: =IF(H22="","",Riepilogo!K41) ->  | L22: =IF(B22="",0,B22) -> 0 | O22: =IF(E22="",0,E22) -> 0 | R22: =IF(H22="",0,H22) -> 0 | U22: =SUM(L22:T22) -> 0 | V22: =IF(U22>0,1,0) -> 0 | W22: =ISODD(SUM($V$4:V22)) -> FALSE
B23: =IF(Riepilogo!M44>0,Riepilogo!M44/$B$2,"") ->  | C23: =IF(B23="","",CONCATENATE(Riepilogo!C44," - ",Riepilogo!K44)) ->  | E23: =IF(Riepilogo!N44>0,Riepilogo!N44/$E$2,"") ->  | F23: =IF(E23="","",CONCATENATE(Riepilogo!C44," - ",Riepilogo!K44)) ->  | H23: =IF(Riepilogo!O44>0,Riepilogo!O44/$H$2,"") ->  | I23: =IF(H23="","",CONCATENATE(Riepilogo!C44," - ",Riepilogo!K44)) ->  | L23: 0 | O23: 0 | R23: 0 | U23: 0 | V23: 0 | W23: =ISODD(SUM($V$4:V23)) -> FALSE
B24: =IF(Riepilogo!M45>0,Riepilogo!M45/$B$2,"") ->  | C24: =IF(B24="","",CONCATENATE(Riepilogo!C45," - ",Riepilogo!K45)) ->  | E24: =IF(Riepilogo!N45>0,Riepilogo!N45/$E$2,"") ->  | F24: =IF(E24="","",CONCATENATE(Riepilogo!C45," - ",Riepilogo!K45)) ->  | H24: =IF(Riepilogo!O45>0,Riepilogo!O45/$H$2,"") ->  | I24: =IF(H24="","",CONCATENATE(Riepilogo!C45," - ",Riepilogo!K45)) ->  | L24: 0 | O24: 0 | R24: 0 | U24: 0 | V24: 0 | W24: =ISODD(SUM($V$4:V24)) -> FALSE
B25: =IF(Riepilogo!M46>0,Riepilogo!M46/$B$2,"") ->  | C25: =IF(B25="","",CONCATENATE(Riepilogo!C46," - ",Riepilogo!K46)) ->  | E25: =IF(Riepilogo!N46>0,Riepilogo!N46/$E$2,"") ->  | F25: =IF(E25="","",CONCATENATE(Riepilogo!C46," - ",Riepilogo!K46)) ->  | H25: =IF(Riepilogo!O46>0,Riepilogo!O46/$H$2,"") ->  | I25: =IF(H25="","",CONCATENATE(Riepilogo!C46," - ",Riepilogo!K46)) ->  | L25: 0 | O25: 0 | R25: 0 | U25: 0 | V25: 0 | W25: =ISODD(SUM($V$4:V25)) -> FALSE
B26: =IF(Riepilogo!M47>0,Riepilogo!M47/$B$2,"") ->  | C26: =IF(B26="","",CONCATENATE(Riepilogo!C47," - ",Riepilogo!K47)) ->  | E26: =IF(Riepilogo!N47>0,Riepilogo!N47/$E$2,"") ->  | F26: =IF(E26="","",CONCATENATE(Riepilogo!C47," - ",Riepilogo!K47)) ->  | H26: =IF(Riepilogo!O47>0,Riepilogo!O47/$H$2,"") ->  | I26: =IF(H26="","",CONCATENATE(Riepilogo!C47," - ",Riepilogo!K47)) ->  | L26: 0 | O26: 0 | R26: 0 | U26: 0 | V26: 0 | W26: =ISODD(SUM($V$4:V26)) -> FALSE
B27: =IF(Riepilogo!M48>0,Riepilogo!M48/$B$2,"") ->  | C27: =IF(B27="","",CONCATENATE(Riepilogo!C48," - ",Riepilogo!K48)) ->  | E27: =IF(Riepilogo!N48>0,Riepilogo!N48/$E$2,"") ->  | F27: =IF(E27="","",CONCATENATE(Riepilogo!C48," - ",Riepilogo!K48)) ->  | H27: =IF(Riepilogo!O48>0,Riepilogo!O48/$H$2,"") ->  | I27: =IF(H27="","",CONCATENATE(Riepilogo!C48," - ",Riepilogo!K48)) ->  | L27: 0 | O27: 0 | R27: 0 | U27: 0 | V27: 0 | W27: =ISODD(SUM($V$4:V27)) -> FALSE
B28: =IF(Riepilogo!M49>0,Riepilogo!M49/$B$2,"") ->  | C28: =IF(B28="","",CONCATENATE(Riepilogo!C49," - ",Riepilogo!K49)) ->  | E28: =IF(Riepilogo!N49>0,Riepilogo!N49/$E$2,"") ->  | F28: =IF(E28="","",CONCATENATE(Riepilogo!C49," - ",Riepilogo!K49)) ->  | H28: =IF(Riepilogo!O49>0,Riepilogo!O49/$H$2,"") ->  | I28: =IF(H28="","",CONCATENATE(Riepilogo!C49," - ",Riepilogo!K49)) ->  | L28: 0 | O28: 0 | R28: 0 | U28: 0 | V28: 0 | W28: =ISODD(SUM($V$4:V28)) -> FALSE
B29: =IF(Riepilogo!M50>0,Riepilogo!M50/$B$2,"") ->  | C29: =IF(B29="","",CONCATENATE(Riepilogo!C50," - ",Riepilogo!K50)) ->  | E29: =IF(Riepilogo!N50>0,Riepilogo!N50/$E$2,"") ->  | F29: =IF(E29="","",CONCATENATE(Riepilogo!C50," - ",Riepilogo!K50)) ->  | H29: =IF(Riepilogo!O50>0,Riepilogo!O50/$H$2,"") ->  | I29: =IF(H29="","",CONCATENATE(Riepilogo!C50," - ",Riepilogo!K50)) ->  | L29: 0 | O29: 0 | R29: 0 | U29: 0 | V29: 0 | W29: =ISODD(SUM($V$4:V29)) -> FALSE
B30: =IF(Riepilogo!M51>0,Riepilogo!M51/$B$2,"") ->  | C30: =IF(B30="","",CONCATENATE(Riepilogo!C51," - ",Riepilogo!K51)) ->  | E30: =IF(Riepilogo!N51>0,Riepilogo!N51/$E$2,"") ->  | F30: =IF(E30="","",CONCATENATE(Riepilogo!C51," - ",Riepilogo!K51)) ->  | H30: =IF(Riepilogo!O51>0,Riepilogo!O51/$H$2,"") ->  | I30: =IF(H30="","",CONCATENATE(Riepilogo!C51," - ",Riepilogo!K51)) ->  | L30: 0 | O30: 0 | R30: 0 | U30: 0 | V30: 0 | W30: =ISODD(SUM($V$4:V30)) -> FALSE
B31: =IF(Riepilogo!M52>0,Riepilogo!M52/$B$2,"") ->  | C31: =IF(B31="","",CONCATENATE(Riepilogo!C52," - ",Riepilogo!K52)) ->  | E31: =IF(Riepilogo!N52>0,Riepilogo!N52/$E$2,"") ->  | F31: =IF(E31="","",CONCATENATE(Riepilogo!C52," - ",Riepilogo!K52)) ->  | H31: =IF(Riepilogo!O52>0,Riepilogo!O52/$H$2,"") ->  | I31: =IF(H31="","",CONCATENATE(Riepilogo!C52," - ",Riepilogo!K52)) ->  | L31: 0 | O31: 0 | R31: 0 | U31: 0 | V31: 0 | W31: =ISODD(SUM($V$4:V31)) -> FALSE
B32: =IF(Riepilogo!M53>0,Riepilogo!M53/$B$2,"") ->  | C32: =IF(B32="","",CONCATENATE(Riepilogo!C53," - ",Riepilogo!K53)) ->  | E32: =IF(Riepilogo!N53>0,Riepilogo!N53/$E$2,"") ->  | F32: =IF(E32="","",CONCATENATE(Riepilogo!C53," - ",Riepilogo!K53)) ->  | H32: =IF(Riepilogo!O53>0,Riepilogo!O53/$H$2,"") ->  | I32: =IF(H32="","",CONCATENATE(Riepilogo!C53," - ",Riepilogo!K53)) ->  | L32: 0 | O32: 0 | R32: 0 | U32: 0 | V32: 0 | W32: =ISODD(SUM($V$4:V32)) -> FALSE
B33: =IF(Riepilogo!M54>0,Riepilogo!M54/$B$2,"") ->  | C33: =IF(B33="","",CONCATENATE(Riepilogo!C54," - ",Riepilogo!K54)) ->  | E33: =IF(Riepilogo!N54>0,Riepilogo!N54/$E$2,"") ->  | F33: =IF(E33="","",CONCATENATE(Riepilogo!C54," - ",Riepilogo!K54)) ->  | H33: =IF(Riepilogo!O54>0,Riepilogo!O54/$H$2,"") ->  | I33: =IF(H33="","",CONCATENATE(Riepilogo!C54," - ",Riepilogo!K54)) ->  | L33: 0 | O33: 0 | R33: 0 | U33: 0 | V33: 0 | W33: =ISODD(SUM($V$4:V33)) -> FALSE
V34: =IF($U$4>0,1,0) -> 0
B35: Configurazione RAID e/o NOTE | E35: Configurazione RAID e/o NOTE | H35: Configurazione RAID e/o NOTE | V35: =IF($U$4>0,1,0) -> 0
B36: =Lotto2_T640_1!H30 -> Specificare la configurazione RAID per l'installazione del Sistema Operativo, se richiesto. e/o inserire eventuali note. | E36: =Lotto2_T640_2!H30 -> Specificare la configurazione RAID per l'installazione del Sistema Operativo, se richiesto. e/o inserire eventuali note. | H36: =Lotto2_T640_3!H30 -> Specificare la configurazione RAID per l'installazione del Sistema Operativo, se richiesto. e/o inserire eventuali note. | V36: 0
V37: 0
V38: 0
V39: 0
V40: 0
V41: 0
V42: 0
V43: 0
V44: 0
V45: 0
V46: 0
V47: 0
V48: 1
V49: 1
B50: AREA RISERVATA AL FORNITORE | V50: 1
V51: 1
B52: VERIFICA STAGING | G52: VERIFICA INSTALLATORE | V52: 1
V53: 1
V54: 1
V55: 1
V56: 1
